﻿Posting date,Supplier number,Supplier name,Expense type,Department,Amount
25/08/2021,1249077,The Advocacy Project,Hired and Contracted Services,ASC Procurement and Business Intelligenc,"51,294.00"
01/07/2021,1243887,Alan Berresford Limited,B*Payments to OLAs - Southampton City Co,Adult Social Care Finance and Resources,637.50
18/08/2021,1243762,London Borough Of Ealing (A/C,"Newspapers, Periodicals and Publications",Adult Social Care Finance and Resources,"25,000.00"
06/09/2021,1255811,Paragon Group UK LTD,Hired and Contracted Services,Adult Social Care Finance and Resources,"30,079.30"
16/09/2021,1282452,PERSONAL PAYMENTS,Training related expenditure,Adult Social Care Finance and Resources,"1,350.00"
30/07/2021,1257745,Russell Scott Entertainment Ltd,B*Contract Claims/Provisions,Adult Social Care Finance and Resources,"3,750.00"
15/07/2021,1279853,Starfish Search Limited,Recruitment Expenses (excl. advertising),Adult Social Care Finance and Resources,"4,800.00"
28/07/2021,1279853,Starfish Search Limited,B*Interview Travel Expenses,Adult Social Care Finance and Resources,"2,000.00"
04/08/2021,1279853,Starfish Search Limited,Recruitment Expenses (excl. advertising),Adult Social Care Finance and Resources,"3,200.00"
16/09/2021,1246216,Westminster Associates Ltd,Training related expenditure,Adult Social Care Finance and Resources,"3,529.35"
20/08/2021,1281952,Wilkin Chapman LLP,Legal Costs,Adult Social Care Finance and Resources,800.00
02/07/2021,1245648,Star Boarding Kennels,Other premises related costs,Adult Social Care Finance and Resources,879.60
04/08/2021,1245648,Star Boarding Kennels,Other premises related costs,Adult Social Care Finance and Resources,983.92
03/09/2021,1245648,Star Boarding Kennels,Other premises related costs,Adult Social Care Finance and Resources,908.92
28/07/2021,1245228,Pohwer,Hired and Contracted Services,Adult Social Care Finance and Resources,"4,253.85"
10/09/2021,1245228,Pohwer,Hired and Contracted Services,Adult Social Care Finance and Resources,"3,902.13"
10/09/2021,1245228,Pohwer,Hired and Contracted Services,Adult Social Care Finance and Resources,"5,351.15"
13/08/2021,1245693,London Borough Of Hammersmith &,B*Payments to OLAs - Southampton City Co,Adult Social Care Finance and Resources,"62,577.00"
13/08/2021,1251196,Royal Borough of Kensington and,B*Payments to OLAs - Southampton City Co,Adult Social Care Finance and Resources,"83,172.00"
18/08/2021,1245982,Anchor Trust,Grant Aid and Donations,Adult Social Care Operations,"7,645.42"
18/08/2021,1245982,Anchor Trust,Grant Aid and Donations,Adult Social Care Operations,"7,780.34"
18/08/2021,1245091,Care UK Community Partnerships Ltd,Grant Aid and Donations,Adult Social Care Operations,"21,598.32"
18/08/2021,1245091,Care UK Community Partnerships Ltd,Grant Aid and Donations,Adult Social Care Operations,"21,979.46"
18/08/2021,1276119,Feelcare Domiciliary Services Ltd,Grant Aid and Donations,Adult Social Care Operations,653.32
18/08/2021,1273817,GCH Alan Morkill House Ltd,Grant Aid and Donations,Adult Social Care Operations,"16,055.39"
18/08/2021,1273817,GCH Alan Morkill House Ltd,Grant Aid and Donations,Adult Social Care Operations,"16,338.71"
07/09/2021,D000000016,PERSONAL PAYMENTS,Payment to Government Departments,Adult Social Care Operations,"25,711.74"
18/08/2021,1247650,London Care Ltd,Grant Aid and Donations,Adult Social Care Operations,"11,937.92"
26/07/2021,1244783,London Hire Community Services Ltd,Hired and Contracted Services,Adult Social Care Operations,"2,159.06"
26/07/2021,1244783,London Hire Community Services Ltd,Hired and Contracted Services,Adult Social Care Operations,"3,204.06"
18/08/2021,1247853,Look Ahead Housing & Care Ltd,Grant Aid and Donations,Adult Social Care Operations,"2,500.00"
18/08/2021,1266168,Midshire Care LTD,Grant Aid and Donations,Adult Social Care Operations,"1,841.17"
18/08/2021,1274153,Notting Hill Genesis,Grant Aid and Donations,Adult Social Care Operations,"2,613.28"
18/08/2021,1244971,Octavia Housing (Main Account),Grant Aid and Donations,Adult Social Care Operations,"1,247.25"
18/08/2021,1248618,Riverside Echg,Grant Aid and Donations,Adult Social Care Operations,"3,000.00"
13/07/2021,1279054,Safeairquality Limited,Hired and Contracted Services,Adult Social Care Operations,"14,400.00"
18/08/2021,1243532,Sanctuary Care Ltd,Grant Aid and Donations,Adult Social Care Operations,"4,396.12"
18/08/2021,1243532,Sanctuary Care Ltd,Grant Aid and Donations,Adult Social Care Operations,"7,645.42"
18/08/2021,1243532,Sanctuary Care Ltd,Grant Aid and Donations,Adult Social Care Operations,"8,027.69"
18/08/2021,1243532,Sanctuary Care Ltd,Grant Aid and Donations,Adult Social Care Operations,"7,780.34"
18/08/2021,1243532,Sanctuary Care Ltd,Grant Aid and Donations,Adult Social Care Operations,"4,473.69"
18/08/2021,1243532,Sanctuary Care Ltd,Grant Aid and Donations,Adult Social Care Operations,"8,169.36"
18/08/2021,1245584,Single Homeless Project,Grant Aid and Donations,Adult Social Care Operations,"2,000.00"
18/08/2021,1243548,St Georges Nursing Home Ltd,Grant Aid and Donations,Adult Social Care Operations,"8,558.37"
18/08/2021,1243548,St Georges Nursing Home Ltd,Grant Aid and Donations,Adult Social Care Operations,"8,409.97"
18/08/2021,1245636,St Mungos Broadway (Grants &,Grant Aid and Donations,Adult Social Care Operations,"2,500.00"
27/07/2021,1281402,The Perfect Little Company,Cleaning services,Adult Social Care Operations,"15,811.00"
18/08/2021,1249232,Vincentian Care Plus,Grant Aid and Donations,Adult Social Care Operations,"9,740.40"
18/08/2021,1249291,Westminster Society,Grant Aid and Donations,Adult Social Care Operations,955.68
18/08/2021,1249291,Westminster Society,Grant Aid and Donations,Adult Social Care Operations,573.41
18/08/2021,1249291,Westminster Society,Grant Aid and Donations,Adult Social Care Operations,583.53
18/08/2021,1249291,Westminster Society,Grant Aid and Donations,Adult Social Care Operations,764.54
18/08/2021,1249291,Westminster Society,Grant Aid and Donations,Adult Social Care Operations,972.54
18/08/2021,1249291,Westminster Society,Grant Aid and Donations,Adult Social Care Operations,955.68
18/08/2021,1249291,Westminster Society,Grant Aid and Donations,Adult Social Care Operations,764.54
18/08/2021,1249291,Westminster Society,Grant Aid and Donations,Adult Social Care Operations,"7,958.62"
18/08/2021,1249291,Westminster Society,Grant Aid and Donations,Adult Social Care Operations,778.03
18/08/2021,1249291,Westminster Society,Grant Aid and Donations,Adult Social Care Operations,778.03
18/08/2021,1249291,Westminster Society,Grant Aid and Donations,Adult Social Care Operations,972.54
18/08/2021,1243566,Yarrow Housing Ltd,Grant Aid and Donations,Adult Social Care Operations,"1,146.81"
18/08/2021,1243566,Yarrow Housing Ltd,Grant Aid and Donations,Adult Social Care Operations,"1,167.05"
18/08/2021,1249317,Zocalo Ltd T/as Bluebird Care,Grant Aid and Donations,Adult Social Care Operations,"5,582.91"
01/09/2021,1244309,Doro Care Ltd,###,Bi-Borough Director of Integrated Care,"1,244.00"
10/09/2021,1244309,Doro Care Ltd,###,Bi-Borough Director of Integrated Care,"9,450.00"
22/09/2021,1244309,Doro Care Ltd,###,Bi-Borough Director of Integrated Care,"1,292.00"
27/09/2021,1244309,Doro Care Ltd,###,Bi-Borough Director of Integrated Care,"1,340.00"
09/08/2021,1246138,Tunstall Healthcare (UK) Ltd (Use,###,Bi-Borough Director of Integrated Care,"3,747.00"
23/07/2021,1256112,Worcestershire Telecare Ltd,Hired and Contracted Services,Bi-Borough Director of Integrated Care,"4,836.71"
23/07/2021,1256112,Worcestershire Telecare Ltd,Hired and Contracted Services,Bi-Borough Director of Integrated Care,"6,080.23"
05/08/2021,1256112,Worcestershire Telecare Ltd,Hired and Contracted Services,Bi-Borough Director of Integrated Care,"4,883.81"
22/07/2021,1273817,GCH Alan Morkill House Ltd,Hired and Contracted Services,Bi-Borough Director of Integrated Care,"234,005.00"
22/07/2021,1273817,GCH Alan Morkill House Ltd,Hired and Contracted Services,Bi-Borough Director of Integrated Care,"364,008.00"
08/09/2021,1273817,GCH Alan Morkill House Ltd,Hired and Contracted Services,Bi-Borough Director of Integrated Care,"364,008.00"
08/09/2021,1273817,GCH Alan Morkill House Ltd,Hired and Contracted Services,Bi-Borough Director of Integrated Care,"455,010.00"
11/07/2021,1255843,A.I. Care Services Ltd,,Bi-Borough Director of Integrated Care,536.96
21/07/2021,1271174,ASPECTS 2 LIMITED,,Bi-Borough Director of Integrated Care,"8,234.40"
18/08/2021,1271174,ASPECTS 2 LIMITED,,Bi-Borough Director of Integrated Care,"8,234.40"
15/09/2021,1271174,ASPECTS 2 LIMITED,,Bi-Borough Director of Integrated Care,"8,234.40"
21/07/2021,1243851,Accomplish Group Ltd,,Bi-Borough Director of Integrated Care,"8,877.40"
21/07/2021,1243851,Accomplish Group Ltd,,Bi-Borough Director of Integrated Care,"8,877.40"
21/07/2021,1243851,Accomplish Group Ltd,,Bi-Borough Director of Integrated Care,"6,748.80"
18/08/2021,1243851,Accomplish Group Ltd,,Bi-Borough Director of Integrated Care,"8,877.40"
18/08/2021,1243851,Accomplish Group Ltd,,Bi-Borough Director of Integrated Care,"8,877.40"
18/08/2021,1243851,Accomplish Group Ltd,,Bi-Borough Director of Integrated Care,"4,292.92"
15/09/2021,1243851,Accomplish Group Ltd,,Bi-Borough Director of Integrated Care,"8,877.40"
15/09/2021,1243851,Accomplish Group Ltd,,Bi-Borough Director of Integrated Care,"8,877.40"
21/07/2021,1243435,Acorn Village,,Bi-Borough Director of Integrated Care,"5,221.08"
18/08/2021,1243435,Acorn Village,,Bi-Borough Director of Integrated Care,"5,221.08"
15/09/2021,1243435,Acorn Village,,Bi-Borough Director of Integrated Care,"5,221.08"
30/07/2021,1243931,Ashbourne Healthcare Services,,Bi-Borough Director of Integrated Care,"1,317.23"
10/08/2021,1243931,Ashbourne Healthcare Services,,Bi-Borough Director of Integrated Care,"1,384.35"
25/08/2021,1243931,Ashbourne Healthcare Services,,Bi-Borough Director of Integrated Care,536.96
10/09/2021,1243931,Ashbourne Healthcare Services,,Bi-Borough Director of Integrated Care,511.79
28/09/2021,1243931,Ashbourne Healthcare Services,,Bi-Borough Director of Integrated Care,"3,204.96"
21/07/2021,1243942,Aspens Charities,,Bi-Borough Director of Integrated Care,"5,445.92"
18/08/2021,1243942,Aspens Charities,,Bi-Borough Director of Integrated Care,"5,445.92"
15/09/2021,1243942,Aspens Charities,,Bi-Borough Director of Integrated Care,"5,445.92"
23/09/2021,1243942,Aspens Charities,,Bi-Borough Director of Integrated Care,"2,553.13"
21/07/2021,1243961,Autism Anglia,,Bi-Borough Director of Integrated Care,"10,644.00"
18/08/2021,1243961,Autism Anglia,,Bi-Borough Director of Integrated Care,"10,644.00"
15/09/2021,1243961,Autism Anglia,,Bi-Borough Director of Integrated Care,"10,644.00"
21/07/2021,1243962,Autism London,,Bi-Borough Director of Integrated Care,685.52
21/07/2021,1243962,Autism London,,Bi-Borough Director of Integrated Care,"4,812.00"
18/08/2021,1243962,Autism London,,Bi-Borough Director of Integrated Care,"4,812.00"
18/08/2021,1243962,Autism London,,Bi-Borough Director of Integrated Care,685.52
15/09/2021,1243962,Autism London,,Bi-Borough Director of Integrated Care,"4,812.00"
15/09/2021,1243962,Autism London,,Bi-Borough Director of Integrated Care,685.52
21/07/2021,1243444,Broadham Care Ltd,,Bi-Borough Director of Integrated Care,"1,400.00"
21/07/2021,1243444,Broadham Care Ltd,,Bi-Borough Director of Integrated Care,"6,200.00"
18/08/2021,1243444,Broadham Care Ltd,,Bi-Borough Director of Integrated Care,"6,200.00"
18/08/2021,1243444,Broadham Care Ltd,,Bi-Borough Director of Integrated Care,"1,400.00"
15/09/2021,1243444,Broadham Care Ltd,,Bi-Borough Director of Integrated Care,"1,400.00"
15/09/2021,1243444,Broadham Care Ltd,,Bi-Borough Director of Integrated Care,"6,913.00"
21/07/2021,1243445,Broadstreet House Limited,,Bi-Borough Director of Integrated Care,"4,096.00"
18/08/2021,1243445,Broadstreet House Limited,,Bi-Borough Director of Integrated Care,"4,096.00"
15/09/2021,1243445,Broadstreet House Limited,,Bi-Borough Director of Integrated Care,"4,096.00"
21/07/2021,1246286,Brunswick Supported Living,,Bi-Borough Director of Integrated Care,"2,629.28"
18/08/2021,1246286,Brunswick Supported Living,,Bi-Borough Director of Integrated Care,"2,629.28"
15/09/2021,1246286,Brunswick Supported Living,,Bi-Borough Director of Integrated Care,"2,629.28"
21/07/2021,1273390,CHILTERN SUPPORT & HOUSING LTD,,Bi-Borough Director of Integrated Care,"49,760.39"
18/08/2021,1273390,CHILTERN SUPPORT & HOUSING LTD,,Bi-Borough Director of Integrated Care,"19,828.06"
15/09/2021,1273390,CHILTERN SUPPORT & HOUSING LTD,,Bi-Borough Director of Integrated Care,"16,536.72"
21/07/2021,1244092,Cambrian Learning Disabilities Ltd,,Bi-Borough Director of Integrated Care,"5,690.00"
18/08/2021,1244092,Cambrian Learning Disabilities Ltd,,Bi-Borough Director of Integrated Care,"5,690.00"
15/09/2021,1244092,Cambrian Learning Disabilities Ltd,,Bi-Borough Director of Integrated Care,"5,690.00"
05/07/2021,1243795,Cambs & Peterborough Mental,B*Voluntary-Spot-V Dep-Enhanced - do not u,Bi-Borough Director of Integrated Care,568.14
07/07/2021,1243795,Cambs & Peterborough Mental,B*Voluntary-Spot-V Dep-Enhanced - do not u,Bi-Borough Director of Integrated Care,568.14
16/08/2021,1243795,Cambs & Peterborough Mental,B*Voluntary-Spot-V Dep-Enhanced - do not u,Bi-Borough Director of Integrated Care,522.69
17/09/2021,1243795,Cambs & Peterborough Mental,B*Voluntary-Spot-V Dep-Enhanced - do not u,Bi-Borough Director of Integrated Care,568.14
21/07/2021,1246321,Camphill Village Trust,,Bi-Borough Director of Integrated Care,"3,981.08"
18/08/2021,1246321,Camphill Village Trust,,Bi-Borough Director of Integrated Care,"3,981.08"
15/09/2021,1246321,Camphill Village Trust,,Bi-Borough Director of Integrated Care,"3,981.08"
21/07/2021,1246324,Candour Care Services (Broadview),,Bi-Borough Director of Integrated Care,"7,434.92"
18/08/2021,1246324,Candour Care Services (Broadview),,Bi-Borough Director of Integrated Care,"7,434.92"
15/09/2021,1246324,Candour Care Services (Broadview),,Bi-Borough Director of Integrated Care,"7,434.92"
21/07/2021,1246327,Canterbury Oast Trust Ltd,,Bi-Borough Director of Integrated Care,"1,260.00"
18/08/2021,1246327,Canterbury Oast Trust Ltd,,Bi-Borough Director of Integrated Care,"1,260.00"
21/07/2021,1259100,Care Assist Limited,,Bi-Borough Director of Integrated Care,"7,761.60"
21/07/2021,1259100,Care Assist Limited,,Bi-Borough Director of Integrated Care,"7,761.60"
18/08/2021,1259100,Care Assist Limited,,Bi-Borough Director of Integrated Care,"7,761.60"
18/08/2021,1259100,Care Assist Limited,,Bi-Borough Director of Integrated Care,"7,761.60"
15/09/2021,1259100,Care Assist Limited,,Bi-Borough Director of Integrated Care,"7,761.60"
15/09/2021,1259100,Care Assist Limited,,Bi-Borough Director of Integrated Care,"7,761.60"
18/08/2021,1245091,Care UK Community Partnerships Ltd,,Bi-Borough Director of Integrated Care,"9,003.44"
21/07/2021,1246339,Caretech Community Services Ltd,,Bi-Borough Director of Integrated Care,"1,325.00"
21/07/2021,1246339,Caretech Community Services Ltd,,Bi-Borough Director of Integrated Care,"5,379.96"
21/07/2021,1246339,Caretech Community Services Ltd,,Bi-Borough Director of Integrated Care,"5,379.96"
21/07/2021,1246339,Caretech Community Services Ltd,,Bi-Borough Director of Integrated Care,987.40
18/08/2021,1246339,Caretech Community Services Ltd,,Bi-Borough Director of Integrated Care,"5,379.96"
18/08/2021,1246339,Caretech Community Services Ltd,,Bi-Borough Director of Integrated Care,987.40
18/08/2021,1246339,Caretech Community Services Ltd,,Bi-Borough Director of Integrated Care,"1,325.00"
18/08/2021,1246339,Caretech Community Services Ltd,,Bi-Borough Director of Integrated Care,"5,379.96"
18/08/2021,1246339,Caretech Community Services Ltd,,Bi-Borough Director of Integrated Care,"338,198.10"
15/09/2021,1246339,Caretech Community Services Ltd,,Bi-Borough Director of Integrated Care,"5,379.96"
15/09/2021,1246339,Caretech Community Services Ltd,,Bi-Borough Director of Integrated Care,"1,325.00"
15/09/2021,1246339,Caretech Community Services Ltd,,Bi-Borough Director of Integrated Care,"104,629.65"
21/07/2021,1246349,Caxton Youth Organisation,B*Distric Council non fee related servi,Bi-Borough Director of Integrated Care,935.00
21/07/2021,1246349,Caxton Youth Organisation,B*Distric Council non fee related servi,Bi-Borough Director of Integrated Care,615.00
18/08/2021,1246349,Caxton Youth Organisation,B*Distric Council non fee related servi,Bi-Borough Director of Integrated Care,971.43
18/08/2021,1246349,Caxton Youth Organisation,B*Distric Council non fee related servi,Bi-Borough Director of Integrated Care,971.43
18/08/2021,1246349,Caxton Youth Organisation,B*Distric Council non fee related servi,Bi-Borough Director of Integrated Care,971.43
18/08/2021,1246349,Caxton Youth Organisation,B*Distric Council non fee related servi,Bi-Borough Director of Integrated Care,971.43
21/07/2021,1276470,Certitude (Support for Living),,Bi-Borough Director of Integrated Care,"2,639.60"
21/07/2021,1276470,Certitude (Support for Living),,Bi-Borough Director of Integrated Care,"6,119.24"
21/07/2021,1276470,Certitude (Support for Living),,Bi-Borough Director of Integrated Care,"13,459.68"
21/07/2021,1276470,Certitude (Support for Living),,Bi-Borough Director of Integrated Care,"5,498.60"
21/07/2021,1276470,Certitude (Support for Living),,Bi-Borough Director of Integrated Care,"6,861.08"
21/07/2021,1276470,Certitude (Support for Living),,Bi-Borough Director of Integrated Care,"14,857.60"
21/07/2021,1276470,Certitude (Support for Living),,Bi-Borough Director of Integrated Care,"6,861.08"
21/07/2021,1276470,Certitude (Support for Living),,Bi-Borough Director of Integrated Care,"15,510.68"
21/07/2021,1276470,Certitude (Support for Living),,Bi-Borough Director of Integrated Care,"12,801.24"
18/08/2021,1276470,Certitude (Support for Living),,Bi-Borough Director of Integrated Care,"5,498.60"
18/08/2021,1276470,Certitude (Support for Living),,Bi-Borough Director of Integrated Care,"32,482.40"
18/08/2021,1276470,Certitude (Support for Living),,Bi-Borough Director of Integrated Care,"6,861.08"
18/08/2021,1276470,Certitude (Support for Living),,Bi-Borough Director of Integrated Care,"14,857.60"
18/08/2021,1276470,Certitude (Support for Living),,Bi-Borough Director of Integrated Care,"2,376.00"
18/08/2021,1276470,Certitude (Support for Living),,Bi-Borough Director of Integrated Care,"6,861.08"
18/08/2021,1276470,Certitude (Support for Living),,Bi-Borough Director of Integrated Care,"15,510.68"
18/08/2021,1276470,Certitude (Support for Living),,Bi-Borough Director of Integrated Care,"6,119.24"
18/08/2021,1276470,Certitude (Support for Living),,Bi-Borough Director of Integrated Care,"2,639.60"
18/08/2021,1276470,Certitude (Support for Living),,Bi-Borough Director of Integrated Care,"13,459.68"
15/09/2021,1276470,Certitude (Support for Living),,Bi-Borough Director of Integrated Care,"14,857.60"
15/09/2021,1276470,Certitude (Support for Living),,Bi-Borough Director of Integrated Care,"3,168.00"
15/09/2021,1276470,Certitude (Support for Living),,Bi-Borough Director of Integrated Care,"6,861.08"
15/09/2021,1276470,Certitude (Support for Living),,Bi-Borough Director of Integrated Care,"15,510.68"
15/09/2021,1276470,Certitude (Support for Living),,Bi-Borough Director of Integrated Care,"2,639.60"
15/09/2021,1276470,Certitude (Support for Living),,Bi-Borough Director of Integrated Care,"6,119.24"
15/09/2021,1276470,Certitude (Support for Living),,Bi-Borough Director of Integrated Care,"13,459.68"
15/09/2021,1276470,Certitude (Support for Living),,Bi-Borough Director of Integrated Care,"5,498.60"
15/09/2021,1276470,Certitude (Support for Living),,Bi-Borough Director of Integrated Care,"5,793.04"
15/09/2021,1276470,Certitude (Support for Living),,Bi-Borough Director of Integrated Care,"6,861.08"
21/07/2021,1244167,Choice Support,,Bi-Borough Director of Integrated Care,"8,936.00"
18/08/2021,1244167,Choice Support,,Bi-Borough Director of Integrated Care,"8,936.00"
15/09/2021,1244167,Choice Support,,Bi-Borough Director of Integrated Care,"8,936.00"
21/07/2021,1243458,Cocklebury Farmhouse Homes Ltd,,Bi-Borough Director of Integrated Care,"7,028.00"
21/07/2021,1243458,Cocklebury Farmhouse Homes Ltd,,Bi-Borough Director of Integrated Care,"4,952.00"
21/07/2021,1243458,Cocklebury Farmhouse Homes Ltd,,Bi-Borough Director of Integrated Care,"5,536.00"
21/07/2021,1243458,Cocklebury Farmhouse Homes Ltd,,Bi-Borough Director of Integrated Care,"5,568.00"
21/07/2021,1243458,Cocklebury Farmhouse Homes Ltd,,Bi-Borough Director of Integrated Care,"6,408.00"
18/08/2021,1243458,Cocklebury Farmhouse Homes Ltd,,Bi-Borough Director of Integrated Care,"4,952.00"
18/08/2021,1243458,Cocklebury Farmhouse Homes Ltd,,Bi-Borough Director of Integrated Care,"5,536.00"
18/08/2021,1243458,Cocklebury Farmhouse Homes Ltd,,Bi-Borough Director of Integrated Care,"5,568.00"
18/08/2021,1243458,Cocklebury Farmhouse Homes Ltd,,Bi-Borough Director of Integrated Care,"6,408.00"
18/08/2021,1243458,Cocklebury Farmhouse Homes Ltd,,Bi-Borough Director of Integrated Care,"7,028.00"
15/09/2021,1243458,Cocklebury Farmhouse Homes Ltd,,Bi-Borough Director of Integrated Care,"6,408.00"
15/09/2021,1243458,Cocklebury Farmhouse Homes Ltd,,Bi-Borough Director of Integrated Care,"7,028.00"
15/09/2021,1243458,Cocklebury Farmhouse Homes Ltd,,Bi-Borough Director of Integrated Care,"4,952.00"
15/09/2021,1243458,Cocklebury Farmhouse Homes Ltd,,Bi-Borough Director of Integrated Care,"5,536.00"
15/09/2021,1243458,Cocklebury Farmhouse Homes Ltd,,Bi-Borough Director of Integrated Care,"5,568.00"
21/07/2021,1244212,PERSONAL PAYMENTS,,Bi-Borough Director of Integrated Care,"3,320.00"
18/08/2021,1244212,PERSONAL PAYMENTS,,Bi-Borough Director of Integrated Care,"3,320.00"
15/09/2021,1244212,PERSONAL PAYMENTS,,Bi-Borough Director of Integrated Care,"3,320.00"
19/08/2021,1268176,Conquest Care and Support,,Bi-Borough Director of Integrated Care,805.44
21/09/2021,1268176,Conquest Care and Support,,Bi-Borough Director of Integrated Care,"1,266.89"
21/07/2021,1243470,Downing (Chertsey Road) Ltd,,Bi-Borough Director of Integrated Care,"5,971.20"
18/08/2021,1243470,Downing (Chertsey Road) Ltd,,Bi-Borough Director of Integrated Care,"5,971.20"
15/09/2021,1243470,Downing (Chertsey Road) Ltd,,Bi-Borough Director of Integrated Care,"5,971.20"
21/07/2021,1243474,Duckyls Farm Centre,,Bi-Borough Director of Integrated Care,"2,959.12"
18/08/2021,1243474,Duckyls Farm Centre,,Bi-Borough Director of Integrated Care,"2,959.12"
15/09/2021,1243474,Duckyls Farm Centre,,Bi-Borough Director of Integrated Care,"2,959.12"
21/07/2021,1245108,Elysium Healthcare No 2 Ltd,,Bi-Borough Director of Integrated Care,"8,722.20"
18/08/2021,1245108,Elysium Healthcare No 2 Ltd,,Bi-Borough Director of Integrated Care,"8,722.20"
15/09/2021,1245108,Elysium Healthcare No 2 Ltd,,Bi-Borough Director of Integrated Care,"8,722.20"
25/08/2021,1246934,Equal People Mencap (Kensington &,B*Voluntary-Spot-V Dep-Enhanced - do not u,Bi-Borough Director of Integrated Care,"2,880.00"
15/09/2021,1245110,Eric Patrick Care Ltd,,Bi-Borough Director of Integrated Care,"3,934.00"
06/07/2021,1259597,Ethica Services LTD,,Bi-Borough Director of Integrated Care,"1,130.04"
06/07/2021,1259597,Ethica Services LTD,,Bi-Borough Director of Integrated Care,872.56
07/09/2021,1259597,Ethica Services LTD,,Bi-Borough Director of Integrated Care,"1,656.00"
08/09/2021,1259597,Ethica Services LTD,,Bi-Borough Director of Integrated Care,"1,656.00"
06/09/2021,1252498,PERSONAL PAYMENTS,Legal Costs,Bi-Borough Director of Integrated Care,"1,052.50"
09/08/2021,1245058,Foreign & Commonwealth Office,Payments to Voluntary bodies,Bi-Borough Director of Integrated Care,"1,200.00"
21/07/2021,1243483,Greenview Healthcare Ltd,,Bi-Borough Director of Integrated Care,"4,471.00"
18/08/2021,1243483,Greenview Healthcare Ltd,,Bi-Borough Director of Integrated Care,"4,471.00"
15/09/2021,1243483,Greenview Healthcare Ltd,,Bi-Borough Director of Integrated Care,"4,471.00"
21/07/2021,1243485,Grove Care Partnership Ltd,,Bi-Borough Director of Integrated Care,"8,051.84"
18/08/2021,1243485,Grove Care Partnership Ltd,,Bi-Borough Director of Integrated Care,"8,051.84"
15/09/2021,1243485,Grove Care Partnership Ltd,,Bi-Borough Director of Integrated Care,"8,051.84"
21/07/2021,1258503,Guyatt House Care Limited,,Bi-Borough Director of Integrated Care,"7,240.27"
18/08/2021,1258503,Guyatt House Care Limited,,Bi-Borough Director of Integrated Care,"7,081.16"
15/09/2021,1258503,Guyatt House Care Limited,,Bi-Borough Director of Integrated Care,"7,081.16"
10/09/2021,1244531,HCP Staffing Services Ltd,,Bi-Borough Director of Integrated Care,717.88
10/09/2021,1244531,HCP Staffing Services Ltd,,Bi-Borough Director of Integrated Care,717.88
10/09/2021,1244531,HCP Staffing Services Ltd,,Bi-Borough Director of Integrated Care,717.88
10/09/2021,1244531,HCP Staffing Services Ltd,,Bi-Borough Director of Integrated Care,717.88
10/09/2021,1244531,HCP Staffing Services Ltd,,Bi-Borough Director of Integrated Care,717.88
10/09/2021,1244531,HCP Staffing Services Ltd,,Bi-Borough Director of Integrated Care,717.88
10/09/2021,1244531,HCP Staffing Services Ltd,,Bi-Borough Director of Integrated Care,717.88
10/09/2021,1244531,HCP Staffing Services Ltd,,Bi-Borough Director of Integrated Care,717.88
17/09/2021,1244531,HCP Staffing Services Ltd,,Bi-Borough Director of Integrated Care,717.88
21/07/2021,1244549,HF Trust Ltd,,Bi-Borough Director of Integrated Care,"15,714.64"
21/07/2021,1244549,HF Trust Ltd,,Bi-Borough Director of Integrated Care,"3,539.28"
18/08/2021,1244549,HF Trust Ltd,,Bi-Borough Director of Integrated Care,"3,539.28"
18/08/2021,1244549,HF Trust Ltd,,Bi-Borough Director of Integrated Care,"15,117.84"
15/09/2021,1244549,HF Trust Ltd,,Bi-Borough Director of Integrated Care,"3,539.28"
15/09/2021,1244549,HF Trust Ltd,,Bi-Borough Director of Integrated Care,"15,117.84"
21/07/2021,1244515,Hampshire Autistic Society,,Bi-Borough Director of Integrated Care,"5,307.08"
18/08/2021,1244515,Hampshire Autistic Society,,Bi-Borough Director of Integrated Care,"5,307.08"
15/09/2021,1244515,Hampshire Autistic Society,,Bi-Borough Director of Integrated Care,"5,307.08"
21/07/2021,1243490,Haydon Park Lodge Ltd,,Bi-Borough Director of Integrated Care,"4,000.00"
18/08/2021,1243490,Haydon Park Lodge Ltd,,Bi-Borough Director of Integrated Care,"4,000.00"
15/09/2021,1243490,Haydon Park Lodge Ltd,,Bi-Borough Director of Integrated Care,"4,000.00"
21/07/2021,1260257,Hazel Homes for Autism Ltd,,Bi-Borough Director of Integrated Care,861.00
21/07/2021,1260257,Hazel Homes for Autism Ltd,,Bi-Borough Director of Integrated Care,"14,885.24"
18/08/2021,1260257,Hazel Homes for Autism Ltd,,Bi-Borough Director of Integrated Care,861.00
18/08/2021,1260257,Hazel Homes for Autism Ltd,,Bi-Borough Director of Integrated Care,"14,885.24"
15/09/2021,1260257,Hazel Homes for Autism Ltd,,Bi-Borough Director of Integrated Care,"14,885.24"
15/09/2021,1260257,Hazel Homes for Autism Ltd,,Bi-Borough Director of Integrated Care,861.00
02/07/2021,1247257,Health Vision Uk,,Bi-Borough Director of Integrated Care,"2,063.22"
02/07/2021,1247257,Health Vision Uk,,Bi-Borough Director of Integrated Care,"2,063.22"
16/08/2021,1247257,Health Vision Uk,,Bi-Borough Director of Integrated Care,"2,095.44"
16/08/2021,1247257,Health Vision Uk,,Bi-Borough Director of Integrated Care,"2,095.44"
09/09/2021,1247257,Health Vision Uk,,Bi-Borough Director of Integrated Care,"2,062.25"
09/09/2021,1247257,Health Vision Uk,,Bi-Borough Director of Integrated Care,"2,062.25"
30/09/2021,1247257,Health Vision Uk,,Bi-Borough Director of Integrated Care,"2,075.36"
30/09/2021,1247257,Health Vision Uk,,Bi-Borough Director of Integrated Care,"2,071.65"
21/07/2021,1245125,Heathcotes (Southern) Ltd,,Bi-Borough Director of Integrated Care,"7,935.20"
21/07/2021,1245125,Heathcotes (Southern) Ltd,,Bi-Borough Director of Integrated Care,"14,838.72"
18/08/2021,1245125,Heathcotes (Southern) Ltd,,Bi-Borough Director of Integrated Care,"7,935.20"
18/08/2021,1245125,Heathcotes (Southern) Ltd,,Bi-Borough Director of Integrated Care,"14,838.72"
15/09/2021,1245125,Heathcotes (Southern) Ltd,,Bi-Borough Director of Integrated Care,"7,935.20"
15/09/2021,1245125,Heathcotes (Southern) Ltd,,Bi-Borough Director of Integrated Care,"14,838.72"
21/07/2021,1267460,Hunters Lodge Care Home,,Bi-Borough Director of Integrated Care,"3,930.64"
18/08/2021,1267460,Hunters Lodge Care Home,,Bi-Borough Director of Integrated Care,"3,930.64"
15/09/2021,1267460,Hunters Lodge Care Home,,Bi-Borough Director of Integrated Care,"3,930.64"
20/07/2021,1247526,Integrity Care and Support Ltd,B*Voluntary-Spot-V Dep-Enhanced - do not u,Bi-Borough Director of Integrated Care,"1,224.50"
20/07/2021,1247526,Integrity Care and Support Ltd,B*Voluntary-Spot-V Dep-Enhanced - do not u,Bi-Borough Director of Integrated Care,"2,212.00"
20/07/2021,1247526,Integrity Care and Support Ltd,B*Voluntary-Spot-V Dep-Enhanced - do not u,Bi-Borough Director of Integrated Care,948.00
20/07/2021,1247526,Integrity Care and Support Ltd,B*Voluntary-Spot-V Dep-Enhanced - do not u,Bi-Borough Director of Integrated Care,"1,382.50"
20/07/2021,1247526,Integrity Care and Support Ltd,B*Voluntary-Spot-V Dep-Enhanced - do not u,Bi-Borough Director of Integrated Care,651.75
20/07/2021,1247526,Integrity Care and Support Ltd,B*Voluntary-Spot-V Dep-Enhanced - do not u,Bi-Borough Director of Integrated Care,"1,264.00"
20/07/2021,1247526,Integrity Care and Support Ltd,B*Voluntary-Spot-V Dep-Enhanced - do not u,Bi-Borough Director of Integrated Care,"1,659.00"
20/07/2021,1247526,Integrity Care and Support Ltd,B*Voluntary-Spot-V Dep-Enhanced - do not u,Bi-Borough Director of Integrated Care,948.00
20/07/2021,1247526,Integrity Care and Support Ltd,B*Voluntary-Spot-V Dep-Enhanced - do not u,Bi-Borough Director of Integrated Care,711.00
20/07/2021,1247526,Integrity Care and Support Ltd,B*Voluntary-Spot-V Dep-Enhanced - do not u,Bi-Borough Director of Integrated Care,"1,896.00"
20/07/2021,1247526,Integrity Care and Support Ltd,B*Voluntary-Spot-V Dep-Enhanced - do not u,Bi-Borough Director of Integrated Care,"1,106.00"
20/07/2021,1247526,Integrity Care and Support Ltd,B*Voluntary-Spot-V Dep-Enhanced - do not u,Bi-Borough Director of Integrated Care,908.50
20/07/2021,1247526,Integrity Care and Support Ltd,B*Voluntary-Spot-V Dep-Enhanced - do not u,Bi-Borough Director of Integrated Care,948.00
20/07/2021,1247526,Integrity Care and Support Ltd,B*Voluntary-Spot-V Dep-Enhanced - do not u,Bi-Borough Director of Integrated Care,790.00
20/07/2021,1247526,Integrity Care and Support Ltd,B*Voluntary-Spot-V Dep-Enhanced - do not u,Bi-Borough Director of Integrated Care,711.00
16/08/2021,1247526,Integrity Care and Support Ltd,B*Voluntary-Spot-V Dep-Enhanced - do not u,Bi-Borough Director of Integrated Care,592.50
16/08/2021,1247526,Integrity Care and Support Ltd,B*Voluntary-Spot-V Dep-Enhanced - do not u,Bi-Borough Director of Integrated Care,"1,955.25"
16/08/2021,1247526,Integrity Care and Support Ltd,B*Voluntary-Spot-V Dep-Enhanced - do not u,Bi-Borough Director of Integrated Care,"1,204.75"
16/08/2021,1247526,Integrity Care and Support Ltd,B*Voluntary-Spot-V Dep-Enhanced - do not u,Bi-Borough Director of Integrated Care,"1,935.50"
16/08/2021,1247526,Integrity Care and Support Ltd,B*Voluntary-Spot-V Dep-Enhanced - do not u,Bi-Borough Director of Integrated Care,"1,382.50"
16/08/2021,1247526,Integrity Care and Support Ltd,B*Voluntary-Spot-V Dep-Enhanced - do not u,Bi-Borough Director of Integrated Care,948.00
16/08/2021,1247526,Integrity Care and Support Ltd,B*Voluntary-Spot-V Dep-Enhanced - do not u,Bi-Borough Director of Integrated Care,948.00
16/08/2021,1247526,Integrity Care and Support Ltd,B*Voluntary-Spot-V Dep-Enhanced - do not u,Bi-Borough Director of Integrated Care,632.00
16/08/2021,1247526,Integrity Care and Support Ltd,B*Voluntary-Spot-V Dep-Enhanced - do not u,Bi-Borough Director of Integrated Care,"1,303.50"
16/08/2021,1247526,Integrity Care and Support Ltd,B*Voluntary-Spot-V Dep-Enhanced - do not u,Bi-Borough Director of Integrated Care,711.00
16/08/2021,1247526,Integrity Care and Support Ltd,B*Voluntary-Spot-V Dep-Enhanced - do not u,Bi-Borough Director of Integrated Care,"1,185.00"
16/08/2021,1247526,Integrity Care and Support Ltd,B*Voluntary-Spot-V Dep-Enhanced - do not u,Bi-Borough Director of Integrated Care,"1,106.00"
16/08/2021,1247526,Integrity Care and Support Ltd,B*Voluntary-Spot-V Dep-Enhanced - do not u,Bi-Borough Director of Integrated Care,730.75
16/08/2021,1247526,Integrity Care and Support Ltd,B*Voluntary-Spot-V Dep-Enhanced - do not u,Bi-Borough Director of Integrated Care,"1,264.00"
16/08/2021,1247526,Integrity Care and Support Ltd,B*Voluntary-Spot-V Dep-Enhanced - do not u,Bi-Borough Director of Integrated Care,632.00
16/08/2021,1247526,Integrity Care and Support Ltd,B*Voluntary-Spot-V Dep-Enhanced - do not u,Bi-Borough Director of Integrated Care,"1,441.75"
16/08/2021,1247526,Integrity Care and Support Ltd,B*Voluntary-Spot-V Dep-Enhanced - do not u,Bi-Borough Director of Integrated Care,"1,896.00"
03/09/2021,1247526,Integrity Care and Support Ltd,B*Voluntary-Spot-V Dep-Enhanced - do not u,Bi-Borough Director of Integrated Care,770.25
03/09/2021,1247526,Integrity Care and Support Ltd,B*Voluntary-Spot-V Dep-Enhanced - do not u,Bi-Borough Director of Integrated Care,632.00
03/09/2021,1247526,Integrity Care and Support Ltd,B*Voluntary-Spot-V Dep-Enhanced - do not u,Bi-Borough Director of Integrated Care,"1,856.50"
03/09/2021,1247526,Integrity Care and Support Ltd,B*Voluntary-Spot-V Dep-Enhanced - do not u,Bi-Borough Director of Integrated Care,"1,046.75"
03/09/2021,1247526,Integrity Care and Support Ltd,B*Voluntary-Spot-V Dep-Enhanced - do not u,Bi-Borough Director of Integrated Care,770.25
03/09/2021,1247526,Integrity Care and Support Ltd,B*Voluntary-Spot-V Dep-Enhanced - do not u,Bi-Borough Director of Integrated Care,"1,481.25"
03/09/2021,1247526,Integrity Care and Support Ltd,B*Voluntary-Spot-V Dep-Enhanced - do not u,Bi-Borough Director of Integrated Care,"1,106.00"
03/09/2021,1247526,Integrity Care and Support Ltd,B*Voluntary-Spot-V Dep-Enhanced - do not u,Bi-Borough Director of Integrated Care,"1,580.00"
03/09/2021,1247526,Integrity Care and Support Ltd,B*Voluntary-Spot-V Dep-Enhanced - do not u,Bi-Borough Director of Integrated Care,790.00
03/09/2021,1247526,Integrity Care and Support Ltd,B*Voluntary-Spot-V Dep-Enhanced - do not u,Bi-Borough Director of Integrated Care,"1,659.00"
03/09/2021,1247526,Integrity Care and Support Ltd,B*Voluntary-Spot-V Dep-Enhanced - do not u,Bi-Borough Director of Integrated Care,"1,896.00"
03/09/2021,1247526,Integrity Care and Support Ltd,B*Voluntary-Spot-V Dep-Enhanced - do not u,Bi-Borough Director of Integrated Care,711.00
03/09/2021,1247526,Integrity Care and Support Ltd,B*Voluntary-Spot-V Dep-Enhanced - do not u,Bi-Borough Director of Integrated Care,"1,283.75"
03/09/2021,1247526,Integrity Care and Support Ltd,B*Voluntary-Spot-V Dep-Enhanced - do not u,Bi-Borough Director of Integrated Care,"1,935.50"
03/09/2021,1247526,Integrity Care and Support Ltd,B*Voluntary-Spot-V Dep-Enhanced - do not u,Bi-Borough Director of Integrated Care,"1,264.00"
03/09/2021,1247526,Integrity Care and Support Ltd,B*Voluntary-Spot-V Dep-Enhanced - do not u,Bi-Borough Director of Integrated Care,632.00
21/07/2021,1247598,Kisimul Group Ltd,,Bi-Borough Director of Integrated Care,"13,955.32"
18/08/2021,1247598,Kisimul Group Ltd,,Bi-Borough Director of Integrated Care,"13,955.32"
15/09/2021,1247598,Kisimul Group Ltd,,Bi-Borough Director of Integrated Care,"13,955.32"
21/07/2021,1243503,Life Opportunities Trust,,Bi-Borough Director of Integrated Care,"6,095.60"
21/07/2021,1243503,Life Opportunities Trust,,Bi-Borough Director of Integrated Care,"4,663.00"
21/07/2021,1243503,Life Opportunities Trust,,Bi-Borough Director of Integrated Care,"6,199.20"
21/07/2021,1243503,Life Opportunities Trust,,Bi-Borough Director of Integrated Care,"3,399.00"
21/07/2021,1243503,Life Opportunities Trust,,Bi-Borough Director of Integrated Care,"3,399.00"
21/07/2021,1243503,Life Opportunities Trust,,Bi-Borough Director of Integrated Care,"3,399.80"
21/07/2021,1243503,Life Opportunities Trust,,Bi-Borough Director of Integrated Care,"5,176.00"
18/08/2021,1243503,Life Opportunities Trust,,Bi-Borough Director of Integrated Care,"8,669.16"
18/08/2021,1243503,Life Opportunities Trust,,Bi-Borough Director of Integrated Care,"3,399.00"
18/08/2021,1243503,Life Opportunities Trust,,Bi-Borough Director of Integrated Care,"5,176.00"
18/08/2021,1243503,Life Opportunities Trust,,Bi-Borough Director of Integrated Care,"6,095.60"
18/08/2021,1243503,Life Opportunities Trust,,Bi-Borough Director of Integrated Care,"4,663.00"
18/08/2021,1243503,Life Opportunities Trust,,Bi-Borough Director of Integrated Care,"6,199.20"
18/08/2021,1243503,Life Opportunities Trust,,Bi-Borough Director of Integrated Care,"3,399.80"
15/09/2021,1243503,Life Opportunities Trust,,Bi-Borough Director of Integrated Care,"3,399.00"
15/09/2021,1243503,Life Opportunities Trust,,Bi-Borough Director of Integrated Care,"3,399.80"
15/09/2021,1243503,Life Opportunities Trust,,Bi-Borough Director of Integrated Care,"5,176.00"
15/09/2021,1243503,Life Opportunities Trust,,Bi-Borough Director of Integrated Care,"6,095.60"
15/09/2021,1243503,Life Opportunities Trust,,Bi-Borough Director of Integrated Care,"4,663.00"
15/09/2021,1243503,Life Opportunities Trust,,Bi-Borough Director of Integrated Care,"6,199.20"
15/09/2021,1243503,Life Opportunities Trust,,Bi-Borough Director of Integrated Care,"5,340.64"
21/07/2021,1243506,Lifeways Community Care Ltd,,Bi-Borough Director of Integrated Care,"6,760.88"
21/07/2021,1243506,Lifeways Community Care Ltd,,Bi-Borough Director of Integrated Care,"11,633.00"
18/08/2021,1243506,Lifeways Community Care Ltd,,Bi-Borough Director of Integrated Care,"11,633.00"
18/08/2021,1243506,Lifeways Community Care Ltd,,Bi-Borough Director of Integrated Care,"6,760.88"
15/09/2021,1243506,Lifeways Community Care Ltd,,Bi-Borough Director of Integrated Care,"11,633.00"
15/09/2021,1243506,Lifeways Community Care Ltd,,Bi-Borough Director of Integrated Care,"6,760.88"
15/09/2021,1249729,Linden Lodge School,,Bi-Borough Director of Integrated Care,"2,225.72"
21/07/2021,1244762,Livability,,Bi-Borough Director of Integrated Care,"6,180.00"
18/08/2021,1244762,Livability,,Bi-Borough Director of Integrated Care,"6,180.00"
15/09/2021,1244762,Livability,,Bi-Borough Director of Integrated Care,"6,180.00"
13/07/2021,1247650,London Care Ltd,,Bi-Borough Director of Integrated Care,930.00
02/08/2021,1247650,London Care Ltd,,Bi-Borough Director of Integrated Care,740.89
02/08/2021,1247650,London Care Ltd,,Bi-Borough Director of Integrated Care,"1,554.64"
02/08/2021,1247650,London Care Ltd,,Bi-Borough Director of Integrated Care,"1,545.67"
02/08/2021,1247650,London Care Ltd,,Bi-Borough Director of Integrated Care,"1,310.82"
10/08/2021,1247650,London Care Ltd,,Bi-Borough Director of Integrated Care,930.00
06/09/2021,1247650,London Care Ltd,,Bi-Borough Director of Integrated Care,"1,297.44"
06/09/2021,1247650,London Care Ltd,,Bi-Borough Director of Integrated Care,741.20
06/09/2021,1247650,London Care Ltd,,Bi-Borough Director of Integrated Care,"1,555.25"
06/09/2021,1247650,London Care Ltd,,Bi-Borough Director of Integrated Care,"1,536.10"
07/09/2021,1247650,London Care Ltd,,Bi-Borough Director of Integrated Care,"1,536.08"
07/09/2021,1247650,London Care Ltd,,Bi-Borough Director of Integrated Care,"1,340.34"
07/09/2021,1247650,London Care Ltd,,Bi-Borough Director of Integrated Care,754.17
07/09/2021,1247650,London Care Ltd,,Bi-Borough Director of Integrated Care,"1,554.63"
13/09/2021,1247650,London Care Ltd,,Bi-Borough Director of Integrated Care,930.00
24/09/2021,1247650,London Care Ltd,,Bi-Borough Director of Integrated Care,"1,295.74"
24/09/2021,1247650,London Care Ltd,,Bi-Borough Director of Integrated Care,737.18
24/09/2021,1247650,London Care Ltd,,Bi-Borough Director of Integrated Care,"1,556.80"
24/09/2021,1247650,London Care Ltd,,Bi-Borough Director of Integrated Care,"1,538.87"
21/07/2021,1247651,London Care Partnership Ltd,,Bi-Borough Director of Integrated Care,"8,348.56"
18/08/2021,1247651,London Care Partnership Ltd,,Bi-Borough Director of Integrated Care,"8,348.56"
15/09/2021,1247651,London Care Partnership Ltd,,Bi-Borough Director of Integrated Care,"8,348.56"
21/07/2021,1247656,London Cyrenians Housing Ltd,,Bi-Borough Director of Integrated Care,"14,280.00"
18/08/2021,1247656,London Cyrenians Housing Ltd,,Bi-Borough Director of Integrated Care,"14,280.00"
15/09/2021,1247656,London Cyrenians Housing Ltd,,Bi-Borough Director of Integrated Care,"14,280.00"
26/07/2021,1247846,London Vip Cars,Payments to Transport Operators,Bi-Borough Director of Integrated Care,"4,586.50"
20/08/2021,1247846,London Vip Cars,Payments to Transport Operators,Bi-Borough Director of Integrated Care,"4,499.50"
13/07/2021,1259132,MMR Home Care LTD,,Bi-Borough Director of Integrated Care,"1,174.60"
13/07/2021,1259132,MMR Home Care LTD,,Bi-Borough Director of Integrated Care,"1,174.60"
28/07/2021,1259132,MMR Home Care LTD,,Bi-Borough Director of Integrated Care,"1,174.60"
28/07/2021,1259132,MMR Home Care LTD,,Bi-Borough Director of Integrated Care,"1,174.60"
21/07/2021,1245144,Methodist Homes For The Aged,,Bi-Borough Director of Integrated Care,"3,105.16"
18/08/2021,1245144,Methodist Homes For The Aged,,Bi-Borough Director of Integrated Care,"3,105.16"
15/09/2021,1245144,Methodist Homes For The Aged,,Bi-Borough Director of Integrated Care,"3,105.16"
21/07/2021,1247933,Minster Pathways Ltd,,Bi-Borough Director of Integrated Care,"1,248.00"
21/07/2021,1247933,Minster Pathways Ltd,,Bi-Borough Director of Integrated Care,"3,504.00"
18/08/2021,1247933,Minster Pathways Ltd,,Bi-Borough Director of Integrated Care,"3,504.00"
18/08/2021,1247933,Minster Pathways Ltd,,Bi-Borough Director of Integrated Care,"1,248.00"
15/09/2021,1247933,Minster Pathways Ltd,,Bi-Borough Director of Integrated Care,"1,248.00"
15/09/2021,1247933,Minster Pathways Ltd,,Bi-Borough Director of Integrated Care,"3,504.00"
05/07/2021,1244905,Nas Services Ltd (Residential),B*Voluntary-Spot-V Dep-Enhanced - do not u,Bi-Borough Director of Integrated Care,"1,418.44"
05/07/2021,1244905,Nas Services Ltd (Residential),B*Voluntary-Spot-V Dep-Enhanced - do not u,Bi-Borough Director of Integrated Care,"1,247.28"
21/07/2021,1244905,Nas Services Ltd (Residential),,Bi-Borough Director of Integrated Care,"4,058.88"
21/07/2021,1244905,Nas Services Ltd (Residential),,Bi-Borough Director of Integrated Care,"3,379.32"
21/07/2021,1244905,Nas Services Ltd (Residential),,Bi-Borough Director of Integrated Care,"7,400.08"
21/07/2021,1244905,Nas Services Ltd (Residential),,Bi-Borough Director of Integrated Care,"7,738.00"
30/07/2021,1244905,Nas Services Ltd (Residential),B*Voluntary-Spot-V Dep-Enhanced - do not u,Bi-Borough Director of Integrated Care,"1,247.28"
30/07/2021,1244905,Nas Services Ltd (Residential),B*Voluntary-Spot-V Dep-Enhanced - do not u,Bi-Borough Director of Integrated Care,"1,418.44"
18/08/2021,1244905,Nas Services Ltd (Residential),,Bi-Borough Director of Integrated Care,"4,058.88"
18/08/2021,1244905,Nas Services Ltd (Residential),,Bi-Borough Director of Integrated Care,"3,379.32"
18/08/2021,1244905,Nas Services Ltd (Residential),,Bi-Borough Director of Integrated Care,"7,400.08"
18/08/2021,1244905,Nas Services Ltd (Residential),,Bi-Borough Director of Integrated Care,"7,738.00"
01/09/2021,1244905,Nas Services Ltd (Residential),B*Voluntary-Spot-V Dep-Enhanced - do not u,Bi-Borough Director of Integrated Care,"1,418.44"
01/09/2021,1244905,Nas Services Ltd (Residential),B*Voluntary-Spot-V Dep-Enhanced - do not u,Bi-Borough Director of Integrated Care,"1,247.28"
15/09/2021,1244905,Nas Services Ltd (Residential),,Bi-Borough Director of Integrated Care,"7,400.08"
15/09/2021,1244905,Nas Services Ltd (Residential),,Bi-Borough Director of Integrated Care,"3,379.32"
15/09/2021,1244905,Nas Services Ltd (Residential),,Bi-Borough Director of Integrated Care,"7,738.00"
15/09/2021,1244905,Nas Services Ltd (Residential),,Bi-Borough Director of Integrated Care,"4,058.88"
29/09/2021,1244905,Nas Services Ltd (Residential),B*Voluntary-Spot-V Dep-Enhanced - do not u,Bi-Borough Director of Integrated Care,"1,418.44"
29/09/2021,1244905,Nas Services Ltd (Residential),B*Voluntary-Spot-V Dep-Enhanced - do not u,Bi-Borough Director of Integrated Care,"1,247.28"
05/07/2021,1244906,Nas Services Ltd (Use 3009018),B*Voluntary-Spot-V Dep-Enhanced - do not u,Bi-Borough Director of Integrated Care,"2,970.72"
05/07/2021,1244906,Nas Services Ltd (Use 3009018),B*Voluntary-Spot-V Dep-Enhanced - do not u,Bi-Borough Director of Integrated Care,"1,308.36"
05/07/2021,1244906,Nas Services Ltd (Use 3009018),B*Voluntary-Spot-V Dep-Enhanced - do not u,Bi-Borough Director of Integrated Care,"1,124.96"
05/07/2021,1244906,Nas Services Ltd (Use 3009018),B*Voluntary-Spot-V Dep-Enhanced - do not u,Bi-Borough Director of Integrated Care,"2,027.52"
05/07/2021,1244906,Nas Services Ltd (Use 3009018),B*Voluntary-Spot-V Dep-Enhanced - do not u,Bi-Borough Director of Integrated Care,"5,335.00"
05/07/2021,1244906,Nas Services Ltd (Use 3009018),B*Voluntary-Spot-V Dep-Enhanced - do not u,Bi-Borough Director of Integrated Care,"1,744.52"
05/07/2021,1244906,Nas Services Ltd (Use 3009018),B*Voluntary-Spot-V Dep-Enhanced - do not u,Bi-Borough Director of Integrated Care,"2,915.36"
05/07/2021,1244906,Nas Services Ltd (Use 3009018),B*Voluntary-Spot-V Dep-Enhanced - do not u,Bi-Borough Director of Integrated Care,"1,848.96"
05/07/2021,1244906,Nas Services Ltd (Use 3009018),B*Voluntary-Spot-V Dep-Enhanced - do not u,Bi-Borough Director of Integrated Care,"1,772.04"
05/07/2021,1244906,Nas Services Ltd (Use 3009018),B*Voluntary-Spot-V Dep-Enhanced - do not u,Bi-Borough Director of Integrated Care,"4,879.20"
05/07/2021,1244906,Nas Services Ltd (Use 3009018),B*Voluntary-Spot-V Dep-Enhanced - do not u,Bi-Borough Director of Integrated Care,"5,243.80"
20/07/2021,1244906,Nas Services Ltd (Use 3009018),B*Voluntary-Spot-V Dep-Enhanced - do not u,Bi-Borough Director of Integrated Care,"4,810.31"
30/07/2021,1244906,Nas Services Ltd (Use 3009018),B*Voluntary-Spot-V Dep-Enhanced - do not u,Bi-Borough Director of Integrated Care,"5,335.00"
30/07/2021,1244906,Nas Services Ltd (Use 3009018),B*Voluntary-Spot-V Dep-Enhanced - do not u,Bi-Borough Director of Integrated Care,"5,243.80"
30/07/2021,1244906,Nas Services Ltd (Use 3009018),B*Voluntary-Spot-V Dep-Enhanced - do not u,Bi-Borough Director of Integrated Care,"1,744.52"
30/07/2021,1244906,Nas Services Ltd (Use 3009018),B*Voluntary-Spot-V Dep-Enhanced - do not u,Bi-Borough Director of Integrated Care,"4,879.20"
30/07/2021,1244906,Nas Services Ltd (Use 3009018),B*Voluntary-Spot-V Dep-Enhanced - do not u,Bi-Borough Director of Integrated Care,"1,308.36"
30/07/2021,1244906,Nas Services Ltd (Use 3009018),B*Voluntary-Spot-V Dep-Enhanced - do not u,Bi-Borough Director of Integrated Care,"1,772.04"
30/07/2021,1244906,Nas Services Ltd (Use 3009018),B*Voluntary-Spot-V Dep-Enhanced - do not u,Bi-Borough Director of Integrated Care,"2,970.72"
30/07/2021,1244906,Nas Services Ltd (Use 3009018),B*Voluntary-Spot-V Dep-Enhanced - do not u,Bi-Borough Director of Integrated Care,"1,124.96"
30/07/2021,1244906,Nas Services Ltd (Use 3009018),B*Voluntary-Spot-V Dep-Enhanced - do not u,Bi-Borough Director of Integrated Care,"2,915.36"
30/07/2021,1244906,Nas Services Ltd (Use 3009018),B*Voluntary-Spot-V Dep-Enhanced - do not u,Bi-Borough Director of Integrated Care,"2,027.52"
01/09/2021,1244906,Nas Services Ltd (Use 3009018),B*Voluntary-Spot-V Dep-Enhanced - do not u,Bi-Borough Director of Integrated Care,"4,879.20"
01/09/2021,1244906,Nas Services Ltd (Use 3009018),B*Voluntary-Spot-V Dep-Enhanced - do not u,Bi-Borough Director of Integrated Care,"1,772.04"
01/09/2021,1244906,Nas Services Ltd (Use 3009018),B*Voluntary-Spot-V Dep-Enhanced - do not u,Bi-Borough Director of Integrated Care,"1,308.36"
01/09/2021,1244906,Nas Services Ltd (Use 3009018),B*Voluntary-Spot-V Dep-Enhanced - do not u,Bi-Borough Director of Integrated Care,"2,915.36"
01/09/2021,1244906,Nas Services Ltd (Use 3009018),B*Voluntary-Spot-V Dep-Enhanced - do not u,Bi-Borough Director of Integrated Care,"1,744.52"
01/09/2021,1244906,Nas Services Ltd (Use 3009018),B*Voluntary-Spot-V Dep-Enhanced - do not u,Bi-Borough Director of Integrated Care,"2,970.72"
01/09/2021,1244906,Nas Services Ltd (Use 3009018),B*Voluntary-Spot-V Dep-Enhanced - do not u,Bi-Borough Director of Integrated Care,"1,124.96"
01/09/2021,1244906,Nas Services Ltd (Use 3009018),B*Voluntary-Spot-V Dep-Enhanced - do not u,Bi-Borough Director of Integrated Care,"5,243.80"
01/09/2021,1244906,Nas Services Ltd (Use 3009018),B*Voluntary-Spot-V Dep-Enhanced - do not u,Bi-Borough Director of Integrated Care,"5,335.00"
02/09/2021,1244906,Nas Services Ltd (Use 3009018),B*Voluntary-Spot-V Dep-Enhanced - do not u,Bi-Borough Director of Integrated Care,"3,775.55"
06/09/2021,1244906,Nas Services Ltd (Use 3009018),B*Voluntary-Spot-V Dep-Enhanced - do not u,Bi-Borough Director of Integrated Care,"2,027.52"
29/09/2021,1244906,Nas Services Ltd (Use 3009018),B*Voluntary-Spot-V Dep-Enhanced - do not u,Bi-Borough Director of Integrated Care,"5,243.80"
29/09/2021,1244906,Nas Services Ltd (Use 3009018),B*Voluntary-Spot-V Dep-Enhanced - do not u,Bi-Borough Director of Integrated Care,"2,915.36"
29/09/2021,1244906,Nas Services Ltd (Use 3009018),B*Voluntary-Spot-V Dep-Enhanced - do not u,Bi-Borough Director of Integrated Care,"1,772.04"
29/09/2021,1244906,Nas Services Ltd (Use 3009018),B*Voluntary-Spot-V Dep-Enhanced - do not u,Bi-Borough Director of Integrated Care,"1,124.96"
29/09/2021,1244906,Nas Services Ltd (Use 3009018),B*Voluntary-Spot-V Dep-Enhanced - do not u,Bi-Borough Director of Integrated Care,"4,879.20"
29/09/2021,1244906,Nas Services Ltd (Use 3009018),B*Voluntary-Spot-V Dep-Enhanced - do not u,Bi-Borough Director of Integrated Care,"1,308.36"
29/09/2021,1244906,Nas Services Ltd (Use 3009018),B*Voluntary-Spot-V Dep-Enhanced - do not u,Bi-Borough Director of Integrated Care,"2,970.72"
29/09/2021,1244906,Nas Services Ltd (Use 3009018),B*Voluntary-Spot-V Dep-Enhanced - do not u,Bi-Borough Director of Integrated Care,"5,335.00"
29/09/2021,1244906,Nas Services Ltd (Use 3009018),B*Voluntary-Spot-V Dep-Enhanced - do not u,Bi-Borough Director of Integrated Care,"1,744.52"
29/09/2021,1244906,Nas Services Ltd (Use 3009018),B*Voluntary-Spot-V Dep-Enhanced - do not u,Bi-Borough Director of Integrated Care,"2,027.52"
21/07/2021,1247147,Norwood Schools Ltd,,Bi-Borough Director of Integrated Care,"8,758.72"
21/07/2021,1247147,Norwood Schools Ltd,,Bi-Borough Director of Integrated Care,"6,755.08"
21/07/2021,1247147,Norwood Schools Ltd,,Bi-Borough Director of Integrated Care,"5,998.48"
21/07/2021,1247147,Norwood Schools Ltd,,Bi-Borough Director of Integrated Care,"5,253.52"
18/08/2021,1247147,Norwood Schools Ltd,,Bi-Borough Director of Integrated Care,"5,998.48"
18/08/2021,1247147,Norwood Schools Ltd,,Bi-Borough Director of Integrated Care,"5,253.52"
18/08/2021,1247147,Norwood Schools Ltd,,Bi-Borough Director of Integrated Care,"8,758.72"
18/08/2021,1247147,Norwood Schools Ltd,,Bi-Borough Director of Integrated Care,"6,755.08"
15/09/2021,1247147,Norwood Schools Ltd,,Bi-Borough Director of Integrated Care,"5,998.48"
15/09/2021,1247147,Norwood Schools Ltd,,Bi-Borough Director of Integrated Care,"5,253.52"
15/09/2021,1247147,Norwood Schools Ltd,,Bi-Borough Director of Integrated Care,"8,758.72"
15/09/2021,1247147,Norwood Schools Ltd,,Bi-Borough Director of Integrated Care,"6,755.08"
21/07/2021,1273024,Oakland Support Ltd,,Bi-Borough Director of Integrated Care,"2,151.80"
21/07/2021,1273024,Oakland Support Ltd,,Bi-Borough Director of Integrated Care,"2,151.80"
18/08/2021,1273024,Oakland Support Ltd,,Bi-Borough Director of Integrated Care,"1,460.15"
18/08/2021,1273024,Oakland Support Ltd,,Bi-Borough Director of Integrated Care,"1,460.15"
21/07/2021,1243520,Oakview Care (Berkshire) Ltd,,Bi-Borough Director of Integrated Care,"6,699.96"
18/08/2021,1243520,Oakview Care (Berkshire) Ltd,,Bi-Borough Director of Integrated Care,"6,699.96"
15/09/2021,1243520,Oakview Care (Berkshire) Ltd,,Bi-Borough Director of Integrated Care,"6,699.96"
14/07/2021,1244970,Octavia Housing & Care (Rent,,Bi-Borough Director of Integrated Care,"1,787.26"
14/07/2021,1244970,Octavia Housing & Care (Rent,Rent,Bi-Borough Director of Integrated Care,"1,787.26"
29/09/2021,1244970,Octavia Housing & Care (Rent,Rent,Bi-Borough Director of Integrated Care,"1,787.26"
14/07/2021,1244971,Octavia Housing (Main Account),Hire of Accommodation and Facilities,Bi-Borough Director of Integrated Care,"1,787.26"
23/07/2021,1248252,Origin Housing Ltd,B*Voluntary-Spot-V Dep-Enhanced - do not u,Bi-Borough Director of Integrated Care,960.00
23/07/2021,1248252,Origin Housing Ltd,B*Voluntary-Spot-V Dep-Enhanced - do not u,Bi-Borough Director of Integrated Care,"1,920.00"
23/07/2021,1248252,Origin Housing Ltd,B*Voluntary-Spot-V Dep-Enhanced - do not u,Bi-Borough Director of Integrated Care,660.00
23/07/2021,1248252,Origin Housing Ltd,B*Voluntary-Spot-V Dep-Enhanced - do not u,Bi-Borough Director of Integrated Care,960.00
21/07/2021,1243524,PERSONAL PAYMENTS,,Bi-Borough Director of Integrated Care,936.00
21/07/2021,1243524,PERSONAL PAYMENTS,,Bi-Borough Director of Integrated Care,"3,379.76"
18/08/2021,1243524,PERSONAL PAYMENTS,,Bi-Borough Director of Integrated Care,936.00
18/08/2021,1243524,PERSONAL PAYMENTS,,Bi-Borough Director of Integrated Care,"3,379.76"
15/09/2021,1243524,PERSONAL PAYMENTS,,Bi-Borough Director of Integrated Care,936.00
15/09/2021,1243524,PERSONAL PAYMENTS,,Bi-Borough Director of Integrated Care,"3,379.76"
21/07/2021,1245005,PERSONAL PAYMENTS,,Bi-Borough Director of Integrated Care,"1,744.80"
21/07/2021,1245005,PERSONAL PAYMENTS,,Bi-Borough Director of Integrated Care,"2,146.88"
21/07/2021,1245005,PERSONAL PAYMENTS,,Bi-Borough Director of Integrated Care,"2,842.88"
21/07/2021,1245005,PERSONAL PAYMENTS,,Bi-Borough Director of Integrated Care,"2,146.88"
21/07/2021,1245005,PERSONAL PAYMENTS,,Bi-Borough Director of Integrated Care,"1,337.68"
21/07/2021,1245005,PERSONAL PAYMENTS,,Bi-Borough Director of Integrated Care,"2,902.96"
18/08/2021,1245005,PERSONAL PAYMENTS,,Bi-Borough Director of Integrated Care,"2,146.88"
18/08/2021,1245005,PERSONAL PAYMENTS,,Bi-Borough Director of Integrated Care,"1,744.80"
18/08/2021,1245005,PERSONAL PAYMENTS,,Bi-Borough Director of Integrated Care,"2,842.88"
18/08/2021,1245005,PERSONAL PAYMENTS,,Bi-Borough Director of Integrated Care,"2,146.88"
18/08/2021,1245005,PERSONAL PAYMENTS,,Bi-Borough Director of Integrated Care,"1,337.68"
18/08/2021,1245005,PERSONAL PAYMENTS,,Bi-Borough Director of Integrated Care,"2,902.96"
15/09/2021,1245005,PERSONAL PAYMENTS,,Bi-Borough Director of Integrated Care,"2,842.88"
15/09/2021,1245005,PERSONAL PAYMENTS,,Bi-Borough Director of Integrated Care,"1,337.68"
15/09/2021,1245005,PERSONAL PAYMENTS,,Bi-Borough Director of Integrated Care,"2,146.88"
15/09/2021,1245005,PERSONAL PAYMENTS,,Bi-Borough Director of Integrated Care,"2,902.96"
15/09/2021,1245005,PERSONAL PAYMENTS,,Bi-Borough Director of Integrated Care,"2,146.88"
15/09/2021,1245005,PERSONAL PAYMENTS,,Bi-Borough Director of Integrated Care,"1,744.80"
02/07/2021,1248148,PERSONAL PAYMENTS,Adult Social Care - Other Transfer Pay,Bi-Borough Director of Integrated Care,"1,638.96"
02/07/2021,1246066,Barrie Bookkeeping & Payroll,Adult Social Care - Other Transfer Pay,Bi-Borough Director of Integrated Care,"5,754.04"
02/07/2021,1246066,Barrie Bookkeeping & Payroll,Adult Social Care - Other Transfer Pay,Bi-Borough Director of Integrated Care,"5,914.56"
02/07/2021,1246066,Barrie Bookkeeping & Payroll,Adult Social Care - Other Transfer Pay,Bi-Borough Director of Integrated Care,"2,483.40"
02/07/2021,1246066,Barrie Bookkeeping & Payroll,Adult Social Care - Other Transfer Pay,Bi-Borough Director of Integrated Care,"1,791.60"
02/07/2021,1247820,PERSONAL PAYMENTS,Adult Social Care - Other Transfer Pay,Bi-Borough Director of Integrated Care,"8,751.04"
02/07/2021,1250627,PERSONAL PAYMENTS,Social Care - Direct Payments,Bi-Borough Director of Integrated Care,"2,253.00"
02/07/2021,1246066,Barrie Bookkeeping & Payroll,Adult Social Care - Other Transfer Pay,Bi-Borough Director of Integrated Care,"2,740.12"
02/07/2021,1246066,Barrie Bookkeeping & Payroll,Adult Social Care - Other Transfer Pay,Bi-Borough Director of Integrated Care,773.20
02/07/2021,1246066,Barrie Bookkeeping & Payroll,Adult Social Care - Other Transfer Pay,Bi-Borough Director of Integrated Care,818.00
02/07/2021,1248995,PERSONAL PAYMENTS,Adult Social Care - Other Transfer Pay,Bi-Borough Director of Integrated Care,540.00
02/07/2021,1250186,PERSONAL PAYMENTS,Adult Social Care - Other Transfer Pay,Bi-Borough Director of Integrated Care,"3,121.48"
02/07/2021,1246066,Barrie Bookkeeping & Payroll,Adult Social Care - Other Transfer Pay,Bi-Borough Director of Integrated Care,876.08
02/07/2021,1248154,PERSONAL PAYMENTS,Adult Social Care - Other Transfer Pay,Bi-Borough Director of Integrated Care,"1,540.00"
02/07/2021,1246066,Barrie Bookkeeping & Payroll,Adult Social Care - Other Transfer Pay,Bi-Borough Director of Integrated Care,"2,830.00"
02/07/2021,1246066,Barrie Bookkeeping & Payroll,Adult Social Care - Other Transfer Pay,Bi-Borough Director of Integrated Care,"2,585.32"
02/07/2021,1248010,PERSONAL PAYMENTS,Adult Social Care - Other Transfer Pay,Bi-Borough Director of Integrated Care,541.44
02/07/2021,1246066,Barrie Bookkeeping & Payroll,Adult Social Care - Other Transfer Pay,Bi-Borough Director of Integrated Care,"1,991.00"
02/07/2021,1254540,PERSONAL PAYMENTS,Adult Social Care - Other Transfer Pay,Bi-Borough Director of Integrated Care,811.80
02/07/2021,1250674,PERSONAL PAYMENTS,Adult Social Care - Other Transfer Pay,Bi-Borough Director of Integrated Care,"2,895.06"
02/07/2021,1250656,PERSONAL PAYMENTS,Social Care - Direct Payments,Bi-Borough Director of Integrated Care,"1,118.36"
02/07/2021,1249009,PERSONAL PAYMENTS,Social Care - Direct Payments,Bi-Borough Director of Integrated Care,"2,301.12"
02/07/2021,1250670,PERSONAL PAYMENTS,Adult Social Care - Other Transfer Pay,Bi-Borough Director of Integrated Care,"1,024.00"
02/07/2021,1278955,PERSONAL PAYMENTS,Social Care - Direct Payments,Bi-Borough Director of Integrated Care,"1,289.24"
02/07/2021,1250612,PERSONAL PAYMENTS,Social Care - Direct Payments,Bi-Borough Director of Integrated Care,540.00
02/07/2021,1249796,PERSONAL PAYMENTS,Adult Social Care - Other Transfer Pay,Bi-Borough Director of Integrated Care,999.16
02/07/2021,1248292,PERSONAL PAYMENTS,Adult Social Care - Other Transfer Pay,Bi-Borough Director of Integrated Care,"1,208.96"
02/07/2021,1250215,PERSONAL PAYMENTS,Adult Social Care - Other Transfer Pay,Bi-Borough Director of Integrated Care,837.88
02/07/2021,1246066,Barrie Bookkeeping & Payroll,Adult Social Care - Other Transfer Pay,Bi-Borough Director of Integrated Care,"1,791.86"
02/07/2021,1246066,Barrie Bookkeeping & Payroll,Adult Social Care - Other Transfer Pay,Bi-Borough Director of Integrated Care,733.80
02/07/2021,1246066,Barrie Bookkeeping & Payroll,Adult Social Care - Other Transfer Pay,Bi-Borough Director of Integrated Care,"3,240.60"
02/07/2021,1250012,PERSONAL PAYMENTS,Adult Social Care - Other Transfer Pay,Bi-Borough Director of Integrated Care,"2,015.00"
02/07/2021,1280973,PERSONAL PAYMENTS,Adult Social Care - Other Transfer Pay,Bi-Borough Director of Integrated Care,"15,592.20"
02/07/2021,1250037,PERSONAL PAYMENTS,Adult Social Care - Other Transfer Pay,Bi-Borough Director of Integrated Care,"2,616.13"
02/07/2021,1247727,PERSONAL PAYMENTS,Social Care - Direct Payments,Bi-Borough Director of Integrated Care,"2,740.72"
02/07/2021,1247355,PERSONAL PAYMENTS,Social Care - Direct Payments,Bi-Borough Director of Integrated Care,857.28
02/07/2021,1247804,PERSONAL PAYMENTS,Social Care - Direct Payments,Bi-Borough Director of Integrated Care,902.40
02/07/2021,1256833,PERSONAL PAYMENTS,Adult Social Care - Other Transfer Pay,Bi-Borough Director of Integrated Care,572.00
02/07/2021,1250074,PERSONAL PAYMENTS,Adult Social Care - Other Transfer Pay,Bi-Borough Director of Integrated Care,"8,290.76"
02/07/2021,1246066,Barrie Bookkeeping & Payroll,Adult Social Care - Other Transfer Pay,Bi-Borough Director of Integrated Care,"3,643.20"
02/07/2021,1246066,Barrie Bookkeeping & Payroll,Adult Social Care - Other Transfer Pay,Bi-Borough Director of Integrated Care,"1,066.28"
02/07/2021,1250044,PERSONAL PAYMENTS,Adult Social Care - Other Transfer Pay,Bi-Borough Director of Integrated Care,648.00
02/07/2021,1246066,Barrie Bookkeeping & Payroll,Adult Social Care - Other Transfer Pay,Bi-Borough Director of Integrated Care,"11,660.64"
02/07/2021,1248292,PERSONAL PAYMENTS,Adult Social Care - Other Transfer Pay,Bi-Borough Director of Integrated Care,"8,640.00"
02/07/2021,1250310,PERSONAL PAYMENTS,Adult Social Care - Other Transfer Pay,Bi-Borough Director of Integrated Care,"1,368.00"
02/07/2021,1248354,PERSONAL PAYMENTS,Adult Social Care - Other Transfer Pay,Bi-Borough Director of Integrated Care,"3,026.00"
02/07/2021,1268346,PERSONAL PAYMENTS,Adult Social Care - Other Transfer Pay,Bi-Borough Director of Integrated Care,"1,623.40"
02/07/2021,1250138,PERSONAL PAYMENTS,Adult Social Care - Other Transfer Pay,Bi-Borough Director of Integrated Care,"1,240.84"
02/07/2021,1249942,PERSONAL PAYMENTS,Adult Social Care - Other Transfer Pay,Bi-Borough Director of Integrated Care,"5,975.56"
02/07/2021,1246066,Barrie Bookkeeping & Payroll,Adult Social Care - Other Transfer Pay,Bi-Borough Director of Integrated Care,"4,603.40"
08/07/2021,1245825,Sweet Tree Home Care Services,Adult Social Care - Other Transfer Pay,Bi-Borough Director of Integrated Care,"2,359.39"
22/07/2021,1246066,Barrie Bookkeeping & Payroll,Adult Social Care - Other Transfer Pay,Bi-Borough Director of Integrated Care,"9,139.62"
30/07/2021,1246066,Barrie Bookkeeping & Payroll,Adult Social Care - Other Transfer Pay,Bi-Borough Director of Integrated Care,"11,660.64"
30/07/2021,1250310,PERSONAL PAYMENTS,Adult Social Care - Other Transfer Pay,Bi-Borough Director of Integrated Care,"1,368.00"
30/07/2021,1248354,PERSONAL PAYMENTS,Adult Social Care - Other Transfer Pay,Bi-Borough Director of Integrated Care,"3,026.00"
30/07/2021,1246066,Barrie Bookkeeping & Payroll,Adult Social Care - Other Transfer Pay,Bi-Borough Director of Integrated Care,"2,611.32"
30/07/2021,1268346,PERSONAL PAYMENTS,Adult Social Care - Other Transfer Pay,Bi-Borough Director of Integrated Care,"1,623.40"
30/07/2021,1250138,PERSONAL PAYMENTS,Adult Social Care - Other Transfer Pay,Bi-Borough Director of Integrated Care,"1,240.84"
30/07/2021,1249942,PERSONAL PAYMENTS,Adult Social Care - Other Transfer Pay,Bi-Borough Director of Integrated Care,"5,975.56"
30/07/2021,1246066,Barrie Bookkeeping & Payroll,Adult Social Care - Other Transfer Pay,Bi-Borough Director of Integrated Care,"4,603.40"
30/07/2021,1248148,PERSONAL PAYMENTS,Adult Social Care - Other Transfer Pay,Bi-Borough Director of Integrated Care,"1,638.96"
30/07/2021,1246066,Barrie Bookkeeping & Payroll,Adult Social Care - Other Transfer Pay,Bi-Borough Director of Integrated Care,"5,754.04"
30/07/2021,1246066,Barrie Bookkeeping & Payroll,Adult Social Care - Other Transfer Pay,Bi-Borough Director of Integrated Care,"5,914.56"
30/07/2021,1246066,Barrie Bookkeeping & Payroll,Adult Social Care - Other Transfer Pay,Bi-Borough Director of Integrated Care,"2,483.40"
30/07/2021,1246066,Barrie Bookkeeping & Payroll,Adult Social Care - Other Transfer Pay,Bi-Borough Director of Integrated Care,"1,791.60"
30/07/2021,1247820,PERSONAL PAYMENTS,Adult Social Care - Other Transfer Pay,Bi-Borough Director of Integrated Care,"8,751.04"
30/07/2021,1280973,PERSONAL PAYMENTS,Adult Social Care - Other Transfer Pay,Bi-Borough Director of Integrated Care,"6,236.88"
30/07/2021,1246066,Barrie Bookkeeping & Payroll,Adult Social Care - Other Transfer Pay,Bi-Borough Director of Integrated Care,"1,120.92"
30/07/2021,1246066,Barrie Bookkeeping & Payroll,Adult Social Care - Other Transfer Pay,Bi-Borough Director of Integrated Care,773.20
30/07/2021,1246066,Barrie Bookkeeping & Payroll,Adult Social Care - Other Transfer Pay,Bi-Borough Director of Integrated Care,818.00
30/07/2021,1250186,PERSONAL PAYMENTS,Adult Social Care - Other Transfer Pay,Bi-Borough Director of Integrated Care,"3,121.48"
30/07/2021,1250627,PERSONAL PAYMENTS,Adult Social Care - Other Transfer Pay,Bi-Borough Director of Integrated Care,"11,554.71"
30/07/2021,1250656,PERSONAL PAYMENTS,Social Care - Direct Payments,Bi-Borough Director of Integrated Care,"1,118.36"
30/07/2021,1249009,PERSONAL PAYMENTS,Social Care - Direct Payments,Bi-Borough Director of Integrated Care,"2,301.12"
30/07/2021,1246066,Barrie Bookkeeping & Payroll,Adult Social Care - Other Transfer Pay,Bi-Borough Director of Integrated Care,876.08
30/07/2021,1248154,PERSONAL PAYMENTS,Adult Social Care - Other Transfer Pay,Bi-Borough Director of Integrated Care,"1,540.00"
30/07/2021,1248292,PERSONAL PAYMENTS,Adult Social Care - Other Transfer Pay,Bi-Borough Director of Integrated Care,"1,208.96"
30/07/2021,1250215,PERSONAL PAYMENTS,Adult Social Care - Other Transfer Pay,Bi-Borough Director of Integrated Care,837.88
30/07/2021,1246066,Barrie Bookkeeping & Payroll,Adult Social Care - Other Transfer Pay,Bi-Borough Director of Integrated Care,"1,688.60"
30/07/2021,1246066,Barrie Bookkeeping & Payroll,Adult Social Care - Other Transfer Pay,Bi-Borough Director of Integrated Care,"2,830.00"
30/07/2021,1246066,Barrie Bookkeeping & Payroll,Adult Social Care - Other Transfer Pay,Bi-Borough Director of Integrated Care,"2,585.32"
30/07/2021,1246066,Barrie Bookkeeping & Payroll,Adult Social Care - Other Transfer Pay,Bi-Borough Director of Integrated Care,733.80
30/07/2021,1246066,Barrie Bookkeeping & Payroll,Adult Social Care - Other Transfer Pay,Bi-Borough Director of Integrated Care,"2,452.20"
30/07/2021,1248010,PERSONAL PAYMENTS,Adult Social Care - Other Transfer Pay,Bi-Borough Director of Integrated Care,775.04
30/07/2021,1246066,Barrie Bookkeeping & Payroll,Adult Social Care - Other Transfer Pay,Bi-Borough Director of Integrated Care,"1,991.00"
30/07/2021,1254540,PERSONAL PAYMENTS,Adult Social Care - Other Transfer Pay,Bi-Borough Director of Integrated Care,811.80
30/07/2021,1256833,PERSONAL PAYMENTS,Adult Social Care - Other Transfer Pay,Bi-Borough Director of Integrated Care,572.00
30/07/2021,1250674,PERSONAL PAYMENTS,Adult Social Care - Other Transfer Pay,Bi-Borough Director of Integrated Care,"2,652.16"
30/07/2021,1250074,PERSONAL PAYMENTS,Adult Social Care - Other Transfer Pay,Bi-Borough Director of Integrated Care,"8,290.76"
30/07/2021,1246066,Barrie Bookkeeping & Payroll,Adult Social Care - Other Transfer Pay,Bi-Borough Director of Integrated Care,"1,821.60"
30/07/2021,1246066,Barrie Bookkeeping & Payroll,Adult Social Care - Other Transfer Pay,Bi-Borough Director of Integrated Care,"1,066.28"
30/07/2021,1250044,PERSONAL PAYMENTS,Adult Social Care - Other Transfer Pay,Bi-Borough Director of Integrated Care,648.00
30/07/2021,1250670,PERSONAL PAYMENTS,Adult Social Care - Other Transfer Pay,Bi-Borough Director of Integrated Care,"1,024.00"
30/07/2021,1278955,PERSONAL PAYMENTS,Social Care - Direct Payments,Bi-Borough Director of Integrated Care,"1,289.24"
30/07/2021,1249796,PERSONAL PAYMENTS,Adult Social Care - Other Transfer Pay,Bi-Borough Director of Integrated Care,999.16
30/07/2021,1248292,PERSONAL PAYMENTS,Adult Social Care - Other Transfer Pay,Bi-Borough Director of Integrated Care,"8,640.00"
30/07/2021,1250012,PERSONAL PAYMENTS,Adult Social Care - Other Transfer Pay,Bi-Borough Director of Integrated Care,"2,015.00"
30/07/2021,1250037,PERSONAL PAYMENTS,Adult Social Care - Other Transfer Pay,Bi-Borough Director of Integrated Care,"2,383.72"
30/07/2021,1247727,PERSONAL PAYMENTS,Social Care - Direct Payments,Bi-Borough Director of Integrated Care,"2,740.72"
30/07/2021,1247355,PERSONAL PAYMENTS,Social Care - Direct Payments,Bi-Borough Director of Integrated Care,857.28
30/07/2021,1247804,PERSONAL PAYMENTS,Social Care - Direct Payments,Bi-Borough Director of Integrated Care,902.40
02/08/2021,1250186,PERSONAL PAYMENTS,Adult Social Care - Other Transfer Pay,Bi-Borough Director of Integrated Care,"2,408.75"
27/08/2021,1246066,Barrie Bookkeeping & Payroll,Adult Social Care - Other Transfer Pay,Bi-Borough Director of Integrated Care,"2,611.32"
27/08/2021,1268346,PERSONAL PAYMENTS,Adult Social Care - Other Transfer Pay,Bi-Borough Director of Integrated Care,"1,623.40"
27/08/2021,1250138,PERSONAL PAYMENTS,Adult Social Care - Other Transfer Pay,Bi-Borough Director of Integrated Care,"1,240.84"
27/08/2021,1249942,PERSONAL PAYMENTS,Adult Social Care - Other Transfer Pay,Bi-Borough Director of Integrated Care,"5,975.56"
27/08/2021,1246066,Barrie Bookkeeping & Payroll,Adult Social Care - Other Transfer Pay,Bi-Borough Director of Integrated Care,"4,603.40"
27/08/2021,1248354,PERSONAL PAYMENTS,Adult Social Care - Other Transfer Pay,Bi-Borough Director of Integrated Care,"3,026.00"
27/08/2021,1248292,PERSONAL PAYMENTS,Adult Social Care - Other Transfer Pay,Bi-Borough Director of Integrated Care,"1,208.96"
27/08/2021,1250215,PERSONAL PAYMENTS,Adult Social Care - Other Transfer Pay,Bi-Borough Director of Integrated Care,837.88
27/08/2021,1248148,PERSONAL PAYMENTS,Adult Social Care - Other Transfer Pay,Bi-Borough Director of Integrated Care,"1,638.96"
27/08/2021,1246066,Barrie Bookkeeping & Payroll,Adult Social Care - Other Transfer Pay,Bi-Borough Director of Integrated Care,"5,754.04"
27/08/2021,1246066,Barrie Bookkeeping & Payroll,Adult Social Care - Other Transfer Pay,Bi-Borough Director of Integrated Care,"5,914.56"
27/08/2021,1246066,Barrie Bookkeeping & Payroll,Adult Social Care - Other Transfer Pay,Bi-Borough Director of Integrated Care,"2,483.40"
27/08/2021,1246066,Barrie Bookkeeping & Payroll,Adult Social Care - Other Transfer Pay,Bi-Borough Director of Integrated Care,"1,791.60"
27/08/2021,1247820,PERSONAL PAYMENTS,Adult Social Care - Other Transfer Pay,Bi-Borough Director of Integrated Care,"8,751.04"
27/08/2021,1280973,PERSONAL PAYMENTS,Adult Social Care - Other Transfer Pay,Bi-Borough Director of Integrated Care,"6,236.88"
27/08/2021,1256833,PERSONAL PAYMENTS,Adult Social Care - Other Transfer Pay,Bi-Borough Director of Integrated Care,572.00
27/08/2021,1250074,PERSONAL PAYMENTS,Adult Social Care - Other Transfer Pay,Bi-Borough Director of Integrated Care,"8,290.76"
27/08/2021,1246066,Barrie Bookkeeping & Payroll,Adult Social Care - Other Transfer Pay,Bi-Borough Director of Integrated Care,"1,821.60"
27/08/2021,1246066,Barrie Bookkeeping & Payroll,Adult Social Care - Other Transfer Pay,Bi-Borough Director of Integrated Care,"1,066.28"
27/08/2021,1250044,PERSONAL PAYMENTS,Adult Social Care - Other Transfer Pay,Bi-Borough Director of Integrated Care,648.00
27/08/2021,1246066,Barrie Bookkeeping & Payroll,Adult Social Care - Other Transfer Pay,Bi-Borough Director of Integrated Care,"1,688.60"
27/08/2021,1246066,Barrie Bookkeeping & Payroll,Adult Social Care - Other Transfer Pay,Bi-Borough Director of Integrated Care,733.80
27/08/2021,1246066,Barrie Bookkeeping & Payroll,Adult Social Care - Other Transfer Pay,Bi-Borough Director of Integrated Care,"2,452.20"
27/08/2021,1248292,PERSONAL PAYMENTS,Adult Social Care - Other Transfer Pay,Bi-Borough Director of Integrated Care,"8,640.00"
27/08/2021,1246066,Barrie Bookkeeping & Payroll,Adult Social Care - Other Transfer Pay,Bi-Borough Director of Integrated Care,"2,092.44"
27/08/2021,1246066,Barrie Bookkeeping & Payroll,Adult Social Care - Other Transfer Pay,Bi-Borough Director of Integrated Care,773.20
27/08/2021,1250656,PERSONAL PAYMENTS,Social Care - Direct Payments,Bi-Borough Director of Integrated Care,"1,118.36"
27/08/2021,1246066,Barrie Bookkeeping & Payroll,Adult Social Care - Other Transfer Pay,Bi-Borough Director of Integrated Care,818.00
27/08/2021,1250186,PERSONAL PAYMENTS,Adult Social Care - Other Transfer Pay,Bi-Borough Director of Integrated Care,"3,121.48"
27/08/2021,1246066,Barrie Bookkeeping & Payroll,Adult Social Care - Other Transfer Pay,Bi-Borough Director of Integrated Care,876.08
27/08/2021,1282437,PERSONAL PAYMENTS,Social Care - Direct Payments,Bi-Borough Director of Integrated Care,"2,301.12"
27/08/2021,1246066,Barrie Bookkeeping & Payroll,Adult Social Care - Other Transfer Pay,Bi-Borough Director of Integrated Care,"2,830.00"
27/08/2021,1246066,Barrie Bookkeeping & Payroll,Adult Social Care - Other Transfer Pay,Bi-Borough Director of Integrated Care,"2,585.32"
27/08/2021,1248010,PERSONAL PAYMENTS,Adult Social Care - Other Transfer Pay,Bi-Borough Director of Integrated Care,634.88
27/08/2021,1246066,Barrie Bookkeeping & Payroll,Adult Social Care - Other Transfer Pay,Bi-Borough Director of Integrated Care,"1,991.00"
27/08/2021,1250674,PERSONAL PAYMENTS,Adult Social Care - Other Transfer Pay,Bi-Borough Director of Integrated Care,"2,652.16"
27/08/2021,1254540,PERSONAL PAYMENTS,Adult Social Care - Other Transfer Pay,Bi-Borough Director of Integrated Care,811.80
27/08/2021,1250670,PERSONAL PAYMENTS,Adult Social Care - Other Transfer Pay,Bi-Borough Director of Integrated Care,"1,024.00"
27/08/2021,1278955,PERSONAL PAYMENTS,Social Care - Direct Payments,Bi-Borough Director of Integrated Care,"1,289.24"
27/08/2021,1249796,PERSONAL PAYMENTS,Adult Social Care - Other Transfer Pay,Bi-Borough Director of Integrated Care,999.16
27/08/2021,1250012,PERSONAL PAYMENTS,Adult Social Care - Other Transfer Pay,Bi-Borough Director of Integrated Care,"2,015.00"
27/08/2021,1250037,PERSONAL PAYMENTS,Adult Social Care - Other Transfer Pay,Bi-Borough Director of Integrated Care,"2,383.72"
27/08/2021,1247727,PERSONAL PAYMENTS,Social Care - Direct Payments,Bi-Borough Director of Integrated Care,"2,740.72"
27/08/2021,1247727,PERSONAL PAYMENTS,Social Care - Direct Payments,Bi-Borough Director of Integrated Care,"3,599.37"
27/08/2021,1247804,PERSONAL PAYMENTS,Social Care - Direct Payments,Bi-Borough Director of Integrated Care,902.40
27/08/2021,1246066,Barrie Bookkeeping & Payroll,Adult Social Care - Other Transfer Pay,Bi-Borough Director of Integrated Care,"11,660.64"
27/08/2021,1250627,PERSONAL PAYMENTS,Adult Social Care - Other Transfer Pay,Bi-Borough Director of Integrated Care,"2,508.00"
27/08/2021,1250310,PERSONAL PAYMENTS,Adult Social Care - Other Transfer Pay,Bi-Borough Director of Integrated Care,"1,368.00"
01/09/2021,1245825,Sweet Tree Home Care Services,Adult Social Care - Other Transfer Pay,Bi-Borough Director of Integrated Care,"3,777.51"
13/09/2021,1245825,Sweet Tree Home Care Services,Adult Social Care - Other Transfer Pay,Bi-Borough Director of Integrated Care,"3,935.20"
24/09/2021,1248292,PERSONAL PAYMENTS,Adult Social Care - Other Transfer Pay,Bi-Borough Director of Integrated Care,"1,208.96"
24/09/2021,1250215,PERSONAL PAYMENTS,Adult Social Care - Other Transfer Pay,Bi-Borough Director of Integrated Care,837.88
24/09/2021,1246066,Barrie Bookkeeping & Payroll,Adult Social Care - Other Transfer Pay,Bi-Borough Director of Integrated Care,"1,688.60"
24/09/2021,1246066,Barrie Bookkeeping & Payroll,Adult Social Care - Other Transfer Pay,Bi-Borough Director of Integrated Care,733.80
24/09/2021,1246066,Barrie Bookkeeping & Payroll,Adult Social Care - Other Transfer Pay,Bi-Borough Director of Integrated Care,"2,452.20"
24/09/2021,1256833,PERSONAL PAYMENTS,Adult Social Care - Other Transfer Pay,Bi-Borough Director of Integrated Care,572.00
24/09/2021,1250074,PERSONAL PAYMENTS,Adult Social Care - Other Transfer Pay,Bi-Borough Director of Integrated Care,"8,290.76"
24/09/2021,1246066,Barrie Bookkeeping & Payroll,Adult Social Care - Other Transfer Pay,Bi-Borough Director of Integrated Care,"1,821.60"
24/09/2021,1246066,Barrie Bookkeeping & Payroll,Adult Social Care - Other Transfer Pay,Bi-Borough Director of Integrated Care,"1,066.28"
24/09/2021,1250044,PERSONAL PAYMENTS,Adult Social Care - Other Transfer Pay,Bi-Borough Director of Integrated Care,648.00
24/09/2021,1248292,PERSONAL PAYMENTS,Adult Social Care - Other Transfer Pay,Bi-Borough Director of Integrated Care,"8,640.00"
24/09/2021,1246066,Barrie Bookkeeping & Payroll,Adult Social Care - Other Transfer Pay,Bi-Borough Director of Integrated Care,818.00
24/09/2021,1250186,PERSONAL PAYMENTS,Adult Social Care - Other Transfer Pay,Bi-Borough Director of Integrated Care,"3,121.48"
24/09/2021,1250012,PERSONAL PAYMENTS,Adult Social Care - Other Transfer Pay,Bi-Borough Director of Integrated Care,"2,015.00"
24/09/2021,1250037,PERSONAL PAYMENTS,Adult Social Care - Other Transfer Pay,Bi-Borough Director of Integrated Care,"2,383.72"
24/09/2021,1246066,Barrie Bookkeeping & Payroll,Adult Social Care - Other Transfer Pay,Bi-Borough Director of Integrated Care,"2,611.32"
24/09/2021,1268346,PERSONAL PAYMENTS,Adult Social Care - Other Transfer Pay,Bi-Borough Director of Integrated Care,"1,623.40"
24/09/2021,1250138,PERSONAL PAYMENTS,Adult Social Care - Other Transfer Pay,Bi-Borough Director of Integrated Care,"1,240.84"
24/09/2021,1249942,PERSONAL PAYMENTS,Adult Social Care - Other Transfer Pay,Bi-Borough Director of Integrated Care,"5,975.56"
24/09/2021,1246066,Barrie Bookkeeping & Payroll,Adult Social Care - Other Transfer Pay,Bi-Borough Director of Integrated Care,"4,603.40"
24/09/2021,1248354,PERSONAL PAYMENTS,Adult Social Care - Other Transfer Pay,Bi-Borough Director of Integrated Care,"1,563.20"
24/09/2021,1246066,Barrie Bookkeeping & Payroll,Adult Social Care - Other Transfer Pay,Bi-Borough Director of Integrated Care,"2,483.40"
24/09/2021,1246066,Barrie Bookkeeping & Payroll,Adult Social Care - Other Transfer Pay,Bi-Borough Director of Integrated Care,"1,791.60"
24/09/2021,1247820,PERSONAL PAYMENTS,Adult Social Care - Other Transfer Pay,Bi-Borough Director of Integrated Care,"8,751.04"
24/09/2021,1280973,PERSONAL PAYMENTS,Adult Social Care - Other Transfer Pay,Bi-Borough Director of Integrated Care,"6,236.88"
24/09/2021,1246066,Barrie Bookkeeping & Payroll,Adult Social Care - Other Transfer Pay,Bi-Borough Director of Integrated Care,"2,092.44"
24/09/2021,1246066,Barrie Bookkeeping & Payroll,Adult Social Care - Other Transfer Pay,Bi-Borough Director of Integrated Care,876.08
24/09/2021,1247727,PERSONAL PAYMENTS,Social Care - Direct Payments,Bi-Borough Director of Integrated Care,"2,740.72"
24/09/2021,1248148,PERSONAL PAYMENTS,Adult Social Care - Other Transfer Pay,Bi-Borough Director of Integrated Care,"1,638.96"
24/09/2021,1246066,Barrie Bookkeeping & Payroll,Adult Social Care - Other Transfer Pay,Bi-Borough Director of Integrated Care,"5,754.04"
24/09/2021,1246066,Barrie Bookkeeping & Payroll,Adult Social Care - Other Transfer Pay,Bi-Borough Director of Integrated Care,"5,914.56"
24/09/2021,1246066,Barrie Bookkeeping & Payroll,Adult Social Care - Other Transfer Pay,Bi-Borough Director of Integrated Care,773.20
24/09/2021,1250656,PERSONAL PAYMENTS,Social Care - Direct Payments,Bi-Borough Director of Integrated Care,"1,118.36"
24/09/2021,1247804,PERSONAL PAYMENTS,Social Care - Direct Payments,Bi-Borough Director of Integrated Care,902.40
24/09/2021,1246066,Barrie Bookkeeping & Payroll,Adult Social Care - Other Transfer Pay,Bi-Borough Director of Integrated Care,"11,800.54"
24/09/2021,1246066,Barrie Bookkeeping & Payroll,Adult Social Care - Other Transfer Pay,Bi-Borough Director of Integrated Care,"2,830.00"
24/09/2021,1246066,Barrie Bookkeeping & Payroll,Adult Social Care - Other Transfer Pay,Bi-Borough Director of Integrated Care,"2,585.32"
24/09/2021,1248010,PERSONAL PAYMENTS,Adult Social Care - Other Transfer Pay,Bi-Borough Director of Integrated Care,634.88
24/09/2021,1246066,Barrie Bookkeeping & Payroll,Adult Social Care - Other Transfer Pay,Bi-Borough Director of Integrated Care,"1,991.00"
24/09/2021,1250674,PERSONAL PAYMENTS,Adult Social Care - Other Transfer Pay,Bi-Borough Director of Integrated Care,"2,652.16"
24/09/2021,1254540,PERSONAL PAYMENTS,Adult Social Care - Other Transfer Pay,Bi-Borough Director of Integrated Care,811.80
24/09/2021,1250627,PERSONAL PAYMENTS,Adult Social Care - Other Transfer Pay,Bi-Borough Director of Integrated Care,"2,508.00"
24/09/2021,1250670,PERSONAL PAYMENTS,Adult Social Care - Other Transfer Pay,Bi-Borough Director of Integrated Care,"1,024.00"
24/09/2021,1278955,PERSONAL PAYMENTS,Social Care - Direct Payments,Bi-Borough Director of Integrated Care,"1,289.24"
24/09/2021,1249796,PERSONAL PAYMENTS,Adult Social Care - Other Transfer Pay,Bi-Borough Director of Integrated Care,999.16
24/09/2021,1250310,PERSONAL PAYMENTS,Adult Social Care - Other Transfer Pay,Bi-Borough Director of Integrated Care,"1,368.00"
12/08/2021,1243531,PJL Healthcare Ltd T/A Mayfield,,Bi-Borough Director of Integrated Care,"58,108.14"
20/07/2021,1255663,PLAY ASSOCIATION HAMMERSMITH AND FU,B*Voluntary-Spot-V Dep-Enhanced - do not u,Bi-Borough Director of Integrated Care,825.00
16/08/2021,1255663,PLAY ASSOCIATION HAMMERSMITH AND FU,B*Voluntary-Spot-V Dep-Enhanced - do not u,Bi-Borough Director of Integrated Care,660.00
02/09/2021,1255663,PLAY ASSOCIATION HAMMERSMITH AND FU,B*Voluntary-Spot-V Dep-Enhanced - do not u,Bi-Borough Director of Integrated Care,"1,650.00"
21/07/2021,1258049,PSS (UK),,Bi-Borough Director of Integrated Care,"2,660.96"
18/08/2021,1258049,PSS (UK),,Bi-Borough Director of Integrated Care,"2,660.96"
15/09/2021,1258049,PSS (UK),,Bi-Borough Director of Integrated Care,"2,660.96"
21/07/2021,1245021,Paradise Community,,Bi-Borough Director of Integrated Care,"10,414.68"
18/08/2021,1245021,Paradise Community,,Bi-Borough Director of Integrated Care,"10,414.68"
15/09/2021,1245021,Paradise Community,,Bi-Borough Director of Integrated Care,"10,414.68"
21/07/2021,1250448,PERSONAL PAYMENTS,,Bi-Borough Director of Integrated Care,"1,419.24"
18/08/2021,1250448,PERSONAL PAYMENTS,,Bi-Borough Director of Integrated Care,"1,419.24"
15/09/2021,1250448,PERSONAL PAYMENTS,,Bi-Borough Director of Integrated Care,"1,419.24"
21/07/2021,1245163,Poor Servants of the mother of,,Bi-Borough Director of Integrated Care,"2,878.88"
18/08/2021,1245163,Poor Servants of the mother of,,Bi-Borough Director of Integrated Care,"2,878.88"
15/09/2021,1245163,Poor Servants of the mother of,,Bi-Borough Director of Integrated Care,"2,878.88"
21/07/2021,1245165,Precious Homes Ltd,,Bi-Borough Director of Integrated Care,"13,976.16"
21/07/2021,1245165,Precious Homes Ltd,,Bi-Borough Director of Integrated Care,"5,320.00"
18/08/2021,1245165,Precious Homes Ltd,,Bi-Borough Director of Integrated Care,"5,320.00"
18/08/2021,1245165,Precious Homes Ltd,,Bi-Borough Director of Integrated Care,"13,976.16"
15/09/2021,1245165,Precious Homes Ltd,,Bi-Borough Director of Integrated Care,"13,976.16"
15/09/2021,1245165,Precious Homes Ltd,,Bi-Borough Director of Integrated Care,"5,320.00"
13/08/2021,1248563,Pursuing Independent Paths,B*Voluntary-Spot-V Dep-Enhanced - do not u,Bi-Borough Director of Integrated Care,"1,531.32"
13/08/2021,1248563,Pursuing Independent Paths,B*Voluntary-Spot-V Dep-Enhanced - do not u,Bi-Borough Director of Integrated Care,"1,531.32"
13/08/2021,1248563,Pursuing Independent Paths,B*Voluntary-Spot-V Dep-Enhanced - do not u,Bi-Borough Director of Integrated Care,"1,531.32"
13/08/2021,1248563,Pursuing Independent Paths,B*Voluntary-Spot-V Dep-Enhanced - do not u,Bi-Borough Director of Integrated Care,"1,020.88"
13/08/2021,1248563,Pursuing Independent Paths,B*Voluntary-Spot-V Dep-Enhanced - do not u,Bi-Borough Director of Integrated Care,"1,276.10"
13/08/2021,1248563,Pursuing Independent Paths,B*Voluntary-Spot-V Dep-Enhanced - do not u,Bi-Borough Director of Integrated Care,"1,531.32"
13/08/2021,1248563,Pursuing Independent Paths,B*Voluntary-Spot-V Dep-Enhanced - do not u,Bi-Borough Director of Integrated Care,"1,786.54"
13/08/2021,1248563,Pursuing Independent Paths,B*Voluntary-Spot-V Dep-Enhanced - do not u,Bi-Borough Director of Integrated Care,"1,289.32"
13/08/2021,1248563,Pursuing Independent Paths,B*Voluntary-Spot-V Dep-Enhanced - do not u,Bi-Borough Director of Integrated Care,510.44
13/08/2021,1248563,Pursuing Independent Paths,B*Voluntary-Spot-V Dep-Enhanced - do not u,Bi-Borough Director of Integrated Care,"1,020.88"
13/08/2021,1248563,Pursuing Independent Paths,B*Voluntary-Spot-V Dep-Enhanced - do not u,Bi-Borough Director of Integrated Care,"1,020.88"
13/08/2021,1248563,Pursuing Independent Paths,B*Voluntary-Spot-V Dep-Enhanced - do not u,Bi-Borough Director of Integrated Care,"2,552.20"
13/08/2021,1248563,Pursuing Independent Paths,B*Voluntary-Spot-V Dep-Enhanced - do not u,Bi-Borough Director of Integrated Care,"1,531.32"
13/08/2021,1248563,Pursuing Independent Paths,B*Voluntary-Spot-V Dep-Enhanced - do not u,Bi-Borough Director of Integrated Care,"1,531.32"
13/08/2021,1248563,Pursuing Independent Paths,B*Voluntary-Spot-V Dep-Enhanced - do not u,Bi-Borough Director of Integrated Care,"1,531.32"
13/08/2021,1248563,Pursuing Independent Paths,B*Voluntary-Spot-V Dep-Enhanced - do not u,Bi-Borough Director of Integrated Care,510.44
13/08/2021,1248563,Pursuing Independent Paths,B*Voluntary-Spot-V Dep-Enhanced - do not u,Bi-Borough Director of Integrated Care,"1,020.88"
13/08/2021,1248563,Pursuing Independent Paths,B*Voluntary-Spot-V Dep-Enhanced - do not u,Bi-Borough Director of Integrated Care,510.44
13/08/2021,1248563,Pursuing Independent Paths,B*Voluntary-Spot-V Dep-Enhanced - do not u,Bi-Borough Director of Integrated Care,"1,531.32"
13/08/2021,1248563,Pursuing Independent Paths,B*Voluntary-Spot-V Dep-Enhanced - do not u,Bi-Borough Director of Integrated Care,"1,276.10"
13/08/2021,1248563,Pursuing Independent Paths,B*Voluntary-Spot-V Dep-Enhanced - do not u,Bi-Borough Director of Integrated Care,"2,552.20"
13/08/2021,1248563,Pursuing Independent Paths,B*Voluntary-Spot-V Dep-Enhanced - do not u,Bi-Borough Director of Integrated Care,"1,531.32"
13/08/2021,1248563,Pursuing Independent Paths,B*Voluntary-Spot-V Dep-Enhanced - do not u,Bi-Borough Director of Integrated Care,"1,020.88"
13/08/2021,1248563,Pursuing Independent Paths,B*Voluntary-Spot-V Dep-Enhanced - do not u,Bi-Borough Director of Integrated Care,"1,276.10"
13/08/2021,1248563,Pursuing Independent Paths,B*Voluntary-Spot-V Dep-Enhanced - do not u,Bi-Borough Director of Integrated Care,510.44
13/08/2021,1248563,Pursuing Independent Paths,B*Voluntary-Spot-V Dep-Enhanced - do not u,Bi-Borough Director of Integrated Care,"1,531.32"
13/08/2021,1248563,Pursuing Independent Paths,B*Voluntary-Spot-V Dep-Enhanced - do not u,Bi-Borough Director of Integrated Care,"1,252.72"
13/08/2021,1248563,Pursuing Independent Paths,B*Voluntary-Spot-V Dep-Enhanced - do not u,Bi-Borough Director of Integrated Care,510.44
13/08/2021,1248563,Pursuing Independent Paths,B*Voluntary-Spot-V Dep-Enhanced - do not u,Bi-Borough Director of Integrated Care,510.44
13/08/2021,1248563,Pursuing Independent Paths,B*Voluntary-Spot-V Dep-Enhanced - do not u,Bi-Borough Director of Integrated Care,"1,879.08"
13/08/2021,1248563,Pursuing Independent Paths,B*Voluntary-Spot-V Dep-Enhanced - do not u,Bi-Borough Director of Integrated Care,510.44
13/08/2021,1248563,Pursuing Independent Paths,B*Voluntary-Spot-V Dep-Enhanced - do not u,Bi-Borough Director of Integrated Care,510.44
13/08/2021,1248563,Pursuing Independent Paths,B*Voluntary-Spot-V Dep-Enhanced - do not u,Bi-Borough Director of Integrated Care,583.36
13/08/2021,1248563,Pursuing Independent Paths,B*Voluntary-Spot-V Dep-Enhanced - do not u,Bi-Borough Director of Integrated Care,"1,531.32"
13/08/2021,1248563,Pursuing Independent Paths,B*Voluntary-Spot-V Dep-Enhanced - do not u,Bi-Borough Director of Integrated Care,"2,041.76"
13/08/2021,1248563,Pursuing Independent Paths,B*Voluntary-Spot-V Dep-Enhanced - do not u,Bi-Borough Director of Integrated Care,"1,276.10"
13/08/2021,1248563,Pursuing Independent Paths,B*Voluntary-Spot-V Dep-Enhanced - do not u,Bi-Borough Director of Integrated Care,"1,531.32"
13/08/2021,1248563,Pursuing Independent Paths,B*Voluntary-Spot-V Dep-Enhanced - do not u,Bi-Borough Director of Integrated Care,"1,531.32"
25/08/2021,1248563,Pursuing Independent Paths,B*Voluntary-Spot-V Dep-Enhanced - do not u,Bi-Borough Director of Integrated Care,"1,020.88"
25/08/2021,1248563,Pursuing Independent Paths,B*Voluntary-Spot-V Dep-Enhanced - do not u,Bi-Borough Director of Integrated Care,"1,276.10"
25/08/2021,1248563,Pursuing Independent Paths,B*Voluntary-Spot-V Dep-Enhanced - do not u,Bi-Borough Director of Integrated Care,"1,531.33"
25/08/2021,1248563,Pursuing Independent Paths,B*Voluntary-Spot-V Dep-Enhanced - do not u,Bi-Borough Director of Integrated Care,"1,786.54"
25/08/2021,1248563,Pursuing Independent Paths,B*Voluntary-Spot-V Dep-Enhanced - do not u,Bi-Borough Director of Integrated Care,"1,289.32"
25/08/2021,1248563,Pursuing Independent Paths,B*Voluntary-Spot-V Dep-Enhanced - do not u,Bi-Borough Director of Integrated Care,510.44
25/08/2021,1248563,Pursuing Independent Paths,B*Voluntary-Spot-V Dep-Enhanced - do not u,Bi-Borough Director of Integrated Care,"1,020.88"
25/08/2021,1248563,Pursuing Independent Paths,B*Voluntary-Spot-V Dep-Enhanced - do not u,Bi-Borough Director of Integrated Care,"1,020.88"
25/08/2021,1248563,Pursuing Independent Paths,B*Voluntary-Spot-V Dep-Enhanced - do not u,Bi-Borough Director of Integrated Care,"2,552.20"
25/08/2021,1248563,Pursuing Independent Paths,B*Voluntary-Spot-V Dep-Enhanced - do not u,Bi-Borough Director of Integrated Care,"1,531.32"
25/08/2021,1248563,Pursuing Independent Paths,B*Voluntary-Spot-V Dep-Enhanced - do not u,Bi-Borough Director of Integrated Care,"1,531.32"
25/08/2021,1248563,Pursuing Independent Paths,B*Voluntary-Spot-V Dep-Enhanced - do not u,Bi-Borough Director of Integrated Care,"1,531.32"
25/08/2021,1248563,Pursuing Independent Paths,B*Voluntary-Spot-V Dep-Enhanced - do not u,Bi-Borough Director of Integrated Care,510.44
25/08/2021,1248563,Pursuing Independent Paths,B*Voluntary-Spot-V Dep-Enhanced - do not u,Bi-Borough Director of Integrated Care,"1,020.88"
25/08/2021,1248563,Pursuing Independent Paths,B*Voluntary-Spot-V Dep-Enhanced - do not u,Bi-Borough Director of Integrated Care,510.44
25/08/2021,1248563,Pursuing Independent Paths,B*Voluntary-Spot-V Dep-Enhanced - do not u,Bi-Borough Director of Integrated Care,"1,531.32"
25/08/2021,1248563,Pursuing Independent Paths,B*Voluntary-Spot-V Dep-Enhanced - do not u,Bi-Borough Director of Integrated Care,"1,276.10"
25/08/2021,1248563,Pursuing Independent Paths,B*Voluntary-Spot-V Dep-Enhanced - do not u,Bi-Borough Director of Integrated Care,"2,552.20"
25/08/2021,1248563,Pursuing Independent Paths,B*Voluntary-Spot-V Dep-Enhanced - do not u,Bi-Borough Director of Integrated Care,"1,531.32"
25/08/2021,1248563,Pursuing Independent Paths,B*Voluntary-Spot-V Dep-Enhanced - do not u,Bi-Borough Director of Integrated Care,"1,531.32"
25/08/2021,1248563,Pursuing Independent Paths,B*Voluntary-Spot-V Dep-Enhanced - do not u,Bi-Borough Director of Integrated Care,"1,531.32"
25/08/2021,1248563,Pursuing Independent Paths,B*Voluntary-Spot-V Dep-Enhanced - do not u,Bi-Borough Director of Integrated Care,"1,531.32"
25/08/2021,1248563,Pursuing Independent Paths,B*Voluntary-Spot-V Dep-Enhanced - do not u,Bi-Borough Director of Integrated Care,"1,020.88"
25/08/2021,1248563,Pursuing Independent Paths,B*Voluntary-Spot-V Dep-Enhanced - do not u,Bi-Borough Director of Integrated Care,"1,276.10"
25/08/2021,1248563,Pursuing Independent Paths,B*Voluntary-Spot-V Dep-Enhanced - do not u,Bi-Borough Director of Integrated Care,510.44
25/08/2021,1248563,Pursuing Independent Paths,B*Voluntary-Spot-V Dep-Enhanced - do not u,Bi-Borough Director of Integrated Care,"1,531.32"
25/08/2021,1248563,Pursuing Independent Paths,B*Voluntary-Spot-V Dep-Enhanced - do not u,Bi-Borough Director of Integrated Care,"1,252.72"
25/08/2021,1248563,Pursuing Independent Paths,B*Voluntary-Spot-V Dep-Enhanced - do not u,Bi-Borough Director of Integrated Care,510.44
25/08/2021,1248563,Pursuing Independent Paths,B*Voluntary-Spot-V Dep-Enhanced - do not u,Bi-Borough Director of Integrated Care,510.44
25/08/2021,1248563,Pursuing Independent Paths,B*Voluntary-Spot-V Dep-Enhanced - do not u,Bi-Borough Director of Integrated Care,"1,879.08"
25/08/2021,1248563,Pursuing Independent Paths,B*Voluntary-Spot-V Dep-Enhanced - do not u,Bi-Borough Director of Integrated Care,510.44
25/08/2021,1248563,Pursuing Independent Paths,B*Voluntary-Spot-V Dep-Enhanced - do not u,Bi-Borough Director of Integrated Care,510.44
25/08/2021,1248563,Pursuing Independent Paths,B*Voluntary-Spot-V Dep-Enhanced - do not u,Bi-Borough Director of Integrated Care,583.36
25/08/2021,1248563,Pursuing Independent Paths,B*Voluntary-Spot-V Dep-Enhanced - do not u,Bi-Borough Director of Integrated Care,"1,531.32"
25/08/2021,1248563,Pursuing Independent Paths,B*Voluntary-Spot-V Dep-Enhanced - do not u,Bi-Borough Director of Integrated Care,"2,041.76"
25/08/2021,1248563,Pursuing Independent Paths,B*Voluntary-Spot-V Dep-Enhanced - do not u,Bi-Borough Director of Integrated Care,"1,276.10"
25/08/2021,1248563,Pursuing Independent Paths,B*Voluntary-Spot-V Dep-Enhanced - do not u,Bi-Borough Director of Integrated Care,"1,531.32"
25/08/2021,1248563,Pursuing Independent Paths,B*Voluntary-Spot-V Dep-Enhanced - do not u,Bi-Borough Director of Integrated Care,"1,531.32"
15/09/2021,1248563,Pursuing Independent Paths,B*Voluntary-Spot-V Dep-Enhanced - do not u,Bi-Borough Director of Integrated Care,"1,020.88"
15/09/2021,1248563,Pursuing Independent Paths,B*Voluntary-Spot-V Dep-Enhanced - do not u,Bi-Borough Director of Integrated Care,"1,276.10"
15/09/2021,1248563,Pursuing Independent Paths,B*Voluntary-Spot-V Dep-Enhanced - do not u,Bi-Borough Director of Integrated Care,"1,531.32"
15/09/2021,1248563,Pursuing Independent Paths,B*Voluntary-Spot-V Dep-Enhanced - do not u,Bi-Borough Director of Integrated Care,"1,786.54"
15/09/2021,1248563,Pursuing Independent Paths,B*Voluntary-Spot-V Dep-Enhanced - do not u,Bi-Borough Director of Integrated Care,"1,289.32"
15/09/2021,1248563,Pursuing Independent Paths,B*Voluntary-Spot-V Dep-Enhanced - do not u,Bi-Borough Director of Integrated Care,510.44
15/09/2021,1248563,Pursuing Independent Paths,B*Voluntary-Spot-V Dep-Enhanced - do not u,Bi-Borough Director of Integrated Care,"1,020.88"
15/09/2021,1248563,Pursuing Independent Paths,B*Voluntary-Spot-V Dep-Enhanced - do not u,Bi-Borough Director of Integrated Care,"1,020.88"
15/09/2021,1248563,Pursuing Independent Paths,B*Voluntary-Spot-V Dep-Enhanced - do not u,Bi-Borough Director of Integrated Care,"2,552.20"
15/09/2021,1248563,Pursuing Independent Paths,B*Voluntary-Spot-V Dep-Enhanced - do not u,Bi-Borough Director of Integrated Care,"1,531.32"
15/09/2021,1248563,Pursuing Independent Paths,B*Voluntary-Spot-V Dep-Enhanced - do not u,Bi-Borough Director of Integrated Care,"1,531.32"
15/09/2021,1248563,Pursuing Independent Paths,B*Voluntary-Spot-V Dep-Enhanced - do not u,Bi-Borough Director of Integrated Care,"1,531.32"
15/09/2021,1248563,Pursuing Independent Paths,B*Voluntary-Spot-V Dep-Enhanced - do not u,Bi-Borough Director of Integrated Care,510.44
15/09/2021,1248563,Pursuing Independent Paths,B*Voluntary-Spot-V Dep-Enhanced - do not u,Bi-Borough Director of Integrated Care,"1,020.88"
15/09/2021,1248563,Pursuing Independent Paths,B*Voluntary-Spot-V Dep-Enhanced - do not u,Bi-Borough Director of Integrated Care,510.44
15/09/2021,1248563,Pursuing Independent Paths,B*Voluntary-Spot-V Dep-Enhanced - do not u,Bi-Borough Director of Integrated Care,"1,531.32"
15/09/2021,1248563,Pursuing Independent Paths,B*Voluntary-Spot-V Dep-Enhanced - do not u,Bi-Borough Director of Integrated Care,"1,276.10"
15/09/2021,1248563,Pursuing Independent Paths,B*Voluntary-Spot-V Dep-Enhanced - do not u,Bi-Borough Director of Integrated Care,"2,552.20"
15/09/2021,1248563,Pursuing Independent Paths,B*Voluntary-Spot-V Dep-Enhanced - do not u,Bi-Borough Director of Integrated Care,"1,531.32"
15/09/2021,1248563,Pursuing Independent Paths,B*Voluntary-Spot-V Dep-Enhanced - do not u,Bi-Borough Director of Integrated Care,"1,531.32"
15/09/2021,1248563,Pursuing Independent Paths,B*Voluntary-Spot-V Dep-Enhanced - do not u,Bi-Borough Director of Integrated Care,"1,531.32"
15/09/2021,1248563,Pursuing Independent Paths,B*Voluntary-Spot-V Dep-Enhanced - do not u,Bi-Borough Director of Integrated Care,"1,531.32"
15/09/2021,1248563,Pursuing Independent Paths,B*Voluntary-Spot-V Dep-Enhanced - do not u,Bi-Borough Director of Integrated Care,"1,020.88"
15/09/2021,1248563,Pursuing Independent Paths,B*Voluntary-Spot-V Dep-Enhanced - do not u,Bi-Borough Director of Integrated Care,"1,276.10"
15/09/2021,1248563,Pursuing Independent Paths,B*Voluntary-Spot-V Dep-Enhanced - do not u,Bi-Borough Director of Integrated Care,510.44
15/09/2021,1248563,Pursuing Independent Paths,B*Voluntary-Spot-V Dep-Enhanced - do not u,Bi-Borough Director of Integrated Care,"1,531.32"
15/09/2021,1248563,Pursuing Independent Paths,B*Voluntary-Spot-V Dep-Enhanced - do not u,Bi-Borough Director of Integrated Care,"1,252.72"
15/09/2021,1248563,Pursuing Independent Paths,B*Voluntary-Spot-V Dep-Enhanced - do not u,Bi-Borough Director of Integrated Care,510.44
15/09/2021,1248563,Pursuing Independent Paths,B*Voluntary-Spot-V Dep-Enhanced - do not u,Bi-Borough Director of Integrated Care,510.44
15/09/2021,1248563,Pursuing Independent Paths,B*Voluntary-Spot-V Dep-Enhanced - do not u,Bi-Borough Director of Integrated Care,"1,879.08"
15/09/2021,1248563,Pursuing Independent Paths,B*Voluntary-Spot-V Dep-Enhanced - do not u,Bi-Borough Director of Integrated Care,510.44
15/09/2021,1248563,Pursuing Independent Paths,B*Voluntary-Spot-V Dep-Enhanced - do not u,Bi-Borough Director of Integrated Care,510.44
15/09/2021,1248563,Pursuing Independent Paths,B*Voluntary-Spot-V Dep-Enhanced - do not u,Bi-Borough Director of Integrated Care,546.90
15/09/2021,1248563,Pursuing Independent Paths,B*Voluntary-Spot-V Dep-Enhanced - do not u,Bi-Borough Director of Integrated Care,583.36
15/09/2021,1248563,Pursuing Independent Paths,B*Voluntary-Spot-V Dep-Enhanced - do not u,Bi-Borough Director of Integrated Care,"1,531.32"
15/09/2021,1248563,Pursuing Independent Paths,B*Voluntary-Spot-V Dep-Enhanced - do not u,Bi-Borough Director of Integrated Care,"2,041.76"
15/09/2021,1248563,Pursuing Independent Paths,B*Voluntary-Spot-V Dep-Enhanced - do not u,Bi-Borough Director of Integrated Care,"1,276.10"
15/09/2021,1248563,Pursuing Independent Paths,B*Voluntary-Spot-V Dep-Enhanced - do not u,Bi-Borough Director of Integrated Care,"1,531.32"
15/09/2021,1248563,Pursuing Independent Paths,B*Voluntary-Spot-V Dep-Enhanced - do not u,Bi-Borough Director of Integrated Care,"1,531.32"
21/07/2021,1278739,RESIDE HOUSING ASSOCIATION LTD,,Bi-Borough Director of Integrated Care,"1,088.24"
18/08/2021,1278739,RESIDE HOUSING ASSOCIATION LTD,,Bi-Borough Director of Integrated Care,"1,088.24"
15/09/2021,1278739,RESIDE HOUSING ASSOCIATION LTD,,Bi-Borough Director of Integrated Care,"1,088.24"
21/07/2021,1245169,Rcp Residential Care Providers Ltd,,Bi-Borough Director of Integrated Care,930.96
21/07/2021,1245169,Rcp Residential Care Providers Ltd,,Bi-Borough Director of Integrated Care,"5,767.40"
18/08/2021,1245169,Rcp Residential Care Providers Ltd,,Bi-Borough Director of Integrated Care,930.96
18/08/2021,1245169,Rcp Residential Care Providers Ltd,,Bi-Borough Director of Integrated Care,"5,767.40"
15/09/2021,1245169,Rcp Residential Care Providers Ltd,,Bi-Borough Director of Integrated Care,"5,767.40"
15/09/2021,1245169,Rcp Residential Care Providers Ltd,,Bi-Borough Director of Integrated Care,930.96
21/07/2021,1269718,Reliant Care Limited,,Bi-Borough Director of Integrated Care,"4,944.86"
21/07/2021,1269718,Reliant Care Limited,,Bi-Borough Director of Integrated Care,"8,352.00"
21/07/2021,1269718,Reliant Care Limited,,Bi-Borough Director of Integrated Care,"8,352.00"
21/07/2021,1269718,Reliant Care Limited,,Bi-Borough Director of Integrated Care,"7,245.40"
21/07/2021,1269718,Reliant Care Limited,,Bi-Borough Director of Integrated Care,"13,683.14"
21/07/2021,1269718,Reliant Care Limited,,Bi-Borough Director of Integrated Care,"13,683.14"
18/08/2021,1269718,Reliant Care Limited,,Bi-Borough Director of Integrated Care,"11,933.60"
18/08/2021,1269718,Reliant Care Limited,,Bi-Borough Director of Integrated Care,"4,115.00"
18/08/2021,1269718,Reliant Care Limited,,Bi-Borough Director of Integrated Care,"2,500.00"
18/08/2021,1269718,Reliant Care Limited,,Bi-Borough Director of Integrated Care,"2,500.00"
18/08/2021,1269718,Reliant Care Limited,,Bi-Borough Director of Integrated Care,"3,712.00"
18/08/2021,1269718,Reliant Care Limited,,Bi-Borough Director of Integrated Care,"3,712.00"
15/09/2021,1269718,Reliant Care Limited,,Bi-Borough Director of Integrated Care,"11,933.60"
15/09/2021,1269718,Reliant Care Limited,,Bi-Borough Director of Integrated Care,"2,500.00"
15/09/2021,1269718,Reliant Care Limited,,Bi-Borough Director of Integrated Care,"2,500.00"
15/09/2021,1269718,Reliant Care Limited,,Bi-Borough Director of Integrated Care,"3,712.00"
15/09/2021,1269718,Reliant Care Limited,,Bi-Borough Director of Integrated Care,"3,712.00"
06/07/2021,1245316,Respect Care Services Ltd,,Bi-Borough Director of Integrated Care,"1,543.76"
21/07/2021,1245316,Respect Care Services Ltd,,Bi-Borough Director of Integrated Care,"1,543.76"
29/07/2021,1245316,Respect Care Services Ltd,,Bi-Borough Director of Integrated Care,"1,543.76"
29/07/2021,1245316,Respect Care Services Ltd,,Bi-Borough Director of Integrated Care,704.76
10/08/2021,1245316,Respect Care Services Ltd,,Bi-Borough Director of Integrated Care,"1,543.76"
10/08/2021,1245316,Respect Care Services Ltd,,Bi-Borough Director of Integrated Care,704.76
19/08/2021,1245316,Respect Care Services Ltd,,Bi-Borough Director of Integrated Care,"1,543.76"
19/08/2021,1245316,Respect Care Services Ltd,,Bi-Borough Director of Integrated Care,604.08
24/08/2021,1245316,Respect Care Services Ltd,,Bi-Borough Director of Integrated Care,"1,543.76"
24/09/2021,1245316,Respect Care Services Ltd,,Bi-Borough Director of Integrated Care,"1,543.76"
24/09/2021,1245316,Respect Care Services Ltd,,Bi-Borough Director of Integrated Care,"1,543.76"
21/07/2021,1245172,Richmond Health Care Ltd,,Bi-Borough Director of Integrated Care,"4,512.00"
18/08/2021,1245172,Richmond Health Care Ltd,,Bi-Borough Director of Integrated Care,"4,512.00"
15/09/2021,1245172,Richmond Health Care Ltd,,Bi-Borough Director of Integrated Care,"4,512.00"
21/07/2021,1248621,Rnib Redhill College,,Bi-Borough Director of Integrated Care,"5,380.40"
18/08/2021,1248621,Rnib Redhill College,,Bi-Borough Director of Integrated Care,"5,380.40"
15/09/2021,1248621,Rnib Redhill College,,Bi-Borough Director of Integrated Care,"5,380.40"
15/07/2021,1263736,SERJCO LTD,Legal Costs,Bi-Borough Director of Integrated Care,"8,219.97"
06/07/2021,1248843,Sage Care Ltd,,Bi-Borough Director of Integrated Care,610.90
06/07/2021,1248843,Sage Care Ltd,,Bi-Borough Director of Integrated Care,543.98
06/07/2021,1248843,Sage Care Ltd,,Bi-Borough Director of Integrated Care,"1,635.32"
06/07/2021,1248843,Sage Care Ltd,,Bi-Borough Director of Integrated Care,"1,503.30"
06/07/2021,1248843,Sage Care Ltd,,Bi-Borough Director of Integrated Care,762.37
06/07/2021,1248843,Sage Care Ltd,,Bi-Borough Director of Integrated Care,746.40
27/07/2021,1248843,Sage Care Ltd,,Bi-Borough Director of Integrated Care,583.14
27/07/2021,1248843,Sage Care Ltd,,Bi-Borough Director of Integrated Care,532.74
27/07/2021,1248843,Sage Care Ltd,,Bi-Borough Director of Integrated Care,"1,667.70"
27/07/2021,1248843,Sage Care Ltd,,Bi-Borough Director of Integrated Care,"1,555.96"
27/07/2021,1248843,Sage Care Ltd,,Bi-Borough Director of Integrated Care,775.85
27/07/2021,1248843,Sage Care Ltd,,Bi-Borough Director of Integrated Care,511.98
27/07/2021,1248843,Sage Care Ltd,,Bi-Borough Director of Integrated Care,763.81
07/09/2021,1248843,Sage Care Ltd,,Bi-Borough Director of Integrated Care,554.60
07/09/2021,1248843,Sage Care Ltd,,Bi-Borough Director of Integrated Care,"1,667.70"
07/09/2021,1248843,Sage Care Ltd,,Bi-Borough Director of Integrated Care,"1,556.52"
07/09/2021,1248843,Sage Care Ltd,,Bi-Borough Director of Integrated Care,776.41
07/09/2021,1248843,Sage Care Ltd,,Bi-Borough Director of Integrated Care,518.84
07/09/2021,1248843,Sage Care Ltd,,Bi-Borough Director of Integrated Care,776.78
23/09/2021,1248843,Sage Care Ltd,,Bi-Borough Director of Integrated Care,685.62
23/09/2021,1248843,Sage Care Ltd,,Bi-Borough Director of Integrated Care,522.19
23/09/2021,1248843,Sage Care Ltd,,Bi-Borough Director of Integrated Care,"1,668.60"
23/09/2021,1248843,Sage Care Ltd,,Bi-Borough Director of Integrated Care,"1,555.96"
23/09/2021,1248843,Sage Care Ltd,,Bi-Borough Director of Integrated Care,762.88
23/09/2021,1248843,Sage Care Ltd,,Bi-Borough Director of Integrated Care,500.31
23/09/2021,1248843,Sage Care Ltd,,Bi-Borough Director of Integrated Care,771.77
21/07/2021,1262057,Sense - The National Deafbllind,,Bi-Borough Director of Integrated Care,"4,550.00"
21/07/2021,1262057,Sense - The National Deafbllind,,Bi-Borough Director of Integrated Care,"4,550.00"
18/08/2021,1262057,Sense - The National Deafbllind,,Bi-Borough Director of Integrated Care,"4,550.00"
18/08/2021,1262057,Sense - The National Deafbllind,,Bi-Borough Director of Integrated Care,"4,550.00"
15/09/2021,1262057,Sense - The National Deafbllind,,Bi-Borough Director of Integrated Care,"4,550.00"
15/09/2021,1262057,Sense - The National Deafbllind,,Bi-Borough Director of Integrated Care,"4,550.00"
21/07/2021,1243535,Sequence Care Ltd,,Bi-Borough Director of Integrated Care,"17,007.48"
21/07/2021,1243535,Sequence Care Ltd,,Bi-Borough Director of Integrated Care,"7,526.40"
21/07/2021,1243535,Sequence Care Ltd,,Bi-Borough Director of Integrated Care,"10,171.52"
21/07/2021,1243535,Sequence Care Ltd,,Bi-Borough Director of Integrated Care,"10,171.52"
18/08/2021,1243535,Sequence Care Ltd,,Bi-Borough Director of Integrated Care,"10,171.52"
18/08/2021,1243535,Sequence Care Ltd,,Bi-Borough Director of Integrated Care,"10,171.52"
18/08/2021,1243535,Sequence Care Ltd,,Bi-Borough Director of Integrated Care,"17,007.48"
18/08/2021,1243535,Sequence Care Ltd,,Bi-Borough Director of Integrated Care,"7,526.40"
15/09/2021,1243535,Sequence Care Ltd,,Bi-Borough Director of Integrated Care,"10,171.52"
15/09/2021,1243535,Sequence Care Ltd,,Bi-Borough Director of Integrated Care,"10,171.52"
15/09/2021,1243535,Sequence Care Ltd,,Bi-Borough Director of Integrated Care,"17,007.48"
15/09/2021,1243535,Sequence Care Ltd,,Bi-Borough Director of Integrated Care,"7,526.40"
21/07/2021,1245566,Shaw Care Uk Ltd,,Bi-Borough Director of Integrated Care,"3,200.00"
21/07/2021,1245566,Shaw Care Uk Ltd,,Bi-Borough Director of Integrated Care,"3,200.00"
18/08/2021,1245566,Shaw Care Uk Ltd,,Bi-Borough Director of Integrated Care,"3,200.00"
18/08/2021,1245566,Shaw Care Uk Ltd,,Bi-Borough Director of Integrated Care,"3,200.00"
15/09/2021,1245566,Shaw Care Uk Ltd,,Bi-Borough Director of Integrated Care,"3,200.00"
15/09/2021,1245566,Shaw Care Uk Ltd,,Bi-Borough Director of Integrated Care,"3,200.00"
21/07/2021,1248935,Southside Partnership,,Bi-Borough Director of Integrated Care,"3,592.80"
21/07/2021,1248935,Southside Partnership,,Bi-Borough Director of Integrated Care,800.00
21/07/2021,1248935,Southside Partnership,,Bi-Borough Director of Integrated Care,"2,546.68"
21/07/2021,1248935,Southside Partnership,,Bi-Borough Director of Integrated Care,800.00
18/08/2021,1248935,Southside Partnership,,Bi-Borough Director of Integrated Care,800.00
18/08/2021,1248935,Southside Partnership,,Bi-Borough Director of Integrated Care,"2,546.68"
18/08/2021,1248935,Southside Partnership,,Bi-Borough Director of Integrated Care,"3,592.80"
18/08/2021,1248935,Southside Partnership,,Bi-Borough Director of Integrated Care,800.00
15/09/2021,1248935,Southside Partnership,,Bi-Borough Director of Integrated Care,"2,546.68"
15/09/2021,1248935,Southside Partnership,,Bi-Borough Director of Integrated Care,800.00
15/09/2021,1248935,Southside Partnership,,Bi-Borough Director of Integrated Care,800.00
15/09/2021,1248935,Southside Partnership,,Bi-Borough Director of Integrated Care,"3,592.80"
07/07/2021,1248940,Special People,B*Voluntary-Spot-V Dep-Enhanced - do not u,Bi-Borough Director of Integrated Care,"2,235.39"
02/08/2021,1248940,Special People,B*Voluntary-Spot-V Dep-Enhanced - do not u,Bi-Borough Director of Integrated Care,"2,056.56"
16/08/2021,1248940,Special People,B*Voluntary-Spot-V Dep-Enhanced - do not u,Bi-Borough Director of Integrated Care,557.28
16/08/2021,1248940,Special People,B*Voluntary-Spot-V Dep-Enhanced - do not u,Bi-Borough Director of Integrated Care,"1,967.10"
25/08/2021,1248940,Special People,B*Voluntary-Spot-V Dep-Enhanced - do not u,Bi-Borough Director of Integrated Care,"1,631.85"
25/08/2021,1248940,Special People,B*Voluntary-Spot-V Dep-Enhanced - do not u,Bi-Borough Director of Integrated Care,874.08
10/09/2021,1248940,Special People,B*Voluntary-Spot-V Dep-Enhanced - do not u,Bi-Borough Director of Integrated Care,"2,145.99"
10/09/2021,1248940,Special People,B*Voluntary-Spot-V Dep-Enhanced - do not u,Bi-Borough Director of Integrated Care,633.60
21/07/2021,1245620,Spencer & Arlington,,Bi-Borough Director of Integrated Care,"6,627.60"
21/07/2021,1245620,Spencer & Arlington,,Bi-Borough Director of Integrated Care,"2,576.00"
21/07/2021,1245620,Spencer & Arlington,,Bi-Borough Director of Integrated Care,"3,724.56"
21/07/2021,1245620,Spencer & Arlington,,Bi-Borough Director of Integrated Care,"12,835.20"
18/08/2021,1245620,Spencer & Arlington,,Bi-Borough Director of Integrated Care,"12,835.20"
18/08/2021,1245620,Spencer & Arlington,,Bi-Borough Director of Integrated Care,"3,724.56"
18/08/2021,1245620,Spencer & Arlington,,Bi-Borough Director of Integrated Care,"6,627.60"
18/08/2021,1245620,Spencer & Arlington,,Bi-Borough Director of Integrated Care,"2,576.00"
15/09/2021,1245620,Spencer & Arlington,,Bi-Borough Director of Integrated Care,"3,724.56"
15/09/2021,1245620,Spencer & Arlington,,Bi-Borough Director of Integrated Care,"12,835.20"
15/09/2021,1245620,Spencer & Arlington,,Bi-Borough Director of Integrated Care,"6,627.60"
15/09/2021,1245620,Spencer & Arlington,,Bi-Borough Director of Integrated Care,"2,576.00"
21/07/2021,1243543,Springlake Care Home Ltd,,Bi-Borough Director of Integrated Care,"6,800.00"
21/07/2021,1243543,Springlake Care Home Ltd,,Bi-Borough Director of Integrated Care,"5,400.00"
21/07/2021,1243543,Springlake Care Home Ltd,,Bi-Borough Director of Integrated Care,"6,000.00"
18/08/2021,1243543,Springlake Care Home Ltd,,Bi-Borough Director of Integrated Care,"6,800.00"
18/08/2021,1243543,Springlake Care Home Ltd,,Bi-Borough Director of Integrated Care,"5,400.00"
18/08/2021,1243543,Springlake Care Home Ltd,,Bi-Borough Director of Integrated Care,"6,000.00"
15/09/2021,1243543,Springlake Care Home Ltd,,Bi-Borough Director of Integrated Care,"6,800.00"
15/09/2021,1243543,Springlake Care Home Ltd,,Bi-Borough Director of Integrated Care,"5,400.00"
15/09/2021,1243543,Springlake Care Home Ltd,,Bi-Borough Director of Integrated Care,"6,000.00"
21/07/2021,1248948,St Davids Care In The Community,,Bi-Borough Director of Integrated Care,"3,132.56"
21/07/2021,1248948,St Davids Care In The Community,,Bi-Borough Director of Integrated Care,"3,440.00"
18/08/2021,1248948,St Davids Care In The Community,,Bi-Borough Director of Integrated Care,"3,132.56"
18/08/2021,1248948,St Davids Care In The Community,,Bi-Borough Director of Integrated Care,"3,440.00"
15/09/2021,1248948,St Davids Care In The Community,,Bi-Borough Director of Integrated Care,"3,132.56"
15/09/2021,1248948,St Davids Care In The Community,,Bi-Borough Director of Integrated Care,"3,440.00"
05/07/2021,1245825,Sweet Tree Home Care Services,,Bi-Borough Director of Integrated Care,"6,173.23"
06/07/2021,1245825,Sweet Tree Home Care Services,,Bi-Borough Director of Integrated Care,"4,679.80"
03/08/2021,1245825,Sweet Tree Home Care Services,,Bi-Borough Director of Integrated Care,"7,683.58"
06/08/2021,1245825,Sweet Tree Home Care Services,,Bi-Borough Director of Integrated Care,"4,667.28"
09/09/2021,1245825,Sweet Tree Home Care Services,,Bi-Borough Director of Integrated Care,"2,825.86"
23/09/2021,1245825,Sweet Tree Home Care Services,,Bi-Borough Director of Integrated Care,"4,692.51"
21/07/2021,1245900,The Grace Eyre Foundation,,Bi-Borough Director of Integrated Care,"4,235.96"
21/07/2021,1245900,The Grace Eyre Foundation,,Bi-Borough Director of Integrated Care,"3,290.16"
18/08/2021,1245900,The Grace Eyre Foundation,,Bi-Borough Director of Integrated Care,"3,290.16"
18/08/2021,1245900,The Grace Eyre Foundation,,Bi-Borough Director of Integrated Care,"4,235.96"
15/09/2021,1245900,The Grace Eyre Foundation,,Bi-Borough Director of Integrated Care,"4,235.96"
15/09/2021,1245900,The Grace Eyre Foundation,,Bi-Borough Director of Integrated Care,"3,290.16"
21/07/2021,1245929,The Regard Partnership Ltd,,Bi-Borough Director of Integrated Care,"3,932.76"
18/08/2021,1245929,The Regard Partnership Ltd,,Bi-Borough Director of Integrated Care,"3,932.76"
15/09/2021,1245929,The Regard Partnership Ltd,,Bi-Borough Director of Integrated Care,"63,777.55"
15/09/2021,1245929,The Regard Partnership Ltd,,Bi-Borough Director of Integrated Care,"95,249.15"
15/09/2021,1245929,The Regard Partnership Ltd,,Bi-Borough Director of Integrated Care,"3,932.76"
21/07/2021,1249156,The Wirral Autistic Society,,Bi-Borough Director of Integrated Care,"4,271.20"
18/08/2021,1249156,The Wirral Autistic Society,,Bi-Borough Director of Integrated Care,"4,271.20"
15/09/2021,1249156,The Wirral Autistic Society,,Bi-Borough Director of Integrated Care,"4,271.20"
21/07/2021,1246095,Theana Ltd T/a Enlighten Homes,,Bi-Borough Director of Integrated Care,"5,892.00"
18/08/2021,1246095,Theana Ltd T/a Enlighten Homes,,Bi-Borough Director of Integrated Care,"5,892.00"
15/09/2021,1246095,Theana Ltd T/a Enlighten Homes,,Bi-Borough Director of Integrated Care,"5,892.00"
21/07/2021,1243552,Vision Homes Association,,Bi-Borough Director of Integrated Care,"7,760.00"
18/08/2021,1243552,Vision Homes Association,,Bi-Borough Director of Integrated Care,"7,760.00"
15/09/2021,1243552,Vision Homes Association,,Bi-Borough Director of Integrated Care,"7,760.00"
21/07/2021,1243553,Voyage Care (Bridge House),,Bi-Borough Director of Integrated Care,"4,566.00"
21/07/2021,1243553,Voyage Care (Bridge House),,Bi-Borough Director of Integrated Care,"34,949.46"
18/08/2021,1243553,Voyage Care (Bridge House),,Bi-Borough Director of Integrated Care,"4,566.00"
18/08/2021,1243553,Voyage Care (Bridge House),,Bi-Borough Director of Integrated Care,"6,657.04"
15/09/2021,1243553,Voyage Care (Bridge House),,Bi-Borough Director of Integrated Care,"7,158.45"
15/09/2021,1243553,Voyage Care (Bridge House),,Bi-Borough Director of Integrated Care,"6,657.04"
21/07/2021,1243554,Voyage Care (Kenton House),,Bi-Borough Director of Integrated Care,"5,809.96"
18/08/2021,1243554,Voyage Care (Kenton House),,Bi-Borough Director of Integrated Care,"5,809.96"
15/09/2021,1243554,Voyage Care (Kenton House),,Bi-Borough Director of Integrated Care,"5,809.96"
05/07/2021,1249291,Westminster Society,,Bi-Borough Director of Integrated Care,510.00
05/07/2021,1249291,Westminster Society,,Bi-Borough Director of Integrated Care,561.00
14/07/2021,1249291,Westminster Society,Rent,Bi-Borough Director of Integrated Care,"13,244.17"
14/07/2021,1249291,Westminster Society,Rent,Bi-Borough Director of Integrated Care,"9,445.11"
21/07/2021,1249291,Westminster Society,,Bi-Borough Director of Integrated Care,"2,507.12"
21/07/2021,1249291,Westminster Society,,Bi-Borough Director of Integrated Care,540.76
21/07/2021,1249291,Westminster Society,,Bi-Borough Director of Integrated Care,"2,574.88"
21/07/2021,1249291,Westminster Society,,Bi-Borough Director of Integrated Care,"1,965.04"
21/07/2021,1249291,Westminster Society,,Bi-Borough Director of Integrated Care,"3,608.24"
21/07/2021,1249291,Westminster Society,,Bi-Borough Director of Integrated Care,853.96
21/07/2021,1249291,Westminster Society,,Bi-Borough Director of Integrated Care,"2,778.16"
21/07/2021,1249291,Westminster Society,,Bi-Borough Director of Integrated Care,"2,303.84"
21/07/2021,1249291,Westminster Society,,Bi-Borough Director of Integrated Care,"2,371.60"
21/07/2021,1249291,Westminster Society,,Bi-Borough Director of Integrated Care,713.64
21/07/2021,1249291,Westminster Society,,Bi-Borough Director of Integrated Care,"3,394.76"
21/07/2021,1249291,Westminster Society,,Bi-Borough Director of Integrated Care,"2,574.88"
21/07/2021,1249291,Westminster Society,,Bi-Borough Director of Integrated Care,"3,902.96"
21/07/2021,1249291,Westminster Society,,Bi-Borough Director of Integrated Care,721.00
21/07/2021,1249291,Westminster Society,,Bi-Borough Director of Integrated Care,853.96
21/07/2021,1249291,Westminster Society,,Bi-Borough Director of Integrated Care,"4,106.24"
21/07/2021,1249291,Westminster Society,,Bi-Borough Director of Integrated Care,721.00
21/07/2021,1249291,Westminster Society,,Bi-Borough Director of Integrated Care,853.96
21/07/2021,1249291,Westminster Society,,Bi-Borough Director of Integrated Care,"1,067.44"
21/07/2021,1249291,Westminster Society,,Bi-Borough Director of Integrated Care,721.00
21/07/2021,1249291,Westminster Society,,Bi-Borough Director of Integrated Care,"5,901.88"
21/07/2021,1249291,Westminster Society,,Bi-Borough Director of Integrated Care,713.64
21/07/2021,1249291,Westminster Society,,Bi-Borough Director of Integrated Care,"2,676.52"
21/07/2021,1249291,Westminster Society,,Bi-Borough Director of Integrated Care,"1,490.72"
21/07/2021,1249291,Westminster Society,,Bi-Borough Director of Integrated Care,540.76
21/07/2021,1249291,Westminster Society,,Bi-Borough Director of Integrated Care,"1,118.04"
21/07/2021,1249291,Westminster Society,,Bi-Borough Director of Integrated Care,853.96
21/07/2021,1249291,Westminster Society,,Bi-Borough Director of Integrated Care,"7,833.04"
21/07/2021,1249291,Westminster Society,,Bi-Borough Director of Integrated Care,721.00
21/07/2021,1249291,Westminster Society,,Bi-Borough Director of Integrated Care,"1,067.44"
21/07/2021,1249291,Westminster Society,,Bi-Borough Director of Integrated Care,"5,601.72"
21/07/2021,1249291,Westminster Society,,Bi-Borough Director of Integrated Care,721.00
21/07/2021,1249291,Westminster Society,,Bi-Borough Director of Integrated Care,"3,320.24"
21/07/2021,1249291,Westminster Society,,Bi-Borough Director of Integrated Care,540.76
21/07/2021,1249291,Westminster Society,,Bi-Borough Director of Integrated Care,"1,456.84"
21/07/2021,1249291,Westminster Society,,Bi-Borough Director of Integrated Care,540.76
21/07/2021,1249291,Westminster Society,,Bi-Borough Director of Integrated Care,"3,388.00"
21/07/2021,1249291,Westminster Society,,Bi-Borough Director of Integrated Care,"3,794.56"
21/07/2021,1249291,Westminster Society,,Bi-Borough Director of Integrated Care,542.08
21/07/2021,1249291,Westminster Society,,Bi-Borough Director of Integrated Care,542.08
21/07/2021,1249291,Westminster Society,,Bi-Borough Director of Integrated Care,677.60
21/07/2021,1249291,Westminster Society,,Bi-Borough Director of Integrated Care,"1,829.52"
21/07/2021,1249291,Westminster Society,,Bi-Borough Director of Integrated Care,540.76
21/07/2021,1249291,Westminster Society,,Bi-Borough Director of Integrated Care,"5,217.52"
21/07/2021,1249291,Westminster Society,,Bi-Borough Director of Integrated Care,540.76
21/07/2021,1249291,Westminster Society,,Bi-Borough Director of Integrated Care,"7,995.68"
21/07/2021,1249291,Westminster Society,,Bi-Borough Director of Integrated Care,"1,624.56"
21/07/2021,1249291,Westminster Society,,Bi-Borough Director of Integrated Care,"4,963.44"
21/07/2021,1249291,Westminster Society,,Bi-Borough Director of Integrated Care,853.96
21/07/2021,1249291,Westminster Society,,Bi-Borough Director of Integrated Care,948.64
21/07/2021,1249291,Westminster Society,,Bi-Borough Director of Integrated Care,"1,219.68"
21/07/2021,1249291,Westminster Society,,Bi-Borough Director of Integrated Care,542.08
21/07/2021,1249291,Westminster Society,,Bi-Borough Director of Integrated Care,"2,100.56"
21/07/2021,1249291,Westminster Society,,Bi-Borough Director of Integrated Care,779.24
21/07/2021,1249291,Westminster Society,,Bi-Borough Director of Integrated Care,853.96
21/07/2021,1249291,Westminster Society,,Bi-Borough Director of Integrated Care,"3,862.32"
21/07/2021,1249291,Westminster Society,,Bi-Borough Director of Integrated Care,713.64
21/07/2021,1249291,Westminster Society,,Bi-Borough Director of Integrated Care,"4,987.12"
21/07/2021,1249291,Westminster Society,,Bi-Borough Director of Integrated Care,853.96
21/07/2021,1249291,Westminster Society,,Bi-Borough Director of Integrated Care,"3,659.04"
21/07/2021,1249291,Westminster Society,,Bi-Borough Director of Integrated Care,"2,032.80"
21/07/2021,1249291,Westminster Society,,Bi-Borough Director of Integrated Care,540.76
21/07/2021,1249291,Westminster Society,,Bi-Borough Director of Integrated Care,"3,676.00"
21/07/2021,1249291,Westminster Society,,Bi-Borough Director of Integrated Care,540.76
21/07/2021,1249291,Westminster Society,,Bi-Borough Director of Integrated Care,"1,897.28"
21/07/2021,1249291,Westminster Society,,Bi-Borough Director of Integrated Care,"5,746.04"
21/07/2021,1249291,Westminster Society,,Bi-Borough Director of Integrated Care,713.64
21/07/2021,1249291,Westminster Society,,Bi-Borough Director of Integrated Care,"1,624.56"
21/07/2021,1249291,Westminster Society,,Bi-Borough Director of Integrated Care,"7,385.84"
21/07/2021,1249291,Westminster Society,,Bi-Borough Director of Integrated Care,"2,710.40"
21/07/2021,1249291,Westminster Society,,Bi-Borough Director of Integrated Care,"2,236.08"
21/07/2021,1249291,Westminster Society,,Bi-Borough Director of Integrated Care,982.52
21/07/2021,1249291,Westminster Society,,Bi-Borough Director of Integrated Care,"1,761.76"
21/07/2021,1249291,Westminster Society,,Bi-Borough Director of Integrated Care,948.64
21/07/2021,1249291,Westminster Society,,Bi-Borough Director of Integrated Care,"2,330.96"
21/07/2021,1249291,Westminster Society,,Bi-Borough Director of Integrated Care,"4,289.20"
21/07/2021,1249291,Westminster Society,,Bi-Borough Director of Integrated Care,"5,488.56"
21/07/2021,1249291,Westminster Society,,Bi-Borough Director of Integrated Care,"1,067.44"
21/07/2021,1249291,Westminster Society,,Bi-Borough Director of Integrated Care,"5,601.72"
21/07/2021,1249291,Westminster Society,,Bi-Borough Director of Integrated Care,721.00
21/07/2021,1249291,Westminster Society,,Bi-Borough Director of Integrated Care,"3,442.20"
21/07/2021,1249291,Westminster Society,,Bi-Borough Director of Integrated Care,713.64
21/07/2021,1249291,Westminster Society,,Bi-Borough Director of Integrated Care,713.64
21/07/2021,1249291,Westminster Society,,Bi-Borough Director of Integrated Care,"5,522.44"
21/07/2021,1249291,Westminster Society,,Bi-Borough Director of Integrated Care,"2,236.08"
21/07/2021,1249291,Westminster Society,,Bi-Borough Director of Integrated Care,"3,133.92"
21/07/2021,1249291,Westminster Society,,Bi-Borough Director of Integrated Care,853.96
21/07/2021,1249291,Westminster Society,,Bi-Borough Director of Integrated Care,"1,897.28"
21/07/2021,1249291,Westminster Society,,Bi-Borough Director of Integrated Care,"1,897.28"
21/07/2021,1249291,Westminster Society,,Bi-Borough Director of Integrated Care,713.64
21/07/2021,1249291,Westminster Society,,Bi-Borough Director of Integrated Care,"2,642.64"
21/07/2021,1249291,Westminster Society,,Bi-Borough Director of Integrated Care,"3,455.76"
21/07/2021,1249291,Westminster Society,,Bi-Borough Director of Integrated Care,"1,829.52"
21/07/2021,1249291,Westminster Society,,Bi-Borough Director of Integrated Care,"6,559.16"
21/07/2021,1249291,Westminster Society,,Bi-Borough Director of Integrated Care,"2,842.40"
21/07/2021,1249291,Westminster Society,,Bi-Borough Director of Integrated Care,"1,253.56"
21/07/2021,1249291,Westminster Society,,Bi-Borough Director of Integrated Care,"3,320.24"
21/07/2021,1249291,Westminster Society,,Bi-Borough Director of Integrated Care,"4,336.64"
21/07/2021,1249291,Westminster Society,,Bi-Borough Director of Integrated Care,"1,406.04"
21/07/2021,1249291,Westminster Society,,Bi-Borough Director of Integrated Care,"2,574.88"
21/07/2021,1249291,Westminster Society,,Bi-Borough Director of Integrated Care,713.64
21/07/2021,1249291,Westminster Society,,Bi-Borough Director of Integrated Care,"3,394.76"
21/07/2021,1249291,Westminster Society,,Bi-Borough Director of Integrated Care,"1,236.64"
21/07/2021,1249291,Westminster Society,,Bi-Borough Director of Integrated Care,"3,083.08"
21/07/2021,1249291,Westminster Society,,Bi-Borough Director of Integrated Care,711.48
21/07/2021,1249291,Westminster Society,,Bi-Borough Director of Integrated Care,"3,455.76"
21/07/2021,1249291,Westminster Society,,Bi-Borough Director of Integrated Care,"3,930.08"
21/07/2021,1249291,Westminster Society,,Bi-Borough Director of Integrated Care,540.76
21/07/2021,1249291,Westminster Society,,Bi-Borough Director of Integrated Care,609.84
21/07/2021,1249291,Westminster Society,,Bi-Borough Director of Integrated Care,853.96
21/07/2021,1249291,Westminster Society,,Bi-Borough Director of Integrated Care,"8,537.76"
21/07/2021,1249291,Westminster Society,,Bi-Borough Director of Integrated Care,721.00
21/07/2021,1249291,Westminster Society,,Bi-Borough Director of Integrated Care,721.00
21/07/2021,1249291,Westminster Society,,Bi-Borough Director of Integrated Care,853.96
21/07/2021,1249291,Westminster Society,,Bi-Borough Director of Integrated Care,"3,902.96"
21/07/2021,1249291,Westminster Society,,Bi-Borough Director of Integrated Care,"3,049.20"
21/07/2021,1249291,Westminster Society,,Bi-Borough Director of Integrated Care,"3,320.24"
21/07/2021,1249291,Westminster Society,,Bi-Borough Director of Integrated Care,542.08
21/07/2021,1249291,Westminster Society,,Bi-Borough Director of Integrated Care,"4,901.08"
21/07/2021,1249291,Westminster Society,,Bi-Borough Director of Integrated Care,721.00
21/07/2021,1249291,Westminster Society,,Bi-Borough Director of Integrated Care,"2,842.40"
21/07/2021,1249291,Westminster Society,,Bi-Borough Director of Integrated Care,721.00
21/07/2021,1249291,Westminster Society,,Bi-Borough Director of Integrated Care,"3,879.28"
21/07/2021,1249291,Westminster Society,,Bi-Borough Director of Integrated Care,853.96
21/07/2021,1249291,Westminster Society,,Bi-Borough Director of Integrated Care,"1,185.80"
21/07/2021,1249291,Westminster Society,,Bi-Borough Director of Integrated Care,"3,252.48"
23/07/2021,1249291,Westminster Society,B*Voluntary-Spot-V Dep-Enhanced - do not u,Bi-Borough Director of Integrated Care,612.00
23/07/2021,1249291,Westminster Society,B*Voluntary-Spot-V Dep-Enhanced - do not u,Bi-Borough Director of Integrated Care,612.00
23/07/2021,1249291,Westminster Society,B*Voluntary-Spot-V Dep-Enhanced - do not u,Bi-Borough Director of Integrated Care,816.00
23/07/2021,1249291,Westminster Society,B*Voluntary-Spot-V Dep-Enhanced - do not u,Bi-Borough Director of Integrated Care,952.00
23/07/2021,1249291,Westminster Society,B*Voluntary-Spot-V Dep-Enhanced - do not u,Bi-Borough Director of Integrated Care,544.00
23/07/2021,1249291,Westminster Society,B*Voluntary-Spot-V Dep-Enhanced - do not u,Bi-Borough Director of Integrated Care,612.00
23/07/2021,1249291,Westminster Society,B*Voluntary-Spot-V Dep-Enhanced - do not u,Bi-Borough Director of Integrated Care,884.00
23/07/2021,1249291,Westminster Society,B*Voluntary-Spot-V Dep-Enhanced - do not u,Bi-Borough Director of Integrated Care,952.00
23/07/2021,1249291,Westminster Society,B*Voluntary-Spot-V Dep-Enhanced - do not u,Bi-Borough Director of Integrated Care,748.00
23/07/2021,1249291,Westminster Society,B*Voluntary-Spot-V Dep-Enhanced - do not u,Bi-Borough Director of Integrated Care,544.00
23/07/2021,1249291,Westminster Society,B*Voluntary-Spot-V Dep-Enhanced - do not u,Bi-Borough Director of Integrated Care,"2,040.00"
23/07/2021,1249291,Westminster Society,B*Voluntary-Spot-V Dep-Enhanced - do not u,Bi-Borough Director of Integrated Care,816.00
23/07/2021,1249291,Westminster Society,B*Voluntary-Spot-V Dep-Enhanced - do not u,Bi-Borough Director of Integrated Care,680.00
23/07/2021,1249291,Westminster Society,B*Voluntary-Spot-V Dep-Enhanced - do not u,Bi-Borough Director of Integrated Care,"1,088.00"
23/07/2021,1249291,Westminster Society,B*Voluntary-Spot-V Dep-Enhanced - do not u,Bi-Borough Director of Integrated Care,816.00
23/07/2021,1249291,Westminster Society,B*Voluntary-Spot-V Dep-Enhanced - do not u,Bi-Borough Director of Integrated Care,782.00
23/07/2021,1249291,Westminster Society,B*Voluntary-Spot-V Dep-Enhanced - do not u,Bi-Borough Director of Integrated Care,"1,836.00"
23/07/2021,1249291,Westminster Society,B*Voluntary-Spot-V Dep-Enhanced - do not u,Bi-Borough Director of Integrated Care,612.00
03/08/2021,1249291,Westminster Society,B*Voluntary-Spot-V Dep-Enhanced - do not u,Bi-Borough Director of Integrated Care,"2,550.00"
03/08/2021,1249291,Westminster Society,B*Voluntary-Spot-V Dep-Enhanced - do not u,Bi-Borough Director of Integrated Care,595.00
03/08/2021,1249291,Westminster Society,B*Voluntary-Spot-V Dep-Enhanced - do not u,Bi-Borough Director of Integrated Care,510.00
03/08/2021,1249291,Westminster Society,B*Voluntary-Spot-V Dep-Enhanced - do not u,Bi-Borough Director of Integrated Care,595.00
03/08/2021,1249291,Westminster Society,B*Voluntary-Spot-V Dep-Enhanced - do not u,Bi-Borough Director of Integrated Care,595.00
03/08/2021,1249291,Westminster Society,B*Voluntary-Spot-V Dep-Enhanced - do not u,Bi-Borough Director of Integrated Care,"1,020.00"
03/08/2021,1249291,Westminster Society,B*Voluntary-Spot-V Dep-Enhanced - do not u,Bi-Borough Director of Integrated Care,850.00
03/08/2021,1249291,Westminster Society,B*Voluntary-Spot-V Dep-Enhanced - do not u,Bi-Borough Director of Integrated Care,"1,360.00"
03/08/2021,1249291,Westminster Society,B*Voluntary-Spot-V Dep-Enhanced - do not u,Bi-Borough Director of Integrated Care,"1,581.00"
03/08/2021,1249291,Westminster Society,B*Voluntary-Spot-V Dep-Enhanced - do not u,Bi-Borough Director of Integrated Care,977.50
03/08/2021,1249291,Westminster Society,B*Voluntary-Spot-V Dep-Enhanced - do not u,Bi-Borough Director of Integrated Care,765.00
03/08/2021,1249291,Westminster Society,B*Voluntary-Spot-V Dep-Enhanced - do not u,Bi-Borough Director of Integrated Care,510.00
03/08/2021,1249291,Westminster Society,B*Voluntary-Spot-V Dep-Enhanced - do not u,Bi-Borough Director of Integrated Care,765.00
03/08/2021,1249291,Westminster Society,B*Voluntary-Spot-V Dep-Enhanced - do not u,Bi-Borough Director of Integrated Care,510.00
03/08/2021,1249291,Westminster Society,B*Voluntary-Spot-V Dep-Enhanced - do not u,Bi-Borough Director of Integrated Care,510.00
03/08/2021,1249291,Westminster Society,B*Voluntary-Spot-V Dep-Enhanced - do not u,Bi-Borough Director of Integrated Care,510.00
03/08/2021,1249291,Westminster Society,B*Voluntary-Spot-V Dep-Enhanced - do not u,Bi-Borough Director of Integrated Care,510.00
03/08/2021,1249291,Westminster Society,B*Voluntary-Spot-V Dep-Enhanced - do not u,Bi-Borough Director of Integrated Care,510.00
03/08/2021,1249291,Westminster Society,B*Voluntary-Spot-V Dep-Enhanced - do not u,Bi-Borough Director of Integrated Care,510.00
03/08/2021,1249291,Westminster Society,B*Voluntary-Spot-V Dep-Enhanced - do not u,Bi-Borough Director of Integrated Care,510.00
03/08/2021,1249291,Westminster Society,B*Voluntary-Spot-V Dep-Enhanced - do not u,Bi-Borough Director of Integrated Care,510.00
03/08/2021,1249291,Westminster Society,B*Voluntary-Spot-V Dep-Enhanced - do not u,Bi-Borough Director of Integrated Care,510.00
03/08/2021,1249291,Westminster Society,B*Voluntary-Spot-V Dep-Enhanced - do not u,Bi-Borough Director of Integrated Care,510.00
03/08/2021,1249291,Westminster Society,B*Voluntary-Spot-V Dep-Enhanced - do not u,Bi-Borough Director of Integrated Care,765.00
03/08/2021,1249291,Westminster Society,B*Voluntary-Spot-V Dep-Enhanced - do not u,Bi-Borough Director of Integrated Care,510.00
03/08/2021,1249291,Westminster Society,B*Voluntary-Spot-V Dep-Enhanced - do not u,Bi-Borough Director of Integrated Care,510.00
03/08/2021,1249291,Westminster Society,B*Voluntary-Spot-V Dep-Enhanced - do not u,Bi-Borough Director of Integrated Care,510.00
03/08/2021,1249291,Westminster Society,B*Voluntary-Spot-V Dep-Enhanced - do not u,Bi-Borough Director of Integrated Care,"1,020.00"
09/08/2021,1249291,Westminster Society,Rent,Bi-Borough Director of Integrated Care,"14,208.98"
18/08/2021,1249291,Westminster Society,,Bi-Borough Director of Integrated Care,"2,964.50"
18/08/2021,1249291,Westminster Society,,Bi-Borough Director of Integrated Care,"4,336.64"
18/08/2021,1249291,Westminster Society,,Bi-Borough Director of Integrated Care,"3,221.02"
18/08/2021,1249291,Westminster Society,,Bi-Borough Director of Integrated Care,"2,574.88"
18/08/2021,1249291,Westminster Society,,Bi-Borough Director of Integrated Care,713.64
18/08/2021,1249291,Westminster Society,,Bi-Borough Director of Integrated Care,"3,394.76"
18/08/2021,1249291,Westminster Society,,Bi-Borough Director of Integrated Care,677.60
18/08/2021,1249291,Westminster Society,,Bi-Borough Director of Integrated Care,"1,829.52"
18/08/2021,1249291,Westminster Society,,Bi-Borough Director of Integrated Care,"5,217.52"
18/08/2021,1249291,Westminster Society,,Bi-Borough Director of Integrated Care,540.76
18/08/2021,1249291,Westminster Society,,Bi-Borough Director of Integrated Care,"7,995.68"
18/08/2021,1249291,Westminster Society,,Bi-Borough Director of Integrated Care,540.76
18/08/2021,1249291,Westminster Society,,Bi-Borough Director of Integrated Care,"1,624.56"
18/08/2021,1249291,Westminster Society,,Bi-Borough Director of Integrated Care,853.96
18/08/2021,1249291,Westminster Society,,Bi-Borough Director of Integrated Care,"4,963.44"
18/08/2021,1249291,Westminster Society,,Bi-Borough Director of Integrated Care,948.64
18/08/2021,1249291,Westminster Society,,Bi-Borough Director of Integrated Care,"1,219.68"
18/08/2021,1249291,Westminster Society,,Bi-Borough Director of Integrated Care,542.08
18/08/2021,1249291,Westminster Society,,Bi-Borough Director of Integrated Care,"2,100.56"
18/08/2021,1249291,Westminster Society,,Bi-Borough Director of Integrated Care,779.24
18/08/2021,1249291,Westminster Society,,Bi-Borough Director of Integrated Care,853.96
18/08/2021,1249291,Westminster Society,,Bi-Borough Director of Integrated Care,"4,497.57"
18/08/2021,1249291,Westminster Society,,Bi-Borough Director of Integrated Care,"2,535.68"
18/08/2021,1249291,Westminster Society,,Bi-Borough Director of Integrated Care,"5,746.04"
18/08/2021,1249291,Westminster Society,,Bi-Borough Director of Integrated Care,713.64
18/08/2021,1249291,Westminster Society,,Bi-Borough Director of Integrated Care,"3,049.20"
18/08/2021,1249291,Westminster Society,,Bi-Borough Director of Integrated Care,"3,320.24"
18/08/2021,1249291,Westminster Society,,Bi-Borough Director of Integrated Care,542.08
18/08/2021,1249291,Westminster Society,,Bi-Borough Director of Integrated Care,"2,842.40"
18/08/2021,1249291,Westminster Society,,Bi-Borough Director of Integrated Care,721.00
18/08/2021,1249291,Westminster Society,,Bi-Borough Director of Integrated Care,"4,901.08"
18/08/2021,1249291,Westminster Society,,Bi-Borough Director of Integrated Care,721.00
18/08/2021,1249291,Westminster Society,,Bi-Borough Director of Integrated Care,853.96
18/08/2021,1249291,Westminster Society,,Bi-Borough Director of Integrated Care,"3,879.28"
18/08/2021,1249291,Westminster Society,,Bi-Borough Director of Integrated Care,"1,185.80"
18/08/2021,1249291,Westminster Society,,Bi-Borough Director of Integrated Care,"2,535.68"
18/08/2021,1249291,Westminster Society,,Bi-Borough Director of Integrated Care,"3,252.48"
18/08/2021,1249291,Westminster Society,,Bi-Borough Director of Integrated Care,540.76
18/08/2021,1249291,Westminster Society,,Bi-Borough Director of Integrated Care,"1,490.72"
18/08/2021,1249291,Westminster Society,,Bi-Borough Director of Integrated Care,"1,118.04"
18/08/2021,1249291,Westminster Society,,Bi-Borough Director of Integrated Care,853.96
18/08/2021,1249291,Westminster Society,,Bi-Borough Director of Integrated Care,721.00
18/08/2021,1249291,Westminster Society,,Bi-Borough Director of Integrated Care,"7,833.04"
18/08/2021,1249291,Westminster Society,,Bi-Borough Director of Integrated Care,721.00
18/08/2021,1249291,Westminster Society,,Bi-Borough Director of Integrated Care,"1,067.44"
18/08/2021,1249291,Westminster Society,,Bi-Borough Director of Integrated Care,"5,601.72"
18/08/2021,1249291,Westminster Society,,Bi-Borough Director of Integrated Care,"4,844.84"
18/08/2021,1249291,Westminster Society,,Bi-Borough Director of Integrated Care,"1,566.54"
18/08/2021,1249291,Westminster Society,,Bi-Borough Director of Integrated Care,"1,694.00"
18/08/2021,1249291,Westminster Society,,Bi-Borough Director of Integrated Care,540.76
18/08/2021,1249291,Westminster Society,,Bi-Borough Director of Integrated Care,"3,388.00"
18/08/2021,1249291,Westminster Society,,Bi-Borough Director of Integrated Care,"3,794.56"
18/08/2021,1249291,Westminster Society,,Bi-Borough Director of Integrated Care,542.08
18/08/2021,1249291,Westminster Society,,Bi-Borough Director of Integrated Care,542.08
18/08/2021,1249291,Westminster Society,,Bi-Borough Director of Integrated Care,"4,987.12"
18/08/2021,1249291,Westminster Society,,Bi-Borough Director of Integrated Care,713.64
18/08/2021,1249291,Westminster Society,,Bi-Borough Director of Integrated Care,"3,659.04"
18/08/2021,1249291,Westminster Society,,Bi-Borough Director of Integrated Care,853.96
18/08/2021,1249291,Westminster Society,,Bi-Borough Director of Integrated Care,540.76
18/08/2021,1249291,Westminster Society,,Bi-Borough Director of Integrated Care,"2,032.80"
18/08/2021,1249291,Westminster Society,,Bi-Borough Director of Integrated Care,"3,676.00"
18/08/2021,1249291,Westminster Society,,Bi-Borough Director of Integrated Care,540.76
18/08/2021,1249291,Westminster Society,,Bi-Borough Director of Integrated Care,"1,897.28"
18/08/2021,1249291,Westminster Society,,Bi-Borough Director of Integrated Care,"7,385.84"
18/08/2021,1249291,Westminster Society,,Bi-Borough Director of Integrated Care,"1,624.56"
18/08/2021,1249291,Westminster Society,,Bi-Borough Director of Integrated Care,"2,710.40"
18/08/2021,1249291,Westminster Society,,Bi-Borough Director of Integrated Care,"2,236.08"
18/08/2021,1249291,Westminster Society,,Bi-Borough Director of Integrated Care,982.52
18/08/2021,1249291,Westminster Society,,Bi-Borough Director of Integrated Care,"1,761.76"
18/08/2021,1249291,Westminster Society,,Bi-Borough Director of Integrated Care,948.64
18/08/2021,1249291,Westminster Society,,Bi-Borough Director of Integrated Care,"2,330.96"
18/08/2021,1249291,Westminster Society,,Bi-Borough Director of Integrated Care,"4,289.20"
18/08/2021,1249291,Westminster Society,,Bi-Borough Director of Integrated Care,"5,488.56"
18/08/2021,1249291,Westminster Society,,Bi-Borough Director of Integrated Care,"5,601.72"
18/08/2021,1249291,Westminster Society,,Bi-Borough Director of Integrated Care,"1,067.44"
18/08/2021,1249291,Westminster Society,,Bi-Borough Director of Integrated Care,721.00
18/08/2021,1249291,Westminster Society,,Bi-Borough Director of Integrated Care,"3,442.20"
18/08/2021,1249291,Westminster Society,,Bi-Borough Director of Integrated Care,713.64
18/08/2021,1249291,Westminster Society,,Bi-Borough Director of Integrated Care,713.64
18/08/2021,1249291,Westminster Society,,Bi-Borough Director of Integrated Care,"5,522.44"
18/08/2021,1249291,Westminster Society,,Bi-Borough Director of Integrated Care,"2,236.08"
18/08/2021,1249291,Westminster Society,,Bi-Borough Director of Integrated Care,853.96
18/08/2021,1249291,Westminster Society,,Bi-Borough Director of Integrated Care,"3,133.92"
18/08/2021,1249291,Westminster Society,,Bi-Borough Director of Integrated Care,"1,897.28"
18/08/2021,1249291,Westminster Society,,Bi-Borough Director of Integrated Care,713.64
18/08/2021,1249291,Westminster Society,,Bi-Borough Director of Integrated Care,"1,897.28"
18/08/2021,1249291,Westminster Society,,Bi-Borough Director of Integrated Care,"2,642.64"
18/08/2021,1249291,Westminster Society,,Bi-Borough Director of Integrated Care,"3,455.76"
18/08/2021,1249291,Westminster Society,,Bi-Borough Director of Integrated Care,"1,829.52"
18/08/2021,1249291,Westminster Society,,Bi-Borough Director of Integrated Care,"2,842.40"
18/08/2021,1249291,Westminster Society,,Bi-Borough Director of Integrated Care,"6,559.16"
18/08/2021,1249291,Westminster Society,,Bi-Borough Director of Integrated Care,"1,253.56"
18/08/2021,1249291,Westminster Society,,Bi-Borough Director of Integrated Care,"1,236.64"
18/08/2021,1249291,Westminster Society,,Bi-Borough Director of Integrated Care,"3,083.08"
18/08/2021,1249291,Westminster Society,,Bi-Borough Director of Integrated Care,948.64
18/08/2021,1249291,Westminster Society,,Bi-Borough Director of Integrated Care,"3,455.76"
18/08/2021,1249291,Westminster Society,,Bi-Borough Director of Integrated Care,"3,930.08"
18/08/2021,1249291,Westminster Society,,Bi-Borough Director of Integrated Care,540.76
18/08/2021,1249291,Westminster Society,,Bi-Borough Director of Integrated Care,609.84
18/08/2021,1249291,Westminster Society,,Bi-Borough Director of Integrated Care,"8,537.76"
18/08/2021,1249291,Westminster Society,,Bi-Borough Director of Integrated Care,721.00
18/08/2021,1249291,Westminster Society,,Bi-Borough Director of Integrated Care,853.96
18/08/2021,1249291,Westminster Society,,Bi-Borough Director of Integrated Care,721.00
18/08/2021,1249291,Westminster Society,,Bi-Borough Director of Integrated Care,853.96
18/08/2021,1249291,Westminster Society,,Bi-Borough Director of Integrated Care,"3,902.96"
18/08/2021,1249291,Westminster Society,,Bi-Borough Director of Integrated Care,"2,507.12"
18/08/2021,1249291,Westminster Society,,Bi-Borough Director of Integrated Care,"2,574.88"
18/08/2021,1249291,Westminster Society,,Bi-Borough Director of Integrated Care,540.76
18/08/2021,1249291,Westminster Society,,Bi-Borough Director of Integrated Care,"1,965.04"
18/08/2021,1249291,Westminster Society,,Bi-Borough Director of Integrated Care,"3,608.24"
18/08/2021,1249291,Westminster Society,,Bi-Borough Director of Integrated Care,853.96
18/08/2021,1249291,Westminster Society,,Bi-Borough Director of Integrated Care,"2,778.16"
18/08/2021,1249291,Westminster Society,,Bi-Borough Director of Integrated Care,"2,303.84"
18/08/2021,1249291,Westminster Society,,Bi-Borough Director of Integrated Care,"2,371.60"
18/08/2021,1249291,Westminster Society,,Bi-Borough Director of Integrated Care,713.64
18/08/2021,1249291,Westminster Society,,Bi-Borough Director of Integrated Care,"3,394.76"
18/08/2021,1249291,Westminster Society,,Bi-Borough Director of Integrated Care,"2,574.88"
18/08/2021,1249291,Westminster Society,,Bi-Borough Director of Integrated Care,721.00
18/08/2021,1249291,Westminster Society,,Bi-Borough Director of Integrated Care,"3,902.96"
18/08/2021,1249291,Westminster Society,,Bi-Borough Director of Integrated Care,853.96
18/08/2021,1249291,Westminster Society,,Bi-Borough Director of Integrated Care,853.96
18/08/2021,1249291,Westminster Society,,Bi-Borough Director of Integrated Care,"4,106.24"
18/08/2021,1249291,Westminster Society,,Bi-Borough Director of Integrated Care,721.00
18/08/2021,1249291,Westminster Society,,Bi-Borough Director of Integrated Care,"5,901.88"
18/08/2021,1249291,Westminster Society,,Bi-Borough Director of Integrated Care,721.00
18/08/2021,1249291,Westminster Society,,Bi-Borough Director of Integrated Care,"1,067.44"
18/08/2021,1249291,Westminster Society,,Bi-Borough Director of Integrated Care,"2,676.52"
18/08/2021,1249291,Westminster Society,,Bi-Borough Director of Integrated Care,713.64
18/08/2021,1249291,Westminster Society,,Bi-Borough Director of Integrated Care,"1,240.15"
06/09/2021,1249291,Westminster Society,B*Voluntary-Spot-V Dep-Enhanced - do not u,Bi-Borough Director of Integrated Care,"1,190.00"
06/09/2021,1249291,Westminster Society,B*Voluntary-Spot-V Dep-Enhanced - do not u,Bi-Borough Director of Integrated Care,680.00
06/09/2021,1249291,Westminster Society,B*Voluntary-Spot-V Dep-Enhanced - do not u,Bi-Borough Director of Integrated Care,765.00
06/09/2021,1249291,Westminster Society,B*Voluntary-Spot-V Dep-Enhanced - do not u,Bi-Borough Director of Integrated Care,"1,105.00"
06/09/2021,1249291,Westminster Society,B*Voluntary-Spot-V Dep-Enhanced - do not u,Bi-Borough Director of Integrated Care,"1,190.00"
06/09/2021,1249291,Westminster Society,B*Voluntary-Spot-V Dep-Enhanced - do not u,Bi-Borough Director of Integrated Care,510.00
06/09/2021,1249291,Westminster Society,B*Voluntary-Spot-V Dep-Enhanced - do not u,Bi-Borough Director of Integrated Care,510.00
06/09/2021,1249291,Westminster Society,B*Voluntary-Spot-V Dep-Enhanced - do not u,Bi-Borough Director of Integrated Care,935.00
06/09/2021,1249291,Westminster Society,B*Voluntary-Spot-V Dep-Enhanced - do not u,Bi-Borough Director of Integrated Care,"1,615.00"
06/09/2021,1249291,Westminster Society,B*Voluntary-Spot-V Dep-Enhanced - do not u,Bi-Borough Director of Integrated Care,680.00
06/09/2021,1249291,Westminster Society,B*Voluntary-Spot-V Dep-Enhanced - do not u,Bi-Borough Director of Integrated Care,680.00
15/09/2021,1249291,Westminster Society,,Bi-Borough Director of Integrated Care,"3,388.00"
15/09/2021,1249291,Westminster Society,,Bi-Borough Director of Integrated Care,"3,794.56"
15/09/2021,1249291,Westminster Society,,Bi-Borough Director of Integrated Care,542.08
15/09/2021,1249291,Westminster Society,,Bi-Borough Director of Integrated Care,542.08
15/09/2021,1249291,Westminster Society,,Bi-Borough Director of Integrated Care,"4,987.12"
15/09/2021,1249291,Westminster Society,,Bi-Borough Director of Integrated Care,713.64
15/09/2021,1249291,Westminster Society,,Bi-Borough Director of Integrated Care,"3,659.04"
15/09/2021,1249291,Westminster Society,,Bi-Borough Director of Integrated Care,853.96
15/09/2021,1249291,Westminster Society,,Bi-Borough Director of Integrated Care,540.76
15/09/2021,1249291,Westminster Society,,Bi-Borough Director of Integrated Care,"2,032.80"
15/09/2021,1249291,Westminster Society,,Bi-Borough Director of Integrated Care,"3,676.00"
15/09/2021,1249291,Westminster Society,,Bi-Borough Director of Integrated Care,"1,897.28"
15/09/2021,1249291,Westminster Society,,Bi-Borough Director of Integrated Care,540.76
15/09/2021,1249291,Westminster Society,,Bi-Borough Director of Integrated Care,"1,624.56"
15/09/2021,1249291,Westminster Society,,Bi-Borough Director of Integrated Care,"7,385.84"
15/09/2021,1249291,Westminster Society,,Bi-Borough Director of Integrated Care,"2,710.40"
15/09/2021,1249291,Westminster Society,,Bi-Borough Director of Integrated Care,"2,236.08"
15/09/2021,1249291,Westminster Society,,Bi-Borough Director of Integrated Care,982.52
15/09/2021,1249291,Westminster Society,,Bi-Borough Director of Integrated Care,"1,761.76"
15/09/2021,1249291,Westminster Society,,Bi-Borough Director of Integrated Care,948.64
15/09/2021,1249291,Westminster Society,,Bi-Borough Director of Integrated Care,"2,330.96"
15/09/2021,1249291,Westminster Society,,Bi-Borough Director of Integrated Care,"4,289.20"
15/09/2021,1249291,Westminster Society,,Bi-Borough Director of Integrated Care,"5,488.56"
15/09/2021,1249291,Westminster Society,,Bi-Borough Director of Integrated Care,"1,067.44"
15/09/2021,1249291,Westminster Society,,Bi-Borough Director of Integrated Care,721.00
15/09/2021,1249291,Westminster Society,,Bi-Borough Director of Integrated Care,"12,590.52"
15/09/2021,1249291,Westminster Society,,Bi-Borough Director of Integrated Care,713.64
15/09/2021,1249291,Westminster Society,,Bi-Borough Director of Integrated Care,"3,442.20"
15/09/2021,1249291,Westminster Society,,Bi-Borough Director of Integrated Care,713.64
15/09/2021,1249291,Westminster Society,,Bi-Borough Director of Integrated Care,"5,522.44"
15/09/2021,1249291,Westminster Society,,Bi-Borough Director of Integrated Care,"2,236.08"
15/09/2021,1249291,Westminster Society,,Bi-Borough Director of Integrated Care,"3,133.92"
15/09/2021,1249291,Westminster Society,,Bi-Borough Director of Integrated Care,853.96
15/09/2021,1249291,Westminster Society,,Bi-Borough Director of Integrated Care,"1,897.28"
15/09/2021,1249291,Westminster Society,,Bi-Borough Director of Integrated Care,"1,897.28"
15/09/2021,1249291,Westminster Society,,Bi-Borough Director of Integrated Care,713.64
15/09/2021,1249291,Westminster Society,,Bi-Borough Director of Integrated Care,"2,642.64"
15/09/2021,1249291,Westminster Society,,Bi-Borough Director of Integrated Care,"3,455.76"
15/09/2021,1249291,Westminster Society,,Bi-Borough Director of Integrated Care,"1,829.52"
15/09/2021,1249291,Westminster Society,,Bi-Borough Director of Integrated Care,"6,559.16"
15/09/2021,1249291,Westminster Society,,Bi-Borough Director of Integrated Care,"2,842.40"
15/09/2021,1249291,Westminster Society,,Bi-Borough Director of Integrated Care,"1,253.56"
15/09/2021,1249291,Westminster Society,,Bi-Borough Director of Integrated Care,"1,236.64"
15/09/2021,1249291,Westminster Society,,Bi-Borough Director of Integrated Care,"3,083.08"
15/09/2021,1249291,Westminster Society,,Bi-Borough Director of Integrated Care,948.64
15/09/2021,1249291,Westminster Society,,Bi-Borough Director of Integrated Care,"3,455.76"
15/09/2021,1249291,Westminster Society,,Bi-Borough Director of Integrated Care,713.64
15/09/2021,1249291,Westminster Society,,Bi-Borough Director of Integrated Care,"8,063.44"
15/09/2021,1249291,Westminster Society,,Bi-Borough Director of Integrated Care,"3,930.08"
15/09/2021,1249291,Westminster Society,,Bi-Borough Director of Integrated Care,540.76
15/09/2021,1249291,Westminster Society,,Bi-Borough Director of Integrated Care,609.84
15/09/2021,1249291,Westminster Society,,Bi-Borough Director of Integrated Care,721.00
15/09/2021,1249291,Westminster Society,,Bi-Borough Director of Integrated Care,853.96
15/09/2021,1249291,Westminster Society,,Bi-Borough Director of Integrated Care,"10,967.00"
15/09/2021,1249291,Westminster Society,,Bi-Borough Director of Integrated Care,"2,507.12"
15/09/2021,1249291,Westminster Society,,Bi-Borough Director of Integrated Care,"2,574.88"
15/09/2021,1249291,Westminster Society,,Bi-Borough Director of Integrated Care,540.76
15/09/2021,1249291,Westminster Society,,Bi-Borough Director of Integrated Care,"1,965.04"
15/09/2021,1249291,Westminster Society,,Bi-Borough Director of Integrated Care,853.96
15/09/2021,1249291,Westminster Society,,Bi-Borough Director of Integrated Care,"3,608.24"
15/09/2021,1249291,Westminster Society,,Bi-Borough Director of Integrated Care,"2,778.16"
15/09/2021,1249291,Westminster Society,,Bi-Borough Director of Integrated Care,"2,303.84"
15/09/2021,1249291,Westminster Society,,Bi-Borough Director of Integrated Care,"2,371.60"
15/09/2021,1249291,Westminster Society,,Bi-Borough Director of Integrated Care,713.64
15/09/2021,1249291,Westminster Society,,Bi-Borough Director of Integrated Care,"3,394.76"
15/09/2021,1249291,Westminster Society,,Bi-Borough Director of Integrated Care,"2,574.88"
15/09/2021,1249291,Westminster Society,,Bi-Borough Director of Integrated Care,721.00
15/09/2021,1249291,Westminster Society,,Bi-Borough Director of Integrated Care,"3,902.96"
15/09/2021,1249291,Westminster Society,,Bi-Borough Director of Integrated Care,853.96
15/09/2021,1249291,Westminster Society,,Bi-Borough Director of Integrated Care,853.96
15/09/2021,1249291,Westminster Society,,Bi-Borough Director of Integrated Care,721.00
15/09/2021,1249291,Westminster Society,,Bi-Borough Director of Integrated Care,"11,170.28"
15/09/2021,1249291,Westminster Society,,Bi-Borough Director of Integrated Care,"1,067.44"
15/09/2021,1249291,Westminster Society,,Bi-Borough Director of Integrated Care,721.00
15/09/2021,1249291,Westminster Society,,Bi-Borough Director of Integrated Care,"5,901.88"
15/09/2021,1249291,Westminster Society,,Bi-Borough Director of Integrated Care,713.64
15/09/2021,1249291,Westminster Society,,Bi-Borough Director of Integrated Care,"2,676.52"
15/09/2021,1249291,Westminster Society,,Bi-Borough Director of Integrated Care,"2,608.76"
15/09/2021,1249291,Westminster Society,,Bi-Borough Director of Integrated Care,"4,336.64"
15/09/2021,1249291,Westminster Society,,Bi-Borough Director of Integrated Care,"2,845.92"
15/09/2021,1249291,Westminster Society,,Bi-Borough Director of Integrated Care,"2,574.88"
15/09/2021,1249291,Westminster Society,,Bi-Borough Director of Integrated Care,"3,394.76"
15/09/2021,1249291,Westminster Society,,Bi-Borough Director of Integrated Care,713.64
15/09/2021,1249291,Westminster Society,,Bi-Borough Director of Integrated Care,677.60
15/09/2021,1249291,Westminster Society,,Bi-Borough Director of Integrated Care,"1,829.52"
15/09/2021,1249291,Westminster Society,,Bi-Borough Director of Integrated Care,"5,217.52"
15/09/2021,1249291,Westminster Society,,Bi-Borough Director of Integrated Care,540.76
15/09/2021,1249291,Westminster Society,,Bi-Borough Director of Integrated Care,"1,624.56"
15/09/2021,1249291,Westminster Society,,Bi-Borough Director of Integrated Care,"7,995.68"
15/09/2021,1249291,Westminster Society,,Bi-Borough Director of Integrated Care,540.76
15/09/2021,1249291,Westminster Society,,Bi-Borough Director of Integrated Care,853.96
15/09/2021,1249291,Westminster Society,,Bi-Borough Director of Integrated Care,"4,963.44"
15/09/2021,1249291,Westminster Society,,Bi-Borough Director of Integrated Care,948.64
15/09/2021,1249291,Westminster Society,,Bi-Borough Director of Integrated Care,"1,219.68"
15/09/2021,1249291,Westminster Society,,Bi-Borough Director of Integrated Care,542.08
15/09/2021,1249291,Westminster Society,,Bi-Borough Director of Integrated Care,"2,100.56"
15/09/2021,1249291,Westminster Society,,Bi-Borough Director of Integrated Care,779.24
15/09/2021,1249291,Westminster Society,,Bi-Borough Director of Integrated Care,"4,709.32"
15/09/2021,1249291,Westminster Society,,Bi-Borough Director of Integrated Care,853.96
15/09/2021,1249291,Westminster Society,,Bi-Borough Director of Integrated Care,"5,746.04"
15/09/2021,1249291,Westminster Society,,Bi-Borough Director of Integrated Care,713.64
15/09/2021,1249291,Westminster Society,,Bi-Borough Director of Integrated Care,"3,049.20"
15/09/2021,1249291,Westminster Society,,Bi-Borough Director of Integrated Care,"3,320.24"
15/09/2021,1249291,Westminster Society,,Bi-Borough Director of Integrated Care,542.08
15/09/2021,1249291,Westminster Society,,Bi-Borough Director of Integrated Care,721.00
15/09/2021,1249291,Westminster Society,,Bi-Borough Director of Integrated Care,"2,842.40"
15/09/2021,1249291,Westminster Society,,Bi-Borough Director of Integrated Care,"6,830.20"
15/09/2021,1249291,Westminster Society,,Bi-Borough Director of Integrated Care,721.00
15/09/2021,1249291,Westminster Society,,Bi-Borough Director of Integrated Care,853.96
15/09/2021,1249291,Westminster Society,,Bi-Borough Director of Integrated Care,"3,879.28"
15/09/2021,1249291,Westminster Society,,Bi-Borough Director of Integrated Care,"1,185.80"
15/09/2021,1249291,Westminster Society,,Bi-Borough Director of Integrated Care,"3,252.48"
15/09/2021,1249291,Westminster Society,,Bi-Borough Director of Integrated Care,540.76
15/09/2021,1249291,Westminster Society,,Bi-Borough Director of Integrated Care,"1,490.72"
15/09/2021,1249291,Westminster Society,,Bi-Borough Director of Integrated Care,"1,118.04"
15/09/2021,1249291,Westminster Society,,Bi-Borough Director of Integrated Care,721.00
15/09/2021,1249291,Westminster Society,,Bi-Borough Director of Integrated Care,"7,833.04"
15/09/2021,1249291,Westminster Society,,Bi-Borough Director of Integrated Care,853.96
15/09/2021,1249291,Westminster Society,,Bi-Borough Director of Integrated Care,"1,067.44"
15/09/2021,1249291,Westminster Society,,Bi-Borough Director of Integrated Care,721.00
15/09/2021,1249291,Westminster Society,,Bi-Borough Director of Integrated Care,"12,590.52"
15/09/2021,1249291,Westminster Society,,Bi-Borough Director of Integrated Care,540.76
15/09/2021,1249291,Westminster Society,,Bi-Borough Director of Integrated Care,"1,694.00"
15/09/2021,1249291,Westminster Society,,Bi-Borough Director of Integrated Care,"1,624.56"
15/09/2021,1249291,Westminster Society,,Bi-Borough Director of Integrated Care,"4,743.20"
17/09/2021,1249291,Westminster Society,B*Voluntary-Spot-V Dep-Enhanced - do not u,Bi-Borough Director of Integrated Care,612.00
17/09/2021,1249291,Westminster Society,B*Voluntary-Spot-V Dep-Enhanced - do not u,Bi-Borough Director of Integrated Care,816.00
17/09/2021,1249291,Westminster Society,B*Voluntary-Spot-V Dep-Enhanced - do not u,Bi-Borough Director of Integrated Care,612.00
23/09/2021,1249291,Westminster Society,B*Voluntary-Spot-V Dep-Enhanced - do not u,Bi-Borough Director of Integrated Care,952.00
23/09/2021,1249291,Westminster Society,B*Voluntary-Spot-V Dep-Enhanced - do not u,Bi-Borough Director of Integrated Care,544.00
23/09/2021,1249291,Westminster Society,B*Voluntary-Spot-V Dep-Enhanced - do not u,Bi-Borough Director of Integrated Care,612.00
23/09/2021,1249291,Westminster Society,B*Voluntary-Spot-V Dep-Enhanced - do not u,Bi-Borough Director of Integrated Care,884.00
23/09/2021,1249291,Westminster Society,B*Voluntary-Spot-V Dep-Enhanced - do not u,Bi-Borough Director of Integrated Care,952.00
23/09/2021,1249291,Westminster Society,B*Voluntary-Spot-V Dep-Enhanced - do not u,Bi-Borough Director of Integrated Care,748.00
23/09/2021,1249291,Westminster Society,B*Voluntary-Spot-V Dep-Enhanced - do not u,Bi-Borough Director of Integrated Care,"1,292.00"
23/09/2021,1249291,Westminster Society,B*Voluntary-Spot-V Dep-Enhanced - do not u,Bi-Borough Director of Integrated Care,544.00
23/09/2021,1249291,Westminster Society,B*Voluntary-Spot-V Dep-Enhanced - do not u,Bi-Borough Director of Integrated Care,544.00
21/07/2021,1246224,Whitmore Vale Housing Association,,Bi-Borough Director of Integrated Care,"3,688.80"
18/08/2021,1246224,Whitmore Vale Housing Association,,Bi-Borough Director of Integrated Care,"3,688.80"
15/09/2021,1246224,Whitmore Vale Housing Association,,Bi-Borough Director of Integrated Care,"3,688.80"
05/07/2021,1243566,Yarrow Housing Ltd,,Bi-Borough Director of Integrated Care,"31,700.80"
21/07/2021,1243566,Yarrow Housing Ltd,,Bi-Borough Director of Integrated Care,"3,651.20"
21/07/2021,1243566,Yarrow Housing Ltd,,Bi-Borough Director of Integrated Care,"3,387.52"
21/07/2021,1243566,Yarrow Housing Ltd,,Bi-Borough Director of Integrated Care,"3,889.16"
21/07/2021,1243566,Yarrow Housing Ltd,,Bi-Borough Director of Integrated Care,"7,297.56"
21/07/2021,1243566,Yarrow Housing Ltd,,Bi-Borough Director of Integrated Care,"8,301.92"
21/07/2021,1243566,Yarrow Housing Ltd,,Bi-Borough Director of Integrated Care,"7,851.20"
21/07/2021,1243566,Yarrow Housing Ltd,,Bi-Borough Director of Integrated Care,"3,632.88"
21/07/2021,1243566,Yarrow Housing Ltd,,Bi-Borough Director of Integrated Care,"1,747.20"
21/07/2021,1243566,Yarrow Housing Ltd,,Bi-Borough Director of Integrated Care,814.08
02/08/2021,1243566,Yarrow Housing Ltd,,Bi-Borough Director of Integrated Care,"15,842.40"
18/08/2021,1243566,Yarrow Housing Ltd,,Bi-Borough Director of Integrated Care,"8,301.92"
18/08/2021,1243566,Yarrow Housing Ltd,,Bi-Borough Director of Integrated Care,"7,851.20"
18/08/2021,1243566,Yarrow Housing Ltd,,Bi-Borough Director of Integrated Care,"3,632.88"
18/08/2021,1243566,Yarrow Housing Ltd,,Bi-Borough Director of Integrated Care,814.08
18/08/2021,1243566,Yarrow Housing Ltd,,Bi-Borough Director of Integrated Care,"3,651.20"
18/08/2021,1243566,Yarrow Housing Ltd,,Bi-Borough Director of Integrated Care,"3,387.52"
18/08/2021,1243566,Yarrow Housing Ltd,,Bi-Borough Director of Integrated Care,"3,889.16"
18/08/2021,1243566,Yarrow Housing Ltd,,Bi-Borough Director of Integrated Care,"7,297.56"
18/08/2021,1243566,Yarrow Housing Ltd,,Bi-Borough Director of Integrated Care,"1,747.20"
06/09/2021,1243566,Yarrow Housing Ltd,,Bi-Borough Director of Integrated Care,"15,846.40"
15/09/2021,1243566,Yarrow Housing Ltd,,Bi-Borough Director of Integrated Care,"3,632.88"
15/09/2021,1243566,Yarrow Housing Ltd,,Bi-Borough Director of Integrated Care,"1,747.20"
15/09/2021,1243566,Yarrow Housing Ltd,,Bi-Borough Director of Integrated Care,814.08
15/09/2021,1243566,Yarrow Housing Ltd,,Bi-Borough Director of Integrated Care,"3,651.20"
15/09/2021,1243566,Yarrow Housing Ltd,,Bi-Borough Director of Integrated Care,"3,387.52"
15/09/2021,1243566,Yarrow Housing Ltd,,Bi-Borough Director of Integrated Care,"3,889.16"
15/09/2021,1243566,Yarrow Housing Ltd,,Bi-Borough Director of Integrated Care,"7,297.56"
15/09/2021,1243566,Yarrow Housing Ltd,,Bi-Borough Director of Integrated Care,"8,301.92"
15/09/2021,1243566,Yarrow Housing Ltd,,Bi-Borough Director of Integrated Care,"7,851.20"
28/07/2021,1249317,Zocalo Ltd T/as Bluebird Care,,Bi-Borough Director of Integrated Care,"3,780.00"
28/07/2021,1249317,Zocalo Ltd T/as Bluebird Care,,Bi-Borough Director of Integrated Care,"1,825.14"
23/09/2021,1249317,Zocalo Ltd T/as Bluebird Care,,Bi-Borough Director of Integrated Care,"3,897.00"
23/09/2021,1249317,Zocalo Ltd T/as Bluebird Care,,Bi-Borough Director of Integrated Care,"1,841.60"
02/08/2021,1249318,Zodiac Arts Ltd,B*Voluntary-Spot-V Dep-Enhanced - do not u,Bi-Borough Director of Integrated Care,715.50
16/08/2021,1249318,Zodiac Arts Ltd,B*Voluntary-Spot-V Dep-Enhanced - do not u,Bi-Borough Director of Integrated Care,715.50
17/09/2021,1249318,Zodiac Arts Ltd,B*Voluntary-Spot-V Dep-Enhanced - do not u,Bi-Borough Director of Integrated Care,715.20
26/07/2021,1249167,TMP (UK) Ltd,Recruitment Expenses (excl. advertising),Bi-Borough Director of Integrated Care,"1,850.00"
06/07/2021,1252498,PERSONAL PAYMENTS,Legal Costs,Bi-Borough Director of Integrated Care,806.25
27/07/2021,1243797,Central & North West London Nhs,Payments to Health Authorities,Bi-Borough Director of Integrated Care,"4,470.88"
27/07/2021,1243797,Central & North West London Nhs,Payments to Health Authorities,Bi-Borough Director of Integrated Care,"8,147.00"
05/07/2021,1252498,PERSONAL PAYMENTS,Legal Costs,Bi-Borough Director of Integrated Care,"1,785.00"
02/08/2021,1260861,Old Square Chambers,Legal Costs,Bi-Borough Director of Integrated Care,"1,200.00"
21/07/2021,1248618,Riverside Echg,,Bi-Borough Director of Integrated Care,"1,238.16"
18/08/2021,1248618,Riverside Echg,,Bi-Borough Director of Integrated Care,"1,238.16"
15/09/2021,1248618,Riverside Echg,,Bi-Borough Director of Integrated Care,"1,238.16"
27/07/2021,1243797,Central & North West London Nhs,Payments to Health Authorities,Bi-Borough Director of Integrated Care,"7,362.00"
21/07/2021,1259100,Care Assist Limited,,Bi-Borough Director of Integrated Care,"3,728.96"
18/08/2021,1259100,Care Assist Limited,,Bi-Borough Director of Integrated Care,"3,728.96"
15/09/2021,1259100,Care Assist Limited,,Bi-Borough Director of Integrated Care,"3,728.96"
21/07/2021,1246561,Church Army Marylebone Project,,Bi-Borough Director of Integrated Care,990.12
21/07/2021,1247852,Look Ahead Care and Support Ltd,,Bi-Borough Director of Integrated Care,955.56
21/07/2021,1247852,Look Ahead Care and Support Ltd,,Bi-Borough Director of Integrated Care,"1,256.64"
21/07/2021,1247852,Look Ahead Care and Support Ltd,,Bi-Borough Director of Integrated Care,"1,285.56"
21/07/2021,1247852,Look Ahead Care and Support Ltd,,Bi-Borough Director of Integrated Care,897.92
21/07/2021,1247852,Look Ahead Care and Support Ltd,,Bi-Borough Director of Integrated Care,842.28
21/07/2021,1247852,Look Ahead Care and Support Ltd,,Bi-Borough Director of Integrated Care,842.28
21/07/2021,1247852,Look Ahead Care and Support Ltd,,Bi-Borough Director of Integrated Care,"1,256.64"
21/07/2021,1247852,Look Ahead Care and Support Ltd,,Bi-Borough Director of Integrated Care,"1,303.28"
21/07/2021,1247852,Look Ahead Care and Support Ltd,,Bi-Borough Director of Integrated Care,955.56
21/07/2021,1247852,Look Ahead Care and Support Ltd,,Bi-Borough Director of Integrated Care,897.92
18/08/2021,1247852,Look Ahead Care and Support Ltd,,Bi-Borough Director of Integrated Care,897.92
18/08/2021,1247852,Look Ahead Care and Support Ltd,,Bi-Borough Director of Integrated Care,842.28
18/08/2021,1247852,Look Ahead Care and Support Ltd,,Bi-Borough Director of Integrated Care,842.28
18/08/2021,1247852,Look Ahead Care and Support Ltd,,Bi-Borough Director of Integrated Care,"1,256.64"
18/08/2021,1247852,Look Ahead Care and Support Ltd,,Bi-Borough Director of Integrated Care,"1,303.28"
18/08/2021,1247852,Look Ahead Care and Support Ltd,,Bi-Borough Director of Integrated Care,955.56
18/08/2021,1247852,Look Ahead Care and Support Ltd,,Bi-Borough Director of Integrated Care,897.92
18/08/2021,1247852,Look Ahead Care and Support Ltd,,Bi-Borough Director of Integrated Care,"2,826.00"
18/08/2021,1247852,Look Ahead Care and Support Ltd,,Bi-Borough Director of Integrated Care,955.56
18/08/2021,1247852,Look Ahead Care and Support Ltd,,Bi-Borough Director of Integrated Care,"1,256.64"
18/08/2021,1247852,Look Ahead Care and Support Ltd,,Bi-Borough Director of Integrated Care,"1,010.08"
15/09/2021,1247852,Look Ahead Care and Support Ltd,,Bi-Borough Director of Integrated Care,955.56
15/09/2021,1247852,Look Ahead Care and Support Ltd,,Bi-Borough Director of Integrated Care,897.92
15/09/2021,1247852,Look Ahead Care and Support Ltd,,Bi-Borough Director of Integrated Care,"1,413.00"
15/09/2021,1247852,Look Ahead Care and Support Ltd,,Bi-Borough Director of Integrated Care,955.56
15/09/2021,1247852,Look Ahead Care and Support Ltd,,Bi-Borough Director of Integrated Care,"1,256.64"
15/09/2021,1247852,Look Ahead Care and Support Ltd,,Bi-Borough Director of Integrated Care,897.92
15/09/2021,1247852,Look Ahead Care and Support Ltd,,Bi-Borough Director of Integrated Care,842.28
15/09/2021,1247852,Look Ahead Care and Support Ltd,,Bi-Borough Director of Integrated Care,842.28
15/09/2021,1247852,Look Ahead Care and Support Ltd,,Bi-Borough Director of Integrated Care,"1,256.64"
15/09/2021,1247852,Look Ahead Care and Support Ltd,,Bi-Borough Director of Integrated Care,"1,303.28"
21/07/2021,1244970,Octavia Housing & Care (Rent,,Bi-Borough Director of Integrated Care,704.40
18/08/2021,1244970,Octavia Housing & Care (Rent,,Bi-Borough Director of Integrated Care,704.40
15/09/2021,1244970,Octavia Housing & Care (Rent,,Bi-Borough Director of Integrated Care,704.40
21/07/2021,1248618,Riverside Echg,,Bi-Borough Director of Integrated Care,"1,055.88"
21/07/2021,1248618,Riverside Echg,,Bi-Borough Director of Integrated Care,"1,238.16"
21/07/2021,1248618,Riverside Echg,,Bi-Borough Director of Integrated Care,"1,157.52"
21/07/2021,1248618,Riverside Echg,,Bi-Borough Director of Integrated Care,706.72
21/07/2021,1248618,Riverside Echg,,Bi-Borough Director of Integrated Care,857.36
21/07/2021,1248618,Riverside Echg,,Bi-Borough Director of Integrated Care,688.24
21/07/2021,1248618,Riverside Echg,,Bi-Borough Director of Integrated Care,"1,215.00"
21/07/2021,1248618,Riverside Echg,,Bi-Borough Director of Integrated Care,"1,215.00"
18/08/2021,1248618,Riverside Echg,,Bi-Borough Director of Integrated Care,"1,238.16"
18/08/2021,1248618,Riverside Echg,,Bi-Borough Director of Integrated Care,"1,157.52"
18/08/2021,1248618,Riverside Echg,,Bi-Borough Director of Integrated Care,706.72
18/08/2021,1248618,Riverside Echg,,Bi-Borough Director of Integrated Care,857.36
18/08/2021,1248618,Riverside Echg,,Bi-Borough Director of Integrated Care,688.24
18/08/2021,1248618,Riverside Echg,,Bi-Borough Director of Integrated Care,"1,215.00"
18/08/2021,1248618,Riverside Echg,,Bi-Borough Director of Integrated Care,"1,215.00"
18/08/2021,1248618,Riverside Echg,,Bi-Borough Director of Integrated Care,"1,055.88"
15/09/2021,1248618,Riverside Echg,,Bi-Borough Director of Integrated Care,"1,157.52"
15/09/2021,1248618,Riverside Echg,,Bi-Borough Director of Integrated Care,706.72
15/09/2021,1248618,Riverside Echg,,Bi-Borough Director of Integrated Care,855.56
15/09/2021,1248618,Riverside Echg,,Bi-Borough Director of Integrated Care,688.24
15/09/2021,1248618,Riverside Echg,,Bi-Borough Director of Integrated Care,"1,215.00"
15/09/2021,1248618,Riverside Echg,,Bi-Borough Director of Integrated Care,"1,222.26"
15/09/2021,1248618,Riverside Echg,,Bi-Borough Director of Integrated Care,"1,055.88"
15/09/2021,1248618,Riverside Echg,,Bi-Borough Director of Integrated Care,"1,238.16"
21/07/2021,1245584,Single Homeless Project,,Bi-Borough Director of Integrated Care,"1,531.40"
21/07/2021,1245584,Single Homeless Project,,Bi-Borough Director of Integrated Care,"1,076.92"
18/08/2021,1245584,Single Homeless Project,,Bi-Borough Director of Integrated Care,"1,076.92"
18/08/2021,1245584,Single Homeless Project,,Bi-Borough Director of Integrated Care,"1,531.40"
15/09/2021,1245584,Single Homeless Project,,Bi-Borough Director of Integrated Care,"1,076.92"
15/09/2021,1245584,Single Homeless Project,,Bi-Borough Director of Integrated Care,"1,531.40"
15/09/2021,1245584,Single Homeless Project,,Bi-Borough Director of Integrated Care,"1,531.36"
21/07/2021,1245636,St Mungos Broadway (Grants &,,Bi-Borough Director of Integrated Care,"1,622.36"
21/07/2021,1245636,St Mungos Broadway (Grants &,,Bi-Borough Director of Integrated Care,"1,511.44"
21/07/2021,1245636,St Mungos Broadway (Grants &,,Bi-Borough Director of Integrated Care,"1,622.36"
21/07/2021,1245636,St Mungos Broadway (Grants &,,Bi-Borough Director of Integrated Care,"1,622.36"
21/07/2021,1245636,St Mungos Broadway (Grants &,,Bi-Borough Director of Integrated Care,"1,511.44"
21/07/2021,1245636,St Mungos Broadway (Grants &,,Bi-Borough Director of Integrated Care,"1,622.36"
21/07/2021,1245636,St Mungos Broadway (Grants &,,Bi-Borough Director of Integrated Care,"1,037.68"
18/08/2021,1245636,St Mungos Broadway (Grants &,,Bi-Borough Director of Integrated Care,"1,622.36"
18/08/2021,1245636,St Mungos Broadway (Grants &,,Bi-Borough Director of Integrated Care,"1,622.36"
18/08/2021,1245636,St Mungos Broadway (Grants &,,Bi-Borough Director of Integrated Care,"1,511.44"
18/08/2021,1245636,St Mungos Broadway (Grants &,,Bi-Borough Director of Integrated Care,"1,622.36"
18/08/2021,1245636,St Mungos Broadway (Grants &,,Bi-Borough Director of Integrated Care,"1,037.68"
18/08/2021,1245636,St Mungos Broadway (Grants &,,Bi-Borough Director of Integrated Care,"1,622.36"
18/08/2021,1245636,St Mungos Broadway (Grants &,,Bi-Borough Director of Integrated Care,"1,511.44"
15/09/2021,1245636,St Mungos Broadway (Grants &,,Bi-Borough Director of Integrated Care,"1,622.36"
15/09/2021,1245636,St Mungos Broadway (Grants &,,Bi-Borough Director of Integrated Care,"1,622.36"
15/09/2021,1245636,St Mungos Broadway (Grants &,,Bi-Borough Director of Integrated Care,"1,511.44"
15/09/2021,1245636,St Mungos Broadway (Grants &,,Bi-Borough Director of Integrated Care,"1,622.36"
15/09/2021,1245636,St Mungos Broadway (Grants &,,Bi-Borough Director of Integrated Care,"1,037.68"
15/09/2021,1245636,St Mungos Broadway (Grants &,,Bi-Borough Director of Integrated Care,"1,622.36"
15/09/2021,1245636,St Mungos Broadway (Grants &,,Bi-Borough Director of Integrated Care,"1,511.44"
02/08/2021,1245800,Action On Hearing Loss,B*Voluntary-Spot-V Dep-Enhanced - do not u,Bi-Borough Director of Integrated Care,"1,400.00"
05/07/2021,1246011,Art4Space,B*Voluntary-Spot-V Dep-Enhanced - do not u,Bi-Borough Director of Integrated Care,"1,300.00"
05/07/2021,1246011,Art4Space,B*Voluntary-Spot-V Dep-Enhanced - do not u,Bi-Borough Director of Integrated Care,"1,300.00"
05/07/2021,1246011,Art4Space,B*Voluntary-Spot-V Dep-Enhanced - do not u,Bi-Borough Director of Integrated Care,"1,300.00"
05/07/2021,1246011,Art4Space,B*Voluntary-Spot-V Dep-Enhanced - do not u,Bi-Borough Director of Integrated Care,"1,300.00"
05/07/2021,1246011,Art4Space,B*Voluntary-Spot-V Dep-Enhanced - do not u,Bi-Borough Director of Integrated Care,"1,300.00"
05/07/2021,1246011,Art4Space,B*Voluntary-Spot-V Dep-Enhanced - do not u,Bi-Borough Director of Integrated Care,"1,300.00"
12/07/2021,1243931,Ashbourne Healthcare Services,,Bi-Borough Director of Integrated Care,"1,292.06"
30/07/2021,1243931,Ashbourne Healthcare Services,,Bi-Borough Director of Integrated Care,"1,174.60"
10/08/2021,1243931,Ashbourne Healthcare Services,,Bi-Borough Director of Integrated Care,"1,174.60"
25/08/2021,1243931,Ashbourne Healthcare Services,,Bi-Borough Director of Integrated Care,"1,359.18"
10/09/2021,1243931,Ashbourne Healthcare Services,,Bi-Borough Director of Integrated Care,"1,174.60"
28/09/2021,1243931,Ashbourne Healthcare Services,,Bi-Borough Director of Integrated Care,"1,174.60"
21/07/2021,1271022,BONZA CARE LTD,,Bi-Borough Director of Integrated Care,"1,684.00"
21/07/2021,1271022,BONZA CARE LTD,,Bi-Borough Director of Integrated Care,"3,800.00"
18/08/2021,1271022,BONZA CARE LTD,,Bi-Borough Director of Integrated Care,"1,684.00"
18/08/2021,1271022,BONZA CARE LTD,,Bi-Borough Director of Integrated Care,"3,800.00"
15/09/2021,1271022,BONZA CARE LTD,,Bi-Borough Director of Integrated Care,"1,684.00"
15/09/2021,1271022,BONZA CARE LTD,,Bi-Borough Director of Integrated Care,"3,800.00"
12/07/2021,1246247,Blitz Home Environmental Cleaning,,Bi-Borough Director of Integrated Care,800.75
06/08/2021,1246247,Blitz Home Environmental Cleaning,,Bi-Borough Director of Integrated Care,"1,800.00"
09/09/2021,1246247,Blitz Home Environmental Cleaning,,Bi-Borough Director of Integrated Care,580.00
12/07/2021,1246261,Brent Wandsworth & Westminster,,Bi-Borough Director of Integrated Care,538.50
23/07/2021,1246262,Brent Wandsworth & Westminster,B*Voluntary-Spot-V Dep-Enhanced - do not u,Bi-Borough Director of Integrated Care,540.00
23/07/2021,1246262,Brent Wandsworth & Westminster,B*Voluntary-Spot-V Dep-Enhanced - do not u,Bi-Borough Director of Integrated Care,780.00
23/07/2021,1246262,Brent Wandsworth & Westminster,B*Voluntary-Spot-V Dep-Enhanced - do not u,Bi-Borough Director of Integrated Care,540.00
23/07/2021,1246262,Brent Wandsworth & Westminster,B*Voluntary-Spot-V Dep-Enhanced - do not u,Bi-Borough Director of Integrated Care,540.00
16/08/2021,1246261,Brent Wandsworth & Westminster,,Bi-Borough Director of Integrated Care,690.47
13/09/2021,1246261,Brent Wandsworth & Westminster,,Bi-Borough Director of Integrated Care,592.35
21/07/2021,1247482,PERSONAL PAYMENTS,,Bi-Borough Director of Integrated Care,833.28
18/08/2021,1247482,PERSONAL PAYMENTS,,Bi-Borough Director of Integrated Care,833.28
15/09/2021,1247482,PERSONAL PAYMENTS,,Bi-Borough Director of Integrated Care,833.28
21/07/2021,1246321,Camphill Village Trust,,Bi-Borough Director of Integrated Care,"1,109.60"
18/08/2021,1246321,Camphill Village Trust,,Bi-Borough Director of Integrated Care,"1,109.60"
15/09/2021,1246321,Camphill Village Trust,,Bi-Borough Director of Integrated Care,"1,109.60"
05/07/2021,1246581,Clearup Solutions Limited,,Bi-Borough Director of Integrated Care,785.00
07/07/2021,1246581,Clearup Solutions Limited,,Bi-Borough Director of Integrated Care,550.00
07/07/2021,1246581,Clearup Solutions Limited,,Bi-Borough Director of Integrated Care,620.00
07/07/2021,1246581,Clearup Solutions Limited,,Bi-Borough Director of Integrated Care,701.00
30/07/2021,1246581,Clearup Solutions Limited,,Bi-Borough Director of Integrated Care,550.00
30/07/2021,1246581,Clearup Solutions Limited,,Bi-Borough Director of Integrated Care,650.00
30/07/2021,1246581,Clearup Solutions Limited,,Bi-Borough Director of Integrated Care,685.00
30/07/2021,1246581,Clearup Solutions Limited,,Bi-Borough Director of Integrated Care,675.00
16/08/2021,1246581,Clearup Solutions Limited,,Bi-Borough Director of Integrated Care,735.00
24/08/2021,1246581,Clearup Solutions Limited,,Bi-Borough Director of Integrated Care,550.00
06/09/2021,1246581,Clearup Solutions Limited,,Bi-Borough Director of Integrated Care,642.50
09/09/2021,1246581,Clearup Solutions Limited,,Bi-Borough Director of Integrated Care,755.00
05/07/2021,1244190,Clouds End Services Ltd,,Bi-Borough Director of Integrated Care,"1,200.00"
30/07/2021,1244190,Clouds End Services Ltd,,Bi-Borough Director of Integrated Care,"1,200.00"
24/08/2021,1244190,Clouds End Services Ltd,,Bi-Borough Director of Integrated Care,800.00
06/09/2021,1244190,Clouds End Services Ltd,,Bi-Borough Director of Integrated Care,"1,200.00"
06/09/2021,1244190,Clouds End Services Ltd,,Bi-Borough Director of Integrated Care,800.00
20/09/2021,1244190,Clouds End Services Ltd,,Bi-Borough Director of Integrated Care,"1,200.00"
21/07/2021,1246602,Community Housing Therapy,,Bi-Borough Director of Integrated Care,"1,940.00"
18/08/2021,1246602,Community Housing Therapy,,Bi-Borough Director of Integrated Care,"1,940.00"
15/09/2021,1246602,Community Housing Therapy,,Bi-Borough Director of Integrated Care,"1,940.00"
06/07/2021,1259597,Ethica Services LTD,,Bi-Borough Director of Integrated Care,805.44
07/09/2021,1259597,Ethica Services LTD,,Bi-Borough Director of Integrated Care,"1,431.20"
08/09/2021,1259597,Ethica Services LTD,,Bi-Borough Director of Integrated Care,"1,431.20"
10/09/2021,1252498,PERSONAL PAYMENTS,Legal Costs,Bi-Borough Director of Integrated Care,810.00
02/07/2021,1247257,Health Vision Uk,,Bi-Borough Director of Integrated Care,660.85
02/07/2021,1247257,Health Vision Uk,,Bi-Borough Director of Integrated Care,957.04
02/07/2021,1247257,Health Vision Uk,,Bi-Borough Director of Integrated Care,517.57
02/07/2021,1247257,Health Vision Uk,,Bi-Borough Director of Integrated Care,"1,399.68"
02/07/2021,1247257,Health Vision Uk,,Bi-Borough Director of Integrated Care,986.63
02/07/2021,1247257,Health Vision Uk,,Bi-Borough Director of Integrated Care,"1,025.24"
02/07/2021,1247257,Health Vision Uk,,Bi-Borough Director of Integrated Care,"1,543.26"
16/08/2021,1247257,Health Vision Uk,,Bi-Borough Director of Integrated Care,"1,018.44"
16/08/2021,1247257,Health Vision Uk,,Bi-Borough Director of Integrated Care,514.82
16/08/2021,1247257,Health Vision Uk,,Bi-Borough Director of Integrated Care,"1,010.15"
16/08/2021,1247257,Health Vision Uk,,Bi-Borough Director of Integrated Care,988.04
16/08/2021,1247257,Health Vision Uk,,Bi-Borough Director of Integrated Care,626.73
16/08/2021,1247257,Health Vision Uk,,Bi-Borough Director of Integrated Care,965.31
16/08/2021,1247257,Health Vision Uk,,Bi-Borough Director of Integrated Care,518.91
16/08/2021,1247257,Health Vision Uk,,Bi-Borough Director of Integrated Care,"1,400.42"
09/09/2021,1247257,Health Vision Uk,,Bi-Borough Director of Integrated Care,650.67
09/09/2021,1247257,Health Vision Uk,,Bi-Borough Director of Integrated Care,953.17
09/09/2021,1247257,Health Vision Uk,,Bi-Borough Director of Integrated Care,518.91
09/09/2021,1247257,Health Vision Uk,,Bi-Borough Director of Integrated Care,"1,421.13"
09/09/2021,1247257,Health Vision Uk,,Bi-Borough Director of Integrated Care,999.83
09/09/2021,1247257,Health Vision Uk,,Bi-Borough Director of Integrated Care,"1,017.71"
09/09/2021,1247257,Health Vision Uk,,Bi-Borough Director of Integrated Care,514.82
09/09/2021,1247257,Health Vision Uk,,Bi-Borough Director of Integrated Care,704.33
30/09/2021,1247257,Health Vision Uk,,Bi-Borough Director of Integrated Care,667.36
30/09/2021,1247257,Health Vision Uk,,Bi-Borough Director of Integrated Care,963.87
30/09/2021,1247257,Health Vision Uk,,Bi-Borough Director of Integrated Care,509.51
30/09/2021,1247257,Health Vision Uk,,Bi-Borough Director of Integrated Care,"1,048.86"
30/09/2021,1247257,Health Vision Uk,,Bi-Borough Director of Integrated Care,944.04
30/09/2021,1247257,Health Vision Uk,,Bi-Borough Director of Integrated Care,"1,021.46"
30/09/2021,1247257,Health Vision Uk,,Bi-Borough Director of Integrated Care,514.21
30/09/2021,1247257,Health Vision Uk,,Bi-Borough Director of Integrated Care,616.63
26/08/2021,1282613,I Support Behaviour LTD,B*Voluntary-Spot-V Dep-Enhanced - do not u,Bi-Borough Director of Integrated Care,"3,347.50"
06/09/2021,1282613,I Support Behaviour LTD,B*Voluntary-Spot-V Dep-Enhanced - do not u,Bi-Borough Director of Integrated Care,"2,850.00"
24/07/2021,1278133,Jim and Chris Homecare Limited,,Bi-Borough Director of Integrated Care,"1,175.52"
24/07/2021,1278133,Jim and Chris Homecare Limited,,Bi-Borough Director of Integrated Care,"1,175.52"
24/07/2021,1278133,Jim and Chris Homecare Limited,,Bi-Borough Director of Integrated Care,"1,175.52"
24/07/2021,1278133,Jim and Chris Homecare Limited,,Bi-Borough Director of Integrated Care,"1,175.52"
24/07/2021,1278133,Jim and Chris Homecare Limited,,Bi-Borough Director of Integrated Care,"1,061.76"
24/07/2021,1278133,Jim and Chris Homecare Limited,,Bi-Borough Director of Integrated Care,"1,137.60"
30/07/2021,1256893,Kapital Care WCC,,Bi-Borough Director of Integrated Care,939.68
24/09/2021,1256893,Kapital Care WCC,,Bi-Borough Director of Integrated Care,939.68
02/08/2021,1247650,London Care Ltd,,Bi-Borough Director of Integrated Care,"1,003.99"
02/08/2021,1247650,London Care Ltd,,Bi-Borough Director of Integrated Care,518.53
02/08/2021,1247650,London Care Ltd,,Bi-Borough Director of Integrated Care,753.99
02/08/2021,1247650,London Care Ltd,,Bi-Borough Director of Integrated Care,753.99
02/08/2021,1247650,London Care Ltd,,Bi-Borough Director of Integrated Care,965.84
02/08/2021,1247650,London Care Ltd,,Bi-Borough Director of Integrated Care,"2,621.57"
02/08/2021,1247650,London Care Ltd,,Bi-Borough Director of Integrated Care,"1,167.48"
02/08/2021,1247650,London Care Ltd,,Bi-Borough Director of Integrated Care,673.88
06/09/2021,1247650,London Care Ltd,,Bi-Borough Director of Integrated Care,680.05
06/09/2021,1247650,London Care Ltd,,Bi-Borough Director of Integrated Care,971.29
06/09/2021,1247650,London Care Ltd,,Bi-Borough Director of Integrated Care,518.22
06/09/2021,1247650,London Care Ltd,,Bi-Borough Director of Integrated Care,768.65
06/09/2021,1247650,London Care Ltd,,Bi-Borough Director of Integrated Care,768.65
07/09/2021,1247650,London Care Ltd,,Bi-Borough Director of Integrated Care,529.06
07/09/2021,1247650,London Care Ltd,,Bi-Borough Director of Integrated Care,739.79
07/09/2021,1247650,London Care Ltd,,Bi-Borough Director of Integrated Care,739.78
07/09/2021,1247650,London Care Ltd,,Bi-Borough Director of Integrated Care,628.17
07/09/2021,1247650,London Care Ltd,,Bi-Borough Director of Integrated Care,"1,009.27"
24/09/2021,1247650,London Care Ltd,,Bi-Borough Director of Integrated Care,674.79
24/09/2021,1247650,London Care Ltd,,Bi-Borough Director of Integrated Care,997.22
24/09/2021,1247650,London Care Ltd,,Bi-Borough Director of Integrated Care,518.84
24/09/2021,1247650,London Care Ltd,,Bi-Borough Director of Integrated Care,788.26
21/07/2021,1262948,Lotus House,,Bi-Borough Director of Integrated Care,"2,928.00"
18/08/2021,1262948,Lotus House,,Bi-Borough Director of Integrated Care,"2,928.00"
15/09/2021,1262948,Lotus House,,Bi-Borough Director of Integrated Care,"2,928.00"
21/07/2021,1244866,Micado Community Living Services,,Bi-Borough Director of Integrated Care,"2,880.00"
18/08/2021,1244866,Micado Community Living Services,,Bi-Borough Director of Integrated Care,"2,880.00"
15/09/2021,1244866,Micado Community Living Services,,Bi-Borough Director of Integrated Care,"2,880.00"
05/07/2021,1244905,Nas Services Ltd (Residential),B*Voluntary-Spot-V Dep-Enhanced - do not u,Bi-Borough Director of Integrated Care,"1,065.12"
30/07/2021,1244905,Nas Services Ltd (Residential),B*Voluntary-Spot-V Dep-Enhanced - do not u,Bi-Borough Director of Integrated Care,"1,065.12"
01/09/2021,1244905,Nas Services Ltd (Residential),B*Voluntary-Spot-V Dep-Enhanced - do not u,Bi-Borough Director of Integrated Care,"1,065.12"
29/09/2021,1244905,Nas Services Ltd (Residential),B*Voluntary-Spot-V Dep-Enhanced - do not u,Bi-Borough Director of Integrated Care,"1,065.12"
21/07/2021,1270326,New Directions Flexible Social Care,,Bi-Borough Director of Integrated Care,"1,400.00"
18/08/2021,1270326,New Directions Flexible Social Care,,Bi-Borough Director of Integrated Care,"1,400.00"
15/09/2021,1270326,New Directions Flexible Social Care,,Bi-Borough Director of Integrated Care,"1,400.00"
02/07/2021,1266895,PERSONAL PAYMENTS,Social Care - Direct Payments,Bi-Borough Director of Integrated Care,728.00
02/07/2021,1247479,PERSONAL PAYMENTS,Social Care - Direct Payments,Bi-Borough Director of Integrated Care,"1,639.08"
02/07/2021,1259940,PERSONAL PAYMENTS,Adult Social Care - Other Transfer Pay,Bi-Borough Director of Integrated Care,"1,913.76"
02/07/2021,1254334,PERSONAL PAYMENTS,Adult Social Care - Other Transfer Pay,Bi-Borough Director of Integrated Care,"1,500.00"
19/07/2021,1247409,PERSONAL PAYMENTS,Social Care - Direct Payments,Bi-Borough Director of Integrated Care,841.47
30/07/2021,1254334,PERSONAL PAYMENTS,Adult Social Care - Other Transfer Pay,Bi-Borough Director of Integrated Care,"1,500.00"
30/07/2021,1266895,PERSONAL PAYMENTS,Social Care - Direct Payments,Bi-Borough Director of Integrated Care,728.00
30/07/2021,1247479,PERSONAL PAYMENTS,Social Care - Direct Payments,Bi-Borough Director of Integrated Care,"1,639.08"
30/07/2021,1259940,PERSONAL PAYMENTS,Adult Social Care - Other Transfer Pay,Bi-Borough Director of Integrated Care,"1,913.76"
27/08/2021,1249900,PERSONAL PAYMENTS,Adult Social Care - Other Transfer Pay,Bi-Borough Director of Integrated Care,925.71
27/08/2021,1266895,PERSONAL PAYMENTS,Social Care - Direct Payments,Bi-Borough Director of Integrated Care,728.00
27/08/2021,1247479,PERSONAL PAYMENTS,Social Care - Direct Payments,Bi-Borough Director of Integrated Care,"1,639.08"
27/08/2021,1259940,PERSONAL PAYMENTS,Adult Social Care - Other Transfer Pay,Bi-Borough Director of Integrated Care,"1,913.76"
27/08/2021,1254334,PERSONAL PAYMENTS,Adult Social Care - Other Transfer Pay,Bi-Borough Director of Integrated Care,"1,500.00"
24/09/2021,1256902,PERSONAL PAYMENTS,Social Care - Direct Payments,Bi-Borough Director of Integrated Care,"1,867.84"
24/09/2021,1259940,PERSONAL PAYMENTS,Adult Social Care - Other Transfer Pay,Bi-Borough Director of Integrated Care,"1,913.76"
24/09/2021,1266895,PERSONAL PAYMENTS,Social Care - Direct Payments,Bi-Borough Director of Integrated Care,728.00
24/09/2021,1247479,PERSONAL PAYMENTS,Social Care - Direct Payments,Bi-Borough Director of Integrated Care,"1,639.08"
18/08/2021,1269718,Reliant Care Limited,,Bi-Borough Director of Integrated Care,"8,393.31"
15/09/2021,1269718,Reliant Care Limited,,Bi-Borough Director of Integrated Care,"1,780.40"
06/07/2021,1245316,Respect Care Services Ltd,,Bi-Borough Director of Integrated Care,604.08
06/07/2021,1245316,Respect Care Services Ltd,,Bi-Borough Director of Integrated Care,620.86
21/07/2021,1245316,Respect Care Services Ltd,,Bi-Borough Director of Integrated Care,604.08
21/07/2021,1245316,Respect Care Services Ltd,,Bi-Borough Director of Integrated Care,620.86
29/07/2021,1245316,Respect Care Services Ltd,,Bi-Borough Director of Integrated Care,604.08
10/08/2021,1245316,Respect Care Services Ltd,,Bi-Borough Director of Integrated Care,604.08
19/08/2021,1245316,Respect Care Services Ltd,,Bi-Borough Director of Integrated Care,604.08
24/08/2021,1245316,Respect Care Services Ltd,,Bi-Borough Director of Integrated Care,604.08
24/09/2021,1245316,Respect Care Services Ltd,,Bi-Borough Director of Integrated Care,604.08
24/09/2021,1245316,Respect Care Services Ltd,,Bi-Borough Director of Integrated Care,604.08
21/07/2021,1272438,ST GEORGES SUPPORTED LIVING LTD,,Bi-Borough Director of Integrated Care,"1,700.00"
18/08/2021,1272438,ST GEORGES SUPPORTED LIVING LTD,,Bi-Borough Director of Integrated Care,"1,700.00"
15/09/2021,1272438,ST GEORGES SUPPORTED LIVING LTD,,Bi-Borough Director of Integrated Care,"1,700.00"
06/07/2021,1248843,Sage Care Ltd,,Bi-Borough Director of Integrated Care,"1,231.17"
06/07/2021,1248843,Sage Care Ltd,,Bi-Borough Director of Integrated Care,"1,780.80"
06/07/2021,1248843,Sage Care Ltd,,Bi-Borough Director of Integrated Care,644.40
06/07/2021,1248843,Sage Care Ltd,,Bi-Borough Director of Integrated Care,"1,002.40"
27/07/2021,1248843,Sage Care Ltd,,Bi-Borough Director of Integrated Care,"2,226.94"
27/07/2021,1248843,Sage Care Ltd,,Bi-Borough Director of Integrated Care,"1,815.94"
27/07/2021,1248843,Sage Care Ltd,,Bi-Borough Director of Integrated Care,"1,284.45"
07/09/2021,1248843,Sage Care Ltd,,Bi-Borough Director of Integrated Care,"2,251.77"
07/09/2021,1248843,Sage Care Ltd,,Bi-Borough Director of Integrated Care,"1,815.94"
07/09/2021,1248843,Sage Care Ltd,,Bi-Borough Director of Integrated Care,"1,281.11"
07/09/2021,1248843,Sage Care Ltd,,Bi-Borough Director of Integrated Care,574.43
07/09/2021,1248843,Sage Care Ltd,,Bi-Borough Director of Integrated Care,"1,019.15"
23/09/2021,1248843,Sage Care Ltd,,Bi-Borough Director of Integrated Care,"2,213.04"
23/09/2021,1248843,Sage Care Ltd,,Bi-Borough Director of Integrated Care,"1,815.94"
23/09/2021,1248843,Sage Care Ltd,,Bi-Borough Director of Integrated Care,"1,265.04"
23/09/2021,1248843,Sage Care Ltd,,Bi-Borough Director of Integrated Care,592.96
23/09/2021,1248843,Sage Care Ltd,,Bi-Borough Director of Integrated Care,"1,037.68"
21/07/2021,1270462,TRIVENI CARE LTD,,Bi-Borough Director of Integrated Care,"2,280.00"
18/08/2021,1270462,TRIVENI CARE LTD,,Bi-Borough Director of Integrated Care,"2,280.00"
15/09/2021,1270462,TRIVENI CARE LTD,,Bi-Borough Director of Integrated Care,"2,280.00"
13/09/2021,1249079,The Appropriate Adult Service Ltd,Agency Staff,Bi-Borough Director of Integrated Care,765.00
21/07/2021,1246095,Theana Ltd T/a Enlighten Homes,,Bi-Borough Director of Integrated Care,"3,940.00"
18/08/2021,1246095,Theana Ltd T/a Enlighten Homes,,Bi-Borough Director of Integrated Care,"3,940.00"
15/09/2021,1246095,Theana Ltd T/a Enlighten Homes,,Bi-Borough Director of Integrated Care,"3,940.00"
12/07/2021,1249232,Vincentian Care Plus,,Bi-Borough Director of Integrated Care,"1,614.38"
12/07/2021,1249232,Vincentian Care Plus,,Bi-Borough Director of Integrated Care,"1,111.80"
12/07/2021,1249232,Vincentian Care Plus,,Bi-Borough Director of Integrated Care,667.08
12/07/2021,1249232,Vincentian Care Plus,,Bi-Borough Director of Integrated Care,592.96
12/07/2021,1249232,Vincentian Care Plus,,Bi-Borough Director of Integrated Care,528.10
12/07/2021,1249232,Vincentian Care Plus,,Bi-Borough Director of Integrated Care,"1,297.10"
12/07/2021,1249232,Vincentian Care Plus,,Bi-Borough Director of Integrated Care,"1,554.23"
12/07/2021,1249232,Vincentian Care Plus,,Bi-Borough Director of Integrated Care,"2,594.20"
12/07/2021,1249232,Vincentian Care Plus,,Bi-Borough Director of Integrated Care,"2,038.30"
12/07/2021,1249232,Vincentian Care Plus,,Bi-Borough Director of Integrated Care,824.57
12/07/2021,1249232,Vincentian Care Plus,,Bi-Borough Director of Integrated Care,"1,056.21"
12/07/2021,1249232,Vincentian Care Plus,,Bi-Borough Director of Integrated Care,"2,334.78"
12/07/2021,1249232,Vincentian Care Plus,,Bi-Borough Director of Integrated Care,518.84
12/07/2021,1249232,Vincentian Care Plus,,Bi-Borough Director of Integrated Care,541.80
21/07/2021,1249232,Vincentian Care Plus,,Bi-Borough Director of Integrated Care,"1,686.32"
13/08/2021,1249232,Vincentian Care Plus,,Bi-Borough Director of Integrated Care,"1,042.31"
13/08/2021,1249232,Vincentian Care Plus,,Bi-Borough Director of Integrated Care,"2,320.88"
13/08/2021,1249232,Vincentian Care Plus,,Bi-Borough Director of Integrated Care,518.84
13/08/2021,1249232,Vincentian Care Plus,,Bi-Borough Director of Integrated Care,527.86
13/08/2021,1249232,Vincentian Care Plus,,Bi-Borough Director of Integrated Care,518.84
13/08/2021,1249232,Vincentian Care Plus,,Bi-Borough Director of Integrated Care,"1,571.51"
13/08/2021,1249232,Vincentian Care Plus,,Bi-Borough Director of Integrated Care,"1,121.07"
13/08/2021,1249232,Vincentian Care Plus,,Bi-Borough Director of Integrated Care,667.08
13/08/2021,1249232,Vincentian Care Plus,,Bi-Borough Director of Integrated Care,592.96
13/08/2021,1249232,Vincentian Care Plus,,Bi-Borough Director of Integrated Care,518.84
13/08/2021,1249232,Vincentian Care Plus,,Bi-Borough Director of Integrated Care,"1,292.47"
13/08/2021,1249232,Vincentian Care Plus,,Bi-Borough Director of Integrated Care,"1,445.06"
13/08/2021,1249232,Vincentian Care Plus,,Bi-Borough Director of Integrated Care,"2,575.67"
13/08/2021,1249232,Vincentian Care Plus,,Bi-Borough Director of Integrated Care,"2,029.04"
13/08/2021,1249232,Vincentian Care Plus,,Bi-Borough Director of Integrated Care,815.30
16/08/2021,1249232,Vincentian Care Plus,,Bi-Borough Director of Integrated Care,"1,686.32"
18/08/2021,1249232,Vincentian Care Plus,,Bi-Borough Director of Integrated Care,"1,686.32"
18/08/2021,1249232,Vincentian Care Plus,,Bi-Borough Director of Integrated Care,"1,816.36"
14/09/2021,1249232,Vincentian Care Plus,,Bi-Borough Director of Integrated Care,"1,111.80"
14/09/2021,1249232,Vincentian Care Plus,,Bi-Borough Director of Integrated Care,667.08
14/09/2021,1249232,Vincentian Care Plus,,Bi-Borough Director of Integrated Care,592.96
14/09/2021,1249232,Vincentian Care Plus,,Bi-Borough Director of Integrated Care,528.10
14/09/2021,1249232,Vincentian Care Plus,,Bi-Borough Director of Integrated Care,"1,297.10"
14/09/2021,1249232,Vincentian Care Plus,,Bi-Borough Director of Integrated Care,"1,046.43"
14/09/2021,1249232,Vincentian Care Plus,,Bi-Borough Director of Integrated Care,"2,594.20"
14/09/2021,1249232,Vincentian Care Plus,,Bi-Borough Director of Integrated Care,"2,038.30"
14/09/2021,1249232,Vincentian Care Plus,,Bi-Borough Director of Integrated Care,843.10
14/09/2021,1249232,Vincentian Care Plus,,Bi-Borough Director of Integrated Care,"1,037.68"
14/09/2021,1249232,Vincentian Care Plus,,Bi-Borough Director of Integrated Care,"2,334.78"
14/09/2021,1249232,Vincentian Care Plus,,Bi-Borough Director of Integrated Care,518.84
14/09/2021,1249232,Vincentian Care Plus,,Bi-Borough Director of Integrated Care,541.80
14/09/2021,1249232,Vincentian Care Plus,,Bi-Borough Director of Integrated Care,518.84
14/09/2021,1249232,Vincentian Care Plus,,Bi-Borough Director of Integrated Care,"1,556.80"
16/09/2021,1249232,Vincentian Care Plus,,Bi-Borough Director of Integrated Care,"1,556.48"
16/09/2021,1249232,Vincentian Care Plus,,Bi-Borough Director of Integrated Care,"1,111.80"
16/09/2021,1249232,Vincentian Care Plus,,Bi-Borough Director of Integrated Care,667.08
16/09/2021,1249232,Vincentian Care Plus,,Bi-Borough Director of Integrated Care,592.96
16/09/2021,1249232,Vincentian Care Plus,,Bi-Borough Director of Integrated Care,528.10
16/09/2021,1249232,Vincentian Care Plus,,Bi-Borough Director of Integrated Care,"1,297.10"
16/09/2021,1249232,Vincentian Care Plus,,Bi-Borough Director of Integrated Care,"1,013.73"
16/09/2021,1249232,Vincentian Care Plus,,Bi-Borough Director of Integrated Care,"2,594.20"
16/09/2021,1249232,Vincentian Care Plus,,Bi-Borough Director of Integrated Care,"1,982.71"
16/09/2021,1249232,Vincentian Care Plus,,Bi-Borough Director of Integrated Care,837.99
16/09/2021,1249232,Vincentian Care Plus,,Bi-Borough Director of Integrated Care,"1,014.52"
16/09/2021,1249232,Vincentian Care Plus,,Bi-Borough Director of Integrated Care,"2,334.78"
16/09/2021,1249232,Vincentian Care Plus,,Bi-Borough Director of Integrated Care,518.84
16/09/2021,1249232,Vincentian Care Plus,,Bi-Borough Director of Integrated Care,518.84
16/09/2021,1249232,Vincentian Care Plus,,Bi-Borough Director of Integrated Care,518.84
16/09/2021,1249232,Vincentian Care Plus,,Bi-Borough Director of Integrated Care,778.26
27/09/2021,1249232,Vincentian Care Plus,,Bi-Borough Director of Integrated Care,"1,616.81"
27/09/2021,1249232,Vincentian Care Plus,,Bi-Borough Director of Integrated Care,"1,816.36"
05/07/2021,1249291,Westminster Society,,Bi-Borough Director of Integrated Care,"1,088.00"
05/07/2021,1249291,Westminster Society,,Bi-Borough Director of Integrated Care,"1,088.00"
05/07/2021,1249291,Westminster Society,,Bi-Borough Director of Integrated Care,"1,360.00"
05/07/2021,1249291,Westminster Society,,Bi-Borough Director of Integrated Care,"1,360.00"
21/07/2021,1243566,Yarrow Housing Ltd,,Bi-Borough Director of Integrated Care,"1,408.68"
18/08/2021,1243566,Yarrow Housing Ltd,,Bi-Borough Director of Integrated Care,"1,408.68"
15/09/2021,1243566,Yarrow Housing Ltd,,Bi-Borough Director of Integrated Care,"1,408.68"
21/07/2021,1243431,Abba Residential Home,,Bi-Borough Director of Integrated Care,"1,582.44"
21/07/2021,1243431,Abba Residential Home,,Bi-Borough Director of Integrated Care,"1,582.44"
21/07/2021,1243431,Abba Residential Home,,Bi-Borough Director of Integrated Care,"2,400.00"
21/07/2021,1243431,Abba Residential Home,,Bi-Borough Director of Integrated Care,"2,400.00"
21/07/2021,1243431,Abba Residential Home,,Bi-Borough Director of Integrated Care,"2,385.64"
18/08/2021,1243431,Abba Residential Home,,Bi-Borough Director of Integrated Care,"2,385.64"
18/08/2021,1243431,Abba Residential Home,,Bi-Borough Director of Integrated Care,"1,582.44"
18/08/2021,1243431,Abba Residential Home,,Bi-Borough Director of Integrated Care,"1,582.44"
18/08/2021,1243431,Abba Residential Home,,Bi-Borough Director of Integrated Care,"2,400.00"
18/08/2021,1243431,Abba Residential Home,,Bi-Borough Director of Integrated Care,"2,400.00"
15/09/2021,1243431,Abba Residential Home,,Bi-Borough Director of Integrated Care,"3,762.86"
15/09/2021,1243431,Abba Residential Home,,Bi-Borough Director of Integrated Care,"3,762.86"
15/09/2021,1243431,Abba Residential Home,,Bi-Borough Director of Integrated Care,"2,481.17"
